Workbook

Sheet AER only (hidden)
B1: Data in these columns used for data validation and database purposes.
B2: Date last modified: | C2: 2017-01-16 | D2: added (Albury and Victora) for AGN
C3: 2016-10-17 | D3: updated TransGrid's correct legal name, corrected TasNetworks (T) to June financial year
C4: 2017-02-01 | D4: inserted Power and Water, added NRs (dms_FeederCat_1 and dms_FeederCat_2)
C5: 2017-03-03 | D5: inserted AEMO as a business | Y5: FOR ELECTRICITY BUSINESSES ONLY
Y6: Feeder Types | AC6: TasNetworks (D) | AD6: MAIFI flag | AE6: Feeder Names
Y7: CBD | Z7: Urban | AA7: Short rural | AB7: long rural | AC7: EXTRA
B8: dms_TradingName_List | C8: dms_TradingNameFull_List | D8: dms_ABN_List | E8: dms_JurisdictionList | F8: dms_Sector_List | G8: dms_Segment_List | H8: dms_FormControl_List | I8: dms_RPT_List | J8: dms_RPTMonth_List | K8: dms_CRCPlength_List | L8: dms_FRCPlength_List | M8: dms_663_List | N8: dms_DeterminationRef_List | O8: dms_Addr1_List | P8: dms_Addr2_List | Q8: dms_Suburb_List | R8: dms_State_List | S8: dms_PostCode_List | T8: dms_PAddr1_List | U8: dms_PAddr2_List | V8: dms_PSuburb_List | W8: dms_PState_List | X8: dms_PPostCode_List | Y8: dms_CBD_flag | Z8: dms_Urban_flag | AA8: dms_ShortRural_flag | AB8: dms_LongRural_flag | AC8: dms_FeederType_5_flag | AD8: dms_MAIFI_flag_List | AE8: dms_FeederName_1 | AF8: dms_FeederName_2 | AG8: dms_FeederName_3 | AH8: dms_FeederName_4 | AI8: dms_FeederName_5 | AJ8: Column1
B9: ActewAGL Distribution | C9: ActewAGL Distribution | D9: 76670568688 | E9: ACT | F9: Electricity | G9: Distribution | H9: Revenue cap | I9: Financial | J9: June | K9: 5 | L9: 5 | M9: 5 | N9: 2014-19 Distribution Determination | O9: 40 Bunda Street | Q9: CANBERRA | R9: ACT | S9: 2600 | T9: GPO BOX 366 | V9: CANBERRA | W9: ACT | X9: 2601 | Y9: NO | Z9: YES | AA9: YES | AB9: NO | AC9: NO | AE9: CBD | AF9: Urban | AG9: Short rural | AH9: Long rural | AJ9: ActewAGL Distribution
B10: ActewAGL Distribution (Tx Assets) | C10: ActewAGL Distribution (Tx Assets) | D10: 76670568688 | E10: ACT | F10: Electricity | G10: Distribution | H10: Revenue cap | I10: Financial | J10: June | K10: 5 | L10: 5 | M10: 5 | N10: distribution determination | O10: 40 Bunda Street | Q10: CANBERRA | R10: ACT | S10: 2600 | T10: GPO BOX 366 | V10: CANBERRA | W10: ACT | X10: 2601 | AE10: CBD | AF10: Urban | AG10: Short rural | AH10: Long rural | AJ10: ActewAGL Distribution (Tx Assets)
B11: ActewAGL Gas | C11: ActewAGL Gas | D11: 76670568688 | E11: ACT | F11: Gas | G11: Distribution | H11: Weighted average price cap | I11: Financial | J11: June | K11: 5 | L11: 5 | M11: x | O11: 40 Bunda Street | Q11: CANBERRA | R11: ACT | S11: 2600 | T11: GPO BOX 366 | V11: CANBERRA | W11: ACT | X11: 2601 | AJ11: ActewAGL Gas
B12: AEMO | C12: Australian Energy Market Operator Ltd | D12: 94072010327 | E12: Vic | F12: Electricity | G12: Transmission | H12: - | I12: Financial | J12: March | K12: 5 | L12: 5 | M12: x | N12: - | O12: Level 22 | P12: 530 Collins Street | Q12: MELBOURNE | R12: VIC | S12: 3000 | T12: GPO Box 2008 | V12: MELBOURNE | W12: VIC | X12: 3001 | AJ12: AEMO
B13: AGN (Albury and Victoria) | C13: Australian Gas Networks Limited (reporting data for Albury and Victoria) | D13: 19078551685 | E13: Vic | F13: Gas | G13: Distribution | H13: Weighted average price cap | I13: Calendar | J13: December | K13: 5 | L13: 5 | M13: x | O13: Level 6 | P13: 400 King William Street | Q13: ADELAIDE | R13: SA | S13: 5000 | T13: PO Box 6468 | U13: Halifax Street | V13: ADELAIDE | W13: SA | X13: 5000 | AE13: CBD | AF13: Urban | AG13: Short rural | AH13: Long rural | AJ13: AGN (Albury)
B14: AGN (Albury) | C14: Australian Gas Networks Limited (reporting data for Albury) | D14: 19078551685 | E14: Vic | F14: Gas | G14: Distribution | H14: Weighted average price cap | I14: Calendar | J14: December | K14: 5 | L14: 5 | M14: x | O14: Level 6 | P14: 400 King William Street | Q14: ADELAIDE | R14: SA | S14: 5000 | T14: PO Box 6468 | U14: Halifax Street | V14: ADELAIDE | W14: SA | X14: 5000 | AE14: CBD | AF14: Urban | AG14: Short rural | AH14: Long rural
B15: AGN (SA) | C15: Australian Gas Networks Limited (reporting data for SA) | D15: 19078551685 | E15: SA | F15: Gas | G15: Distribution | H15: Weighted average price cap | I15: Financial | J15: June | K15: 5 | L15: 5 | M15: 5 | N15: distribution determination | O15: Level 6 | P15: 400 King William Street | Q15: ADELAIDE | R15: SA | S15: 5000 | T15: PO Box 6468 | U15: Halifax Street | V15: ADELAIDE | W15: SA | X15: 5000 | AJ15: AGN (SA)
B16: AGN (Victoria) | C16: Australian Gas Networks Limited (reporting data for Victoria) | D16: 19078551685 | E16: Vic | F16: Gas | G16: Distribution | H16: Weighted average price cap | I16: Calendar | J16: December | K16: 5 | L16: 5 | M16: x | O16: Level 6 | P16: 400 King William Street | Q16: ADELAIDE | R16: SA | S16: 5000 | T16: PO Box 6468 | U16: Halifax Street | V16: ADELAIDE | W16: SA | X16: 5000 | AJ16: AGN (Victoria)
B17: Amadeus | C17: APT Pipelines (NT) Pty Ltd | D17: 39009737393 | E17: NT | F17: Gas | G17: Transmission | H17: Weighted average price cap | I17: Financial | J17: June | K17: 5 | L17: 5 | M17: x | N17: n/a | O17: Level 19, HSBC Building | P17: 580 George Street | Q17: SYDNEY | R17: NSW | S17: 2000 | T17: Level 19, HSBC Building | U17: 580 George Street | V17: SYDNEY | W17: NSW | X17: 2000 | AJ17: Amadeus
B18: APA GasNet | C18: APA GasNet Australia (Operations) Pty Ltd | D18: 065083009 | E18: Vic | F18: Gas | G18: Transmission | H18: Weighted average price cap | I18: Calendar | J18: December | K18: 5 | L18: 5 | M18: x | O18: Level 19, HSBC Building | P18: 580 George Street | Q18: SYDNEY | R18: NSW | S18: 2000 | T18: PO Box R41 | V18: ROYAL EXCHANGE | W18: NSW | X18: 1225 | AJ18: APA GasNet
B19: Ausgrid | C19: Ausgrid | D19: 78508211731 | E19: NSW | F19: Electricity | G19: Distribution | H19: Revenue cap | I19: Financial | J19: June | K19: 5 | L19: 5 | M19: 5 | N19: 2014-19 Distribution Determination | O19: 570 George St | Q19: SYDNEY | R19: NSW | S19: 2000 | T19: GPO Box 4009 | V19: SYDNEY | W19: NSW | X19: 2001 | Y19: YES | Z19: YES | AA19: YES | AB19: YES | AC19: NO | AE19: CBD | AF19: Urban | AG19: Short rural | AH19: Long rural | AJ19: Ausgrid
B20: Ausgrid (Tx Assets) | C20: Ausgrid (Tx Assets) | D20: 67505337385 | E20: NSW | F20: Electricity | G20: Distribution | H20: Revenue cap | I20: Financial | J20: June | K20: 5 | L20: 5 | M20: 5 | N20: distribution determination | O20: 570 George St | Q20: SYDNEY | R20: NSW | S20: 2000 | T20: GPO Box 4009 | V20: SYDNEY | W20: NSW | X20: 2001 | AE20: CBD | AF20: Urban | AG20: Short rural | AH20: Long rural | AJ20: Ausgrid (Tx Assets)
B21: AusNet (D) | C21: AusNet Electricity Services Pty Ltd | D21: 91064651118 | E21: Vic | F21: Electricity | G21: Distribution | H21: Revenue cap | I21: Calendar | J21: December | K21: 5 | L21: 5 | M21: 2 | N21: 2016-20 Distribution Determination | O21: Level 32 | P21: 2 Southbank Boulevard | Q21: SOUTHBANK | R21: Vic | S21: 3006 | T21: Locked Bag 14051 | V21: MELBOURNE CITY MAIL CENTRE | W21: VIC | X21: 8001 | Z21: YES | AA21: YES | AB21: YES | AC21: NO | AE21: CBD | AF21: Urban | AG21: Short rural | AH21: Long rural | AJ21: AusNet (D)
B22: AusNet (Gas) | C22: AusNet Gas Services | D22: 086015036 | E22: Vic | F22: Gas | G22: Distribution | H22: Weighted average price cap | I22: Calendar | J22: December | K22: 5 | L22: 5 | M22: X | O22: Level 19, HSBC Building | P22: 580 George Street | Q22: SYDNEY | R22: NSW | S22: 2000 | T22: PO Box R41 | V22: ROYAL EXCHANGE | W22: NSW | X22: 1225 | AJ22: AusNet (Gas)
B23: AusNet (T) | C23: Ausnet Services (Transmission) Ltd | D23: 48116124362 | E23: Vic | F23: Electricity | G23: Transmission | H23: Revenue cap | I23: Financial | J23: March | K23: 5 | L23: 5 | M23: 2 | N23: transmission determination | O23: Level 32 | P23: 2 Southbank Boulevard | Q23: SOUTHBANK | R23: Vic | S23: 3006 | T23: Locked Bag 14051 | V23: MELBOURNE CITY MAIL CENTRE | W23: Vic | X23: 8001 | AE23: CBD | AF23: Urban | AG23: Short rural | AH23: Long rural | AJ23: AusNet (T)
B24: Australian Distribution Co. | C24: Australian Distribution Co. | D24: 11222333444 | E24: - | F24: Electricity | G24: Distribution | H24: Revenue cap | I24: Financial | J24: June | K24: 5 | L24: 5 | M24: 2 | N24: distribution determination | O24: 123 Straight Street | Q24: SYDNEY | R24: NSW | S24: 2000 | T24: PO Box 123 | V24: SYDNEY | W24: NSW | X24: 2000 | AE24: CBD | AF24: Urban | AG24: Short rural | AH24: Long rural | AJ24: Australian Distribution Co.
B25: Australian Distribution Co. (Vic) | C25: Australian Distribution Co. (Victoria) | D25: 11222333444 | E25: Vic | F25: Electricity | G25: Distribution | H25: Revenue cap | I25: Calendar | J25: December | K25: 5 | L25: 5 | M25: 2 | N25: distribution determination | O25: 123 Straight Street | Q25: MELBOURNE | R25: Vic | S25: 3000 | T25: PO Box 123 | V25: MELBOURNE | W25: VIC | X25: 3000 | AE25: CBD | AF25: Urban | AG25: Short rural | AH25: Long rural | AJ25: Australian Distribution Co. (Vic)
B26: Australian Transmission Co. | C26: Australian Transmission Co. | D26: 11222333444 | E26: - | F26: Electricity | G26: Transmission | H26: Revenue cap | I26: Financial | J26: June | K26: 5 | L26: 5 | M26: 5 | N26: transmission determination | O26: 123 Straight Street | Q26: SYDNEY | R26: NSW | S26: 2000 | T26: PO Box 123 | V26: SYDNEY | W26: NSW | X26: 2000 | AE26: CBD | AF26: Urban | AG26: Short rural | AH26: Long rural | AJ26: Australian Transmission Co.
B27: Central Ranges Pipeline (D) | C27: Central Ranges Pipeline Pty Ltd | D27: 108218355 | E27: NSW | F27: Gas | G27: Distribution | H27: Weighted average price cap | I27: Financial | J27: June | K27: 15 | L27: 5 | M27: 5 | N27: distribution determination | O27: Level 19 | P27: 580 George Street | Q27: SYDNEY | R27: NSW | S27: 2000 | T27: PO Box R41 | V27: ROYAL EXCHANGE | W27: NSW | X27: 1225
B28: Central Ranges Pipeline (T) | C28: Central Ranges Pipeline Pty Ltd | D28: 108218355 | E28: NSW | F28: Gas | G28: Distribution | H28: Weighted average price cap | I28: Financial | J28: June | K28: 14 | L28: 5 | M28: 5 | N28: transmission determination | O28: Level 19 | P28: 580 George Street | Q28: SYDNEY | R28: NSW | S28: 2000 | T28: PO Box R41 | V28: ROYAL EXCHANGE | W28: NSW | X28: 1225
B29: CitiPower | C29: CitiPower | D29: 76064651056 | E29: Vic | F29: Electricity | G29: Distribution | H29: Revenue cap | I29: Calendar | J29: December | K29: 5 | L29: 5 | M29: 2 | N29: 2016-20 Distribution Determination | O29: 40 Market Street | Q29: MELBOURNE | R29: Vic | S29: 3000 | T29: Locked Bag 14090 | V29: MELBOURNE | W29: VIC | X29: 8001 | Y29: YES | Z29: YES | AA29: NO | AB29: NO | AC29: NO | AE29: CBD | AF29: Urban | AG29: Short rural | AH29: Long rural | AJ29: CitiPower
B30: Directlink | C30: Directlink | D30: 16779340889 | E30: Qld | F30: Electricity | G30: Transmission | H30: Revenue cap | I30: Financial | J30: June | K30: 9 | L30: 5 | M30: 5 | N30: transmission determination | O30: Level 19, HSBC Building | P30: 580 George Street | Q30: SYDNEY | R30: NSW | S30: 2000 | T30: PO Box R41 | V30: ROYAL EXCHANGE | W30: NSW | X30: 1225 | AE30: CBD | AF30: Urban | AG30: Short rural | AH30: Long rural | AJ30: Directlink
B31: ElectraNet | C31: ElectraNet | D31: 41094482416 | E31: SA | F31: Electricity | G31: Transmission | H31: Revenue cap | I31: Financial | J31: June | K31: 5 | L31: 5 | M31: 5 | N31: transmission determination | O31: 52-55 East Terrace | P31: Rymill Park | Q31: ADELAIDE | R31: SA | S31: 5000 | T31: PO Box 7096 | U31: Hutt Street Post Office | V31: ADELAIDE | W31: SA | X31: 5000 | AE31: CBD | AF31: Urban | AG31: Short rural | AH31: Long rural | AJ31: ElectraNet
B32: Endeavour Energy | C32: Endeavour Energy | D32: 11247365823 | E32: NSW | F32: Electricity | G32: Distribution | H32: Revenue cap | I32: Financial | J32: June | K32: 5 | L32: 5 | M32: 5 | N32: 2014-19 Distribution Determination | O32: 51 Huntingwood Drive | Q32: HUNTINGWOOD | R32: NSW | S32: 2148 | T32: PO Box 811 | V32: SEVEN HILLS | W32: NSW | X32: 1730 | Y32: NO | Z32: YES | AA32: YES | AB32: YES | AC32: NO | AE32: CBD | AF32: Urban | AG32: Short rural | AH32: Long rural | AJ32: Endeavour Energy
B33: Energex | C33: Energex | D33: 40078849055 | E33: Qld | F33: Electricity | G33: Distribution | H33: Revenue cap | I33: Financial | J33: June | K33: 5 | L33: 5 | M33: 5 | N33: 2015-20 Distribution Determination | O33: 26 Reddacliff Street | Q33: NEWSTEAD | R33: Qld | S33: 4006 | T33: 26 Reddacliff Street | V33: NEWSTEAD | W33: QLD | X33: 4006 | Y33: YES | Z33: YES | AA33: YES | AB33: NO | AC33: NO | AE33: CBD | AF33: Urban | AG33: Short rural | AH33: Long rural | AJ33: Energex
B34: Ergon Energy | C34: Ergon Energy | D34: 50087646062 | E34: Qld | F34: Electricity | G34: Distribution | H34: Revenue cap | I34: Financial | J34: June | K34: 5 | L34: 5 | M34: 5 | N34: 2015-20 Distribution Determination | O34: 22 Walker Street | Q34: TOWNSVILLE | R34: Qld | S34: 4810 | T34: Po Box 264 | V34: FORTITUDE VALLEY | W34: QLD | X34: 4006 | Y34: NO | Z34: YES | AA34: YES | AB34: YES | AC34: NO | AE34: CBD | AF34: Urban | AG34: Short rural | AH34: Long rural | AJ34: Ergon Energy
B35: Essential Energy | C35: Essential Energy | D35: 37428185226 | E35: NSW | F35: Electricity | G35: Distribution | H35: Revenue cap | I35: Financial | J35: June | K35: 5 | L35: 5 | M35: 5 | N35: 2014-19 Distribution Determination | O35: 8 Buller Street | Q35: PORT MACQUARIE | R35: NSW | S35: 2444 | T35: PO Box 5730 | V35: PORT MACQUARIE | W35: NSW | X35: 2444 | AA35: YES | AB35: YES | AC35: NO | AE35: CBD | AF35: Urban | AG35: Short rural | AH35: Long rural | AJ35: Essential Energy
B36: Jemena Electricity | C36: Jemena Electricity | D36: 82064651083 | E36: Vic | F36: Electricity | G36: Distribution | H36: Revenue cap | I36: Calendar | J36: December | K36: 5 | L36: 5 | M36: 2 | N36: 2016-20 Distribution Determination | O36: Level 16 | P36: 567 Collins Street | Q36: MELBOURNE | R36: VIC | S36: 3000 | T36: PO Box 16182 | V36: MELBOURNE | W36: VIC | X36: 8001 | AA36: YES | AB36: NO | AC36: NO | AE36: CBD | AF36: Urban | AG36: Short rural | AH36: Long rural | AJ36: Jemena Electricity
B37: JGN | C37: Jemena Gas Networks (NSW) Ltd | D37: 003 004 322 | E37: NSW | F37: Gas | G37: Distribution | H37: Weighted average price cap | I37: Financial | J37: June | K37: 5 | L37: 5 | AJ37: JGN
B38: Multinet Gas | C38: Multinet Gas (DB No.1) Pty Ltd (ACN 086 026 986), Multinet Gas (DB No.2) Pty Ltd (ACN 086 230 122) | D38: 086026986 | E38: Vic | F38: Gas | G38: Distribution | H38: Weighted average price cap | I38: Calendar | J38: December | K38: 5 | L38: 5 | M38: x | O38: 43-45 Centreway | Q38: MT WAVERLEY | R38: Vic | S38: 3149 | AJ38: Multinet Gas
B39: Murraylink | C39: Murraylink | D39: 79181207909 | E39: SA | F39: Electricity | G39: Transmission | H39: Revenue cap | I39: Financial | J39: June | K39: 5 | L39: 5 | M39: 5 | N39: transmission determination | O39: Level 19 | P39: 580 George Street | Q39: SYDNEY | R39: NSW | S39: 2000 | T39: PO Box R41 | V39: ROYAL EXCHANGE | W39: NSW | X39: 1225 | AE39: CBD | AF39: Urban | AG39: Short rural | AH39: Long rural | AJ39: Murraylink
B40: Power and Water | C40: Power and Water Corporation | D40: 15947352360 | E40: NT | F40: Electricity | G40: Distribution | H40: Revenue cap | I40: Financial | J40: June | K40: 5 | L40: 5 | M40: x | N40: distribution determination | O40: GPO Box 1921 | Q40: DARWIN | R40: NT | S40: 0801 | T40: GPO Box 1921 | V40: DARWIN | W40: NT | X40: 0801 | Y40: YES | Z40: YES | AA40: YES | AB40: YES | AC40: NO
B41: Powercor Australia | C41: Powercor Australia | D41: 89064651109 | E41: Vic | F41: Electricity | G41: Distribution | H41: Revenue cap | I41: Calendar | J41: December | K41: 5 | L41: 5 | M41: 2 | N41: 2016-20 Distribution Determination | O41: 40 Market Street | Q41: MELBOURNE | R41: Vic | S41: 3000 | T41: Locked bag 14090 | V41: MELBOURNE | W41: VIC | X41: 8001 | AA41: YES | AB41: YES | AC41: NO | AE41: CBD | AF41: Urban | AG41: Short rural | AH41: Long rural | AJ41: Powercor Australia
B42: Powerlink | C42: Queensland Electricity Transmission Corporation Limited trading as Powerlink Queensland | D42: 82078849233 | E42: Qld | F42: Electricity | G42: Transmission | H42: Revenue cap | I42: Financial | J42: June | K42: 5 | L42: 5 | M42: 5 | N42: transmission determination | O42: 33 Harold St | Q42: VIRGINIA | R42: Qld | S42: 4014 | T42: PO Box 1193 | V42: VIRGINIA | W42: QLD | X42: 4014 | AE42: CBD | AF42: Urban | AG42: Short rural | AH42: Long rural | AJ42: Powerlink
B43: Roma to Brisbane Pipeline | C43: APT Petroleum Pipelines Limited t/a Roma to Brisbane Pipeline | D43: 009 737 393 | E43: Qld | F43: Gas | G43: Transmission | H43: Weighted average price cap | I43: Financial | J43: June | K43: 5 | L43: 5 | M43: x | N43: n/a | O43: 580 George Street | Q43: SYDNEY | R43: NSW | S43: 2000 | T43: PO Box R41 | V43: ROYAL EXCHANGE | W43: NSW | X43: 1225 | AE43: CBD | AF43: Urban | AG43: Short rural | AH43: Long rural | AJ43: Roma to Brisbane Pipeline
B44: SA Power Networks | C44: SA Power Networks | D44: 13332330749 | E44: SA | F44: Electricity | G44: Distribution | H44: Revenue cap | I44: Financial | J44: June | K44: 5 | L44: 5 | M44: 5 | N44: 2015-20 Distribution Determination | O44: 1 Anzac Highway | Q44: KESWICK | R44: SA | S44: 5035 | T44: GPO Box 77 | V44: ADELAIDE | W44: SA | X44: 5000 | AA44: YES | AB44: YES | AC44: NO | AE44: CBD | AF44: Urban | AG44: Short rural | AH44: Long rural | AJ44: SA Power Networks
B45: TasNetworks (D) | C45: TasNetworks (D) | D45: 24167357299 | E45: Tas | F45: Electricity | G45: Distribution | H45: Revenue cap | I45: Financial | J45: June | K45: 5 | L45: 5 | M45: 5 | N45: distribution determination | O45: 1-7 Maria Street | Q45: LENAH VALLEY | R45: Tas | S45: 7008 | T45: PO Box 606 | V45: MOONAH | W45: Tas | X45: 7009 | AA45: YES | AB45: YES | AC45: YES | AE45: Critical Infrastructure | AF45: High density commercial | AG45: Urban | AH45: High density rural | AI45: Low density rural | AJ45: TasNetworks (D)
B46: TasNetworks (T) | C46: TasNetworks (T) | D46: 24167357299 | E46: Tas | F46: Electricity | G46: Transmission | H46: Revenue cap | I46: Financial | J46: June | K46: 5 | L46: 5 | M46: 5 | N46: transmission determination | O46: 1-7 Maria Street | Q46: LENAH VALLEY | R46: Tas | S46: 7008 | T46: PO Box 606 | V46: MOONAH | W46: Tas | X46: 7009 | AE46: CBD | AF46: Urban | AG46: Short rural | AH46: Long rural | AJ46: TasNetworks (T)
B47: TransGrid | C47: NSW Electricity Networks Operations Pty Ltd trading as TransGrid | D47: 609169959 | E47: NSW | F47: Electricity | G47: Transmission | H47: Revenue cap | I47: Financial | J47: June | K47: 5 | L47: 4 | M47: 5 | N47: transmission determination | O47: 180 Thomas Street | Q47: SYDNEY | R47: NSW | S47: 2000 | T47: PO Box A1000 | V47: SYDNEY SOUTH | W47: NSW | X47: 1235 | AE47: CBD | AF47: Urban | AG47: Short rural | AH47: Long rural | AJ47: TransGrid
B48: United Energy | C48: United Energy | D48: 70064651029 | E48: Vic | F48: Electricity | G48: Distribution | H48: Revenue cap | I48: Calendar | J48: December | K48: 5 | L48: 5 | M48: 2 | N48: 2016-20 Distribution Determination | O48: Level 3 | P48: 6 Nexus Court | Q48: MULGRAVE | R48: Vic | S48: 3149 | T48: PO Box 449 | V48: MOUNT WAVERLEY | W48: VIC | X48: 3170 | AA48: YES | AB48: NO | AC48: NO | AE48: CBD | AF48: Urban | AG48: Short rural | AH48: Long rural | AJ48: United Energy
B49: Western Power (D) | C49: Western Power (D) | D49: 18540492861 | E49: WA | F49: Electricity | G49: Distribution | H49: Revenue cap | I49: Financial | J49: June | K49: 12 | L49: 4 | M49: x | N49: distribution determination | O49: 363 Wellington Street | Q49: PERTH | R49: WA | S49: 6000 | T49: GPO Box L921 | V49: PERTH | W49: WA | X49: 6842 | AA49: YES | AB49: YES | AC49: NO | AD49: NO | AE49: CBD | AF49: Urban | AG49: Short rural | AH49: Long rural | AJ49: Western Power (D)
B50: Western Power (T) | C50: Western Power (T) | D50: 18540492861 | E50: WA | F50: Electricity | G50: Transmission | H50: Revenue cap | I50: Financial | J50: June | K50: 12 | L50: 4 | M50: x | N50: transmission determination | O50: 363 Wellington Street | Q50: PERTH | R50: WA | S50: 6000 | T50: GPO Box L921 | V50: PERTH | W50: WA | X50: 6842 | AA50: YES | AB50: YES | AC50: NO | AE50: CBD | AF50: Urban | AG50: Short rural | AH50: Long rural | AJ50: Western Power (T)
Y53: For EB & Reset RINs only | AD53: For AARs only
B54: The Reg Year Ending (dms_RYE) must be set to the last year of the regulatory period. For forecast data is is usually (FRCP_y5) for actual it is a single year (CRY). For historical actual data the RYE will need to be set manually in the business details sheet by setting the dms_Multiyear_flag to 1 and putting the correct value in 'dms_Specified_FinalYear. See cells C67:C68 | G54: =IF(dms_RPT="financial",VALUE(LEFT(CRCP_y1,4)-1)&"-"&TEXT(VALUE(RIGHT(CRCP_y1,2)-1),"00"),VALUE(LEFT(CRCP_y1,4)-1)) -> 2011 | N54: Drop down selector box for CA & Reset RINs. | O54: For CA & Reset RINs only | Y54: for DNSP only | AD54: For DNSPs only | AJ54: Reason for interruption | AK54: dms_Reason_Interruption_Detailed | AL54: dms_Reason_Interruption | AM54: dms_STPIS_Exclusion_List
B55: dms_Model_List | C55: DELETE NR 'CRY' IF NOT AN ANNUAL RIN (EB, CA , ARR) | E55: dms_RYE_Formula_Result | N55: dms_0203_ProjectType | O55: dms_020303_01_UOM | P55: dms_020501_01_UOM | Q55: dms_020501_02_UOM | R55: dms_020501_03_UOM | S55: dms_020501_04_UOM | T55: dms_020603_01_UOM | U55: dms_020701_01_UOM | V55: dms_020701_02_UOM | W55: dms_040102_01_UOM | X55: dms_040102_04_UOM | Y55: dms_030601_01_UOM | Z55: dms_030601_02_UOM | AA55: dms_030701_01_UOM | AB55: dms_030702_01_UOM | AC55: dms_030703_01_UOM | AD55: dms_030605_UOM | AE55: dms_03060703_UOM | AJ55: Animal | AK55: Animal impact | AL55: Animal | AM55: Weather
B56: ARR | C56: ANNUAL REPORTING STATEMENT | E56: =LEFT(dms_SingleYear_FinalYear_Result,2)&RIGHT(dms_SingleYear_FinalYear_Result,2) -> 2017 | F56: =LEFT(dms_SingleYear_FinalYear_Result,2)&RIGHT(dms_SingleYear_FinalYear_Result,2) | H56: Formula errors are OK | N56: New line on new route - single circuit | O56: Circuit line length in km | P56: 0's | Q56: 0's | R56: 0's | S56: 0's | T56: 0's | U56: km | V56: km | W56: 0's | X56: days | Y56: minutes/customer | Z56: minutes/customer | AA56: Customer / km | AB56: % | AC56: km | AD56: number | AE56: number | AK56: Animal nesting/burrowing, etc and other | AL56: Asset failure | AM56: Equipment failure
B57: CA | C57: CATEGORY ANALYSIS | E57: =LEFT(dms_SingleYear_FinalYear_Result,2)&RIGHT(dms_SingleYear_FinalYear_Result,2) -> 2017 | F57: =LEFT(dms_SingleYear_FinalYear_Result,2)&RIGHT(dms_SingleYear_FinalYear_Result,2) | H57: Formula errors are OK | N57: New line on new route - dual circuit | O57: Circuit line length in km | P57: 0's | Q57: 0's | R57: 0's | S57: 0's | T57: 0's | U57: 0's | V57: 0's | W57: 0's | X57: 0's | Y57: minutes/customer | Z57: minutes/customer | AA57: MWh/customer | AB57: Number of spans | AD57: number | AE57: number | AK57: Other | AL57: Other | AM57: Operational error
B58: CPI | C58: CPI | N58: New line on new route - other | O58: Circuit line length in km | P58: MVA added | Q58: MVA added | R58: MVA added | S58: MVA added | T58: 0's | U58: km | V58: km | W58: 0's | X58: $0s | Y58: interruptions/customer | Z58: interruptions/customer | AA58: kVA / customer | AB58: Number of spans | AD58: number | AE58: number | AJ58: Asset failure | AK58: LV | AL58: Overloads | AM58: Vegetation
B59: EB | C59: ECONOMIC BENCHMARKING | E59: =LEFT(dms_SingleYear_FinalYear_Result,2)&RIGHT(dms_SingleYear_FinalYear_Result,2) -> 2017 | F59: =LEFT(dms_SingleYear_FinalYear_Result,2)&RIGHT(dms_SingleYear_FinalYear_Result,2) | H59: Formula errors are OK | N59: Line rebuild over existing route - single circuit | O59: Circuit line length in km | P59: 0's | Q59: 0's | R59: 0's | S59: 0's | T59: 0's | U59: km | V59: km | W59: $0s | X59: 0's | Y59: interruptions/customer | Z59: interruptions/customer | AB59: Number of spans | AD59: number | AE59: number | AK59: Distribution substation | AL59: Planned | AM59: Animals
B60: PTRM | C60: POST TAX REVENUE MODEL | E60: =LEFT(dms_MultiYear_FinalYear_Result,2)&RIGHT(dms_MultiYear_FinalYear_Result,2) -> 2021 | F60: =LEFT(dms_MultiYear_FinalYear_Result,2)&RIGHT(dms_MultiYear_FinalYear_Result,2) | N60: Line rebuild over existing route - dual circuit | O60: Number | P60: total spend $0s | Q60: total spend $0s | R60: total spend $0s | S60: total spend $0s | T60: (per cent) | U60: 0's | V60: 0's | AB60: Number of spans | AD60: number | AE60: (per cent) | AK60: HV | AL60: Network business | AM60: Third party impacts
B61: Reset | C61: REGULATORY REPORTING STATEMENT | E61: =LEFT(dms_MultiYear_FinalYear_Result,2)&RIGHT(dms_MultiYear_FinalYear_Result,2) -> 2021 | F61: =LEFT(dms_MultiYear_FinalYear_Result,2)&RIGHT(dms_MultiYear_FinalYear_Result,2) | H61: Formula errors are OK | N61: Reconductor - Single circuit | O61: Number | P61: net circuit km added | Q61: net circuit km added | R61: net circuit km added | S61: net circuit km added | U61: years | V61: years | AB61: Years | AD61: number | AK61: Zone substation | AL61: Third party | AM61: Transmission failure
B62: RFM | C62: ROLL FORWARD MODEL | E62: =LEFT(dms_CRCP_FinalYear_Result,2)&RIGHT(dms_CRCP_FinalYear_Result,2) -> 2017 | F62: =LEFT(dms_CRCP_FinalYear_Result,2)&RIGHT(dms_CRCP_FinalYear_Result,2) | N62: Reconductor - Dual circuit | O62: Number | P62: total spend $0s | Q62: total spend $0s | R62: total spend $0s | S62: total spend $0s | AB62: Years | AD62: number | AK62: Subtransmission | AL62: Unknown | AM62: Load shedding
B63: WACC | C63: WEIGHTED AVERAGE COST OF CAPITAL | E63: =LEFT(dms_MultiYear_FinalYear_Result,2)&RIGHT(dms_MultiYear_FinalYear_Result,2) -> 2021 | F63: =LEFT(dms_MultiYear_FinalYear_Result,2)&RIGHT(dms_MultiYear_FinalYear_Result,2) | N63: Other | P63: net circuit km added | Q63: net circuit km added | R63: net circuit km added | S63: net circuit km added | AB63: Trees | AD63: number | AJ63: Other | AK63: insert description of 'other' | AL63: Vegetation | AM63: Inter-distributor connection failure
P64: total spend $0s | Q64: total spend $0s | R64: total spend $0s | S64: total spend $0s | AB64: Trees | AD64: number | AJ64: Overloads | AK64: - | AL64: Weather | AM64: Other
B65: dms_DataQuality_List | P65: 0's | R65: $0s | AB65: Defects | AD65: number | AJ65: Planned | AK65: - | AL65: 2 - STPIS Exclusion (3.3)(a)
B66: Actual | P66: 0's | AB66: Defects | AD66: number | AJ66: Network business | AK66: Network error | AL66: 3 - STPIS Exclusion (3.3)(a)
B67: Estimate | P67: 0's | AB67: Spans | AD67: number | AK67: Switching and protection error | AL67: 4 - STPIS Exclusion (3.3)(a)
B68: Consolidated | P68: $0s | AB68: km | AD68: (per cent) | AJ68: Third party | AK68: Fire | AL68: 5 - STPIS Exclusion (3.3)(a)
B69: Recast | AB69: Spans | AD69: (per cent) | AK69: Other | AL69: 6 - STPIS Exclusion (3.3)(a)
B70: Public | AK70: Dig-in | AL70: 7 - STPIS Exclusion (3.3)(a)
AK71: Unauthorised access
B72: For all files either AER or business needs to be able to specify the type of submission | C72: For PTRM & RFM templates we must provide a choice in case they change their form of control - otherwise it is drawn from the business specific lookup table above. | O72: For PTRM files - this field set the text for the named range "DMS_Xfactor" which in all cases is simply the text "x factors" - this saves putting in each old gas PTRM file | Y72: for TNSP only | AK72: Vehicle impact
B73: dms_SourceList | C73: dms_FormControl_Choices | O73: DMS_Xfactor | Y73: dms_030601_01_UOM | AA73: dms_030701_01_UOM | AB73: dms_030702_01_UOM | AJ73: Unknown | AK73: Unknown
B74: After appeal | C74: Revenue cap | O74: x factors | Y74: % | AA74: Number of spans | AB74: km | AJ74: Vegetation | AK74: Blow-in/Fall-in - NSP responsibility
B75: Draft decision | C75: Revenue yield | Y75: number | AA75: Years | AB75: % | AK75: Grow-in - NSP responsibility
B76: Final decision | C76: Weighted average price cap | Y76: number | AA76: Trees | AB76: km | AK76: Blow-in/Fall-in - Other responsible party
B77: PTRM update 1 | Y77: % | AA77: Defects | AB77: number | AK77: Grow-in - Other responsible party
B78: PTRM update 2 | Y78: number | AA78: Number of spans | AJ78: Weather
B79: PTRM update 3 | Y79: number | AA79: km | AJ79: 2 - STPIS Exclusion (3.3)(a)
B80: PTRM update 4 | Y80: % | AA80: km | AJ80: 3 - STPIS Exclusion (3.3)(a)
B81: PTRM update 5 | Y81: number | AA81: Number of spans | AJ81: 4 - STPIS Exclusion (3.3)(a)
B82: PTRM update 6 | Y82: number | AJ82: 5 - STPIS Exclusion (3.3)(a)
B83: PTRM update 7 | Y83: % | AJ83: 6 - STPIS Exclusion (3.3)(a)
B84: Regulatory proposal | Y84: number | AJ84: 7 - STPIS Exclusion (3.3)(a)
B85: Reporting | Y85: %
B86: Revised regulatory proposal | Y86: number
Y87: %
Y88: number
B92: These are indeces and lookup values for various dates. All step from the value placed in FRCP_y1 on the business and other details worksheet | L92: These date tables are currently used in the Recast templates to provide column headings and conditional formatting
B93: dms_FRCPlength_Num_List | C93: dms_FinalYear_List | D93: dms_CRCPlength_Num_List | E93: dms_CFinalYear_List | F93: dms_FRCP_years | H93: dms_CRCP_years | J93: dms_CRCP_index | L93: CRY from input cell on business sheet | M93: CRY - financial | N93: dms_FinYears | O93: CRY calendar | P93: dms_CalYears
B94: 1 | C94: dms_FRCP_y1 | D94: 1 | E94: CRCP_y1 | F94: =FRCP_y1 -> 2017 | G94: dms_FRCP_y1 | H94: =IF(dms_RPT="financial",VALUE(LEFT(dms_FRCP_y1,4)-1)&"-"&TEXT(VALUE(MID(dms_FRCP_y1,3,2)),"00"),VALUE(LEFT(dms_FRCP_y1,4)-1)) -> 2016 | I94: dms_CRCP_yZ | J94: 1 | L94: =CRY -> 2017 | M94: =VALUE(LEFT(CRY,4))&"-"&TEXT(MID(CRY,3,2)+1,"00") -> 2017-18 | N94: dms_CRYf_y1 | O94: =VALUE(LEFT(CRY,4)+1) -> 2018 | P94: dms_CRYc_y1
B95: 2 | C95: dms_FRCP_y2 | D95: 2 | E95: CRCP_y2 | F95: =IF(dms_RPT="financial",VALUE(LEFT(dms_FRCP_y1,4)+1)&"-"&TEXT(VALUE(RIGHT(dms_FRCP_y1,2)+1),"00"),VALUE(LEFT(dms_FRCP_y1,4)+1)) -> 2018 | G95: dms_FRCP_y2 | H95: =IF(dms_RPT="financial",VALUE(LEFT(dms_CRCP_yZ,4)-1)&"-"&TEXT(VALUE(MID(dms_CRCP_yZ,3,2)),"00"),VALUE(LEFT(dms_CRCP_yZ,4)-1)) -> 2015 | I95: dms_CRCP_yY | J95: 2 | M95: =VALUE(LEFT(dms_CRYf_y1,4)+1)&"-"&TEXT(MID(dms_CRYf_y1,3,2)+2,"00") -> 2018-19 | N95: dms_CRYf_y2 | O95: =VALUE(LEFT(dms_CRYc_y1,4)+1) -> 2019 | P95: dms_CRYc_y2
B96: 3 | C96: dms_FRCP_y3 | D96: 3 | E96: CRCP_y3 | F96: =IF(dms_RPT="financial",VALUE(LEFT(dms_FRCP_y2,4)+1)&"-"&TEXT(VALUE(RIGHT(dms_FRCP_y2,2)+1),"00"),VALUE(LEFT(dms_FRCP_y2,4)+1)) -> 2019 | G96: dms_FRCP_y3 | H96: =IF(dms_RPT="financial",VALUE(LEFT(dms_CRCP_yY,4)-1)&"-"&TEXT(VALUE(MID(dms_CRCP_yY,3,2)),"00"),VALUE(LEFT(dms_CRCP_yY,4)-1)) -> 2014 | I96: dms_CRCP_yX | J96: 3 | M96: =VALUE(LEFT(dms_CRYf_y2,4)+1)&"-"&TEXT(MID(dms_CRYf_y2,3,2)+2,"00") -> 2019-20 | N96: dms_CRYf_y3 | O96: =VALUE(LEFT(dms_CRYc_y2,4)+1) -> 2020 | P96: dms_CRYc_y3
B97: 4 | C97: dms_FRCP_y4 | D97: 4 | E97: CRCP_y4 | F97: =IF(dms_RPT="financial",VALUE(LEFT(dms_FRCP_y3,4)+1)&"-"&TEXT(VALUE(RIGHT(dms_FRCP_y3,2)+1),"00"),VALUE(LEFT(dms_FRCP_y3,4)+1)) -> 2020 | G97: dms_FRCP_y4 | H97: =IF(dms_RPT="financial",VALUE(LEFT(dms_CRCP_yX,4)-1)&"-"&TEXT(VALUE(MID(dms_CRCP_yX,3,2)),"00"),VALUE(LEFT(dms_CRCP_yX,4)-1)) -> 2013 | I97: dms_CRCP_yW | J97: 4 | M97: =VALUE(LEFT(dms_CRYf_y3,4)+1)&"-"&TEXT(MID(dms_CRYf_y3,3,2)+2,"00") -> 2020-21 | N97: dms_CRYf_y4 | O97: =VALUE(LEFT(dms_CRYc_y3,4)+1) -> 2021 | P97: dms_CRYc_y4
B98: 5 | C98: dms_FRCP_y5 | D98: 5 | E98: CRCP_y5 | F98: =IF(dms_RPT="financial",VALUE(LEFT(dms_FRCP_y4,4)+1)&"-"&TEXT(VALUE(RIGHT(dms_FRCP_y4,2)+1),"00"),VALUE(LEFT(dms_FRCP_y4,4)+1)) -> 2021 | G98: dms_FRCP_y5 | H98: =IF(dms_RPT="financial",VALUE(LEFT(dms_CRCP_yW,4)-1)&"-"&TEXT(VALUE(MID(dms_CRCP_yW,3,2)),"00"),VALUE(LEFT(dms_CRCP_yW,4)-1)) -> 2012 | I98: dms_CRCP_yV | J98: 5 | M98: =VALUE(LEFT(dms_CRYf_y4,4)+1)&"-"&TEXT(MID(dms_CRYf_y4,3,2)+2,"00") -> 2021-22 | N98: dms_CRYf_y5 | O98: =VALUE(LEFT(dms_CRYc_y4,4)+1) -> 2022 | P98: dms_CRYc_y5
B99: 6 | C99: dms_FRCP_y6 | D99: 6 | E99: CRCP_y6 | F99: =IF(dms_RPT="financial",VALUE(LEFT(dms_FRCP_y5,4)+1)&"-"&TEXT(VALUE(RIGHT(dms_FRCP_y5,2)+1),"00"),VALUE(LEFT(dms_FRCP_y5,4)+1)) -> 2022 | G99: dms_FRCP_y6 | H99: =IF(dms_RPT="financial",VALUE(LEFT(dms_CRCP_yV,4)-1)&"-"&TEXT(VALUE(MID(dms_CRCP_yV,3,2)),"00"),VALUE(LEFT(dms_CRCP_yV,4)-1)) -> 2011 | I99: dms_CRCP_yU | J99: 6 | M99: =VALUE(LEFT(dms_CRYf_y5,4)+1)&"-"&TEXT(MID(dms_CRYf_y5,3,2)+2,"00") -> 2022-23 | N99: dms_CRYf_y6 | O99: =VALUE(LEFT(dms_CRYc_y5,4)+1) -> 2023 | P99: dms_CRYc_y6
B100: 7 | C100: dms_FRCP_y7 | D100: 7 | E100: CRCP_y7 | F100: =IF(dms_RPT="financial",VALUE(LEFT(dms_FRCP_y6,4)+1)&"-"&TEXT(VALUE(RIGHT(dms_FRCP_y6,2)+1),"00"),VALUE(LEFT(dms_FRCP_y6,4)+1)) -> 2023 | G100: dms_FRCP_y7 | H100: =IF(dms_RPT="financial",VALUE(LEFT(dms_CRCP_yU,4)-1)&"-"&TEXT(VALUE(MID(dms_CRCP_yU,3,2)),"00"),VALUE(LEFT(dms_CRCP_yU,4)-1)) -> 2010 | I100: dms_CRCP_yT | J100: 7 | M100: =VALUE(LEFT(dms_CRYf_y6,4)+1)&"-"&TEXT(MID(dms_CRYf_y6,3,2)+2,"00") -> 2023-24 | N100: dms_CRYf_y7 | O100: =VALUE(LEFT(dms_CRYc_y6,4)+1) -> 2024 | P100: dms_CRYc_y7
B101: 8 | C101: dms_FRCP_y8 | D101: 8 | E101: CRCP_y8 | F101: =IF(dms_RPT="financial",VALUE(LEFT(dms_FRCP_y7,4)+1)&"-"&TEXT(VALUE(RIGHT(dms_FRCP_y7,2)+1),"00"),VALUE(LEFT(dms_FRCP_y7,4)+1)) -> 2024 | G101: dms_FRCP_y8 | H101: =IF(dms_RPT="financial",VALUE(LEFT(dms_CRCP_yT,4)-1)&"-"&TEXT(VALUE(MID(dms_CRCP_yT,3,2)),"00"),VALUE(LEFT(dms_CRCP_yT,4)-1)) -> 2009 | I101: dms_CRCP_yS | J101: 8 | M101: =VALUE(LEFT(dms_CRYf_y7,4)+1)&"-"&TEXT(MID(dms_CRYf_y7,3,2)+2,"00") -> 2024-25 | N101: dms_CRYf_y8 | O101: =VALUE(LEFT(dms_CRYc_y7,4)+1) -> 2025 | P101: dms_CRYc_y8
B102: 9 | C102: dms_FRCP_y9 | D102: 9 | E102: CRCP_y9 | F102: =IF(dms_RPT="financial",VALUE(LEFT(dms_FRCP_y8,4)+1)&"-"&TEXT(VALUE(RIGHT(dms_FRCP_y8,2)+1),"00"),VALUE(LEFT(dms_FRCP_y8,4)+1)) -> 2025 | G102: dms_FRCP_y9 | H102: =IF(dms_RPT="financial",VALUE(LEFT(dms_CRCP_yS,4)-1)&"-"&TEXT(VALUE(MID(dms_CRCP_yS,3,2)),"00"),VALUE(LEFT(dms_CRCP_yS,4)-1)) -> 2008 | I102: dms_CRCP_yR | J102: 9 | M102: =VALUE(LEFT(dms_CRYf_y8,4)+1)&"-"&TEXT(MID(dms_CRYf_y8,3,2)+2,"00") -> 2025-26 | N102: dms_CRYf_y9 | O102: =VALUE(LEFT(dms_CRYc_y8,4)+1) -> 2026 | P102: dms_CRYc_y9
B103: 10 | C103: dms_FRCP_y10 | D103: 10 | E103: CRCP_y10 | F103: =IF(dms_RPT="financial",VALUE(LEFT(dms_FRCP_y9,4)+1)&"-"&TEXT(VALUE(RIGHT(dms_FRCP_y9,2)+1),"00"),VALUE(LEFT(dms_FRCP_y9,4)+1)) -> 2026 | G103: dms_FRCP_y10 | H103: =IF(dms_RPT="financial",VALUE(LEFT(dms_CRCP_yR,4)-1)&"-"&TEXT(VALUE(MID(dms_CRCP_yR,3,2)),"00"),VALUE(LEFT(dms_CRCP_yR,4)-1)) -> 2007 | I103: dms_CRCP_yQ | J103: 10 | M103: =VALUE(LEFT(dms_CRYf_y9,4)+1)&"-"&TEXT(MID(dms_CRYf_y9,3,2)+2,"00") -> 2026-27 | N103: dms_CRYf_y10 | O103: =VALUE(LEFT(dms_CRYc_y9,4)+1) -> 2027 | P103: dms_CRYc_y10
B104: 11 | C104: dms_FRCP_y11 | D104: 11 | E104: CRCP_y11 | F104: =IF(dms_RPT="financial",VALUE(LEFT(dms_FRCP_y10,4)+1)&"-"&TEXT(VALUE(RIGHT(dms_FRCP_y10,2)+1),"00"),VALUE(LEFT(dms_FRCP_y10,4)+1)) -> 2027 | G104: dms_FRCP_y11 | H104: =IF(dms_RPT="financial",VALUE(LEFT(dms_CRCP_yQ,4)-1)&"-"&TEXT(VALUE(MID(dms_CRCP_yQ,3,2)),"00"),VALUE(LEFT(dms_CRCP_yQ,4)-1)) -> 2006 | I104: dms_CRCP_yP | J104: 11 | M104: =VALUE(LEFT(dms_CRYf_y10,4)+1)&"-"&TEXT(MID(dms_CRYf_y10,3,2)+2,"00") -> 2027-28 | N104: dms_CRYf_y11 | O104: =VALUE(LEFT(dms_CRYc_y10,4)+1) -> 2028 | P104: dms_CRYc_y11
B105: 12 | C105: dms_FRCP_y12 | D105: 12 | E105: CRCP_y12 | F105: =IF(dms_RPT="financial",VALUE(LEFT(dms_FRCP_y11,4)+1)&"-"&TEXT(VALUE(RIGHT(dms_FRCP_y11,2)+1),"00"),VALUE(LEFT(dms_FRCP_y11,4)+1)) -> 2028 | G105: dms_FRCP_y12 | H105: =IF(dms_RPT="financial",VALUE(LEFT(dms_CRCP_yP,4)-1)&"-"&TEXT(VALUE(MID(dms_CRCP_yP,3,2)),"00"),VALUE(LEFT(dms_CRCP_yP,4)-1)) -> 2005 | I105: dms_CRCP_yO | J105: 12 | M105: =VALUE(LEFT(dms_CRYf_y11,4)+1)&"-"&TEXT(MID(dms_CRYf_y11,3,2)+2,"00") -> 2028-29 | N105: dms_CRYf_y12 | O105: =VALUE(LEFT(dms_CRYc_y11,4)+1) -> 2029 | P105: dms_CRYc_y12
B106: 13 | C106: dms_FRCP_y13 | D106: 13 | E106: CRCP_y13 | F106: =IF(dms_RPT="financial",VALUE(LEFT(dms_FRCP_y12,4)+1)&"-"&TEXT(VALUE(RIGHT(dms_FRCP_y12,2)+1),"00"),VALUE(LEFT(dms_FRCP_y12,4)+1)) -> 2029 | G106: dms_FRCP_y13 | H106: =IF(dms_RPT="financial",VALUE(LEFT(dms_CRCP_yO,4)-1)&"-"&TEXT(VALUE(MID(dms_CRCP_yO,3,2)),"00"),VALUE(LEFT(dms_CRCP_yO,4)-1)) -> 2004 | I106: dms_CRCP_yN | J106: 13 | M106: =VALUE(LEFT(dms_CRYf_y12,4)+1)&"-"&TEXT(MID(dms_CRYf_y12,3,2)+2,"00") -> 2029-30 | N106: dms_CRYf_y13 | O106: =VALUE(LEFT(dms_CRYc_y12,4)+1) -> 2030 | P106: dms_CRYc_y13
B107: 14 | C107: dms_FRCP_y14 | D107: 14 | E107: CRCP_y14 | F107: =IF(dms_RPT="financial",VALUE(LEFT(dms_FRCP_y13,4)+1)&"-"&TEXT(VALUE(RIGHT(dms_FRCP_y13,2)+1),"00"),VALUE(LEFT(dms_FRCP_y13,4)+1)) -> 2030 | G107: dms_FRCP_y14 | H107: =IF(dms_RPT="financial",VALUE(LEFT(dms_CRCP_yN,4)-1)&"-"&TEXT(VALUE(MID(dms_CRCP_yN,3,2)),"00"),VALUE(LEFT(dms_CRCP_yN,4)-1)) -> 2003 | I107: dms_CRCP_yM | J107: 14 | M107: =VALUE(LEFT(dms_CRYf_y13,4)+1)&"-"&TEXT(MID(dms_CRYf_y13,3,2)+2,"00") -> 2030-31 | N107: dms_CRYf_y14 | O107: =VALUE(LEFT(dms_CRYc_y13,4)+1) -> 2031 | P107: dms_CRYc_y14
B108: 15 | C108: dms_FRCP_y15 | D108: 15 | E108: CRCP_y15 | F108: =IF(dms_RPT="financial",VALUE(LEFT(dms_FRCP_y14,4)+1)&"-"&TEXT(VALUE(RIGHT(dms_FRCP_y14,2)+1),"00"),VALUE(LEFT(dms_FRCP_y14,4)+1)) -> 2031 | G108: dms_FRCP_y15 | H108: =IF(dms_RPT="financial",VALUE(LEFT(dms_CRCP_yM,4)-1)&"-"&TEXT(VALUE(MID(dms_CRCP_yM,3,2)),"00"),VALUE(LEFT(dms_CRCP_yM,4)-1)) -> 2002 | I108: dms_CRCP_yL | J108: 15 | M108: =VALUE(LEFT(dms_CRYf_y14,4)+1)&"-"&TEXT(MID(dms_CRYf_y14,3,2)+2,"00") -> 2031-32 | N108: dms_CRYf_y15 | O108: =VALUE(LEFT(dms_CRYc_y14,4)+1) -> 2032 | P108: dms_CRYc_y15
M109: =VALUE(LEFT(dms_CRYf_y15,4)+1)&"-"&TEXT(MID(dms_CRYf_y15,3,2)+2,"00") -> 2032-33 | N109: dms_CRYf_y16 | O109: =VALUE(LEFT(dms_CRYc_y15,4)+1) -> 2033 | P109: dms_CRYc_y16
B110: These are drop down lists for businesses to select the correct FRCP_y1 on the business and other details worksheet. This also populates the column headings in the worksheets | M110: =VALUE(LEFT(dms_CRYf_y16,4)+1)&"-"&TEXT(MID(dms_CRYf_y16,3,2)+2,"00") -> 2033-34 | N110: dms_CRYf_y17 | O110: =VALUE(LEFT(dms_CRYc_y16,4)+1) -> 2034 | P110: dms_CRYc_y17
B111: dms_RCP_fyear_list | C111: dms_CRY_ListF | D111: dms_CRY_ListC | E111: dms_RCP_cyear_list | F111: dms_FRCP_fyear_list | G111: dms_FRCP_ListF | H111: dms_FRCP_ListC | I111: dms_FRCP_cyear_list | M111: =VALUE(LEFT(dms_CRYf_y17,4)+1)&"-"&TEXT(MID(dms_CRYf_y17,3,2)+2,"00") -> 2034-35 | N111: dms_CRYf_y18 | O111: =VALUE(LEFT(dms_CRYc_y17,4)+1) -> 2035 | P111: dms_CRYc_y18
B112: dms_fy1 | C112: 2005-06 | D112: 2006 | E112: dms_cy1 | F112: dms_frcp_fy1 | G112: 2015-16 | H112: 2016 | I112: dms_crcp_cy1 | M112: =VALUE(LEFT(dms_CRYf_y18,4)+1)&"-"&TEXT(MID(dms_CRYf_y18,3,2)+2,"00") -> 2035-36 | N112: dms_CRYf_y19 | O112: =VALUE(LEFT(dms_CRYc_y18,4)+1) -> 2036 | P112: dms_CRYc_y19
B113: dms_fy2 | C113: 2006-07 | D113: 2007 | E113: dms_cy2 | F113: dms_frcp_fy2 | G113: 2016-17 | H113: 2017 | I113: dms_crcp_cy2 | M113: =VALUE(LEFT(dms_CRYf_y19,4)+1)&"-"&TEXT(MID(dms_CRYf_y19,3,2)+2,"00") -> 2036-37 | N113: dms_CRYf_y20 | O113: =VALUE(LEFT(dms_CRYc_y19,4)+1) -> 2037 | P113: dms_CRYc_y20
B114: dms_fy3 | C114: 2007-08 | D114: 2008 | E114: dms_cy3 | F114: dms_frcp_fy3 | G114: 2017-18 | H114: 2018 | I114: dms_crcp_cy3
B115: dms_fy4 | C115: 2008-09 | D115: 2009 | E115: dms_cy4 | F115: dms_frcp_fy4 | G115: 2018-19 | H115: 2019 | I115: dms_crcp_cy4
B116: dms_fy5 | C116: 2009-10 | D116: 2010 | E116: dms_cy5 | F116: dms_frcp_fy5 | G116: 2019-20 | H116: 2020 | I116: dms_crcp_cy5
B117: dms_fy6 | C117: 2010-11 | D117: 2011 | E117: dms_cy6 | F117: dms_frcp_fy6 | G117: 2020-21 | H117: 2021 | I117: dms_crcp_cy6
B118: dms_fy7 | C118: 2011-12 | D118: 2012 | E118: dms_cy7 | F118: dms_frcp_fy7 | G118: 2021-22 | H118: 2022 | I118: dms_crcp_cy7
B119: dms_fy8 | C119: 2012-13 | D119: 2013 | E119: dms_cy8 | F119: dms_frcp_fy8 | G119: 2022-23 | H119: 2023 | I119: dms_crcp_cy8 | L119: 2005-06 | M119: 2006
B120: dms_fy9 | C120: 2013-14 | D120: 2014 | E120: dms_cy9 | F120: dms_frcp_fy9 | G120: 2023-24 | H120: 2024 | I120: dms_crcp_cy9 | L120: 2006-07 | M120: 2007
B121: dms_fy10 | C121: 2014-15 | D121: 2015 | E121: dms_cy10 | F121: dms_frcp_fy10 | G121: 2024-25 | H121: 2025 | I121: dms_crcp_cy10 | L121: 2007-08 | M121: 2008
B122: dms_fy11 | C122: 2015-16 | D122: 2016 | E122: dms_cy11 | F122: dms_frcp_fy11 | G122: 2025-26 | H122: 2026 | I122: dms_crcp_cy11 | L122: 2008-09 | M122: 2009
B123: dms_fy12 | C123: 2016-17 | D123: 2017 | E123: dms_cy12 | F123: dms_frcp_fy12 | G123: 2026-27 | H123: 2027 | I123: dms_crcp_cy12 | L123: 2009-10 | M123: 2010
B124: dms_fy13 | C124: 2017-18 | D124: 2018 | E124: dms_cy13 | F124: dms_frcp_fy13 | G124: 2027-28 | H124: 2028 | I124: dms_crcp_cy13 | L124: 2010-11 | M124: 2011
B125: dms_fy14 | C125: 2018-19 | D125: 2019 | E125: dms_cy14 | F125: dms_frcp_fy14 | G125: 2028-29 | H125: 2029 | I125: dms_crcp_cy14 | L125: 2011-12 | M125: 2012
B126: dms_fy15 | C126: 2019-20 | D126: 2020 | E126: dms_cy15 | F126: dms_frcp_fy15 | G126: 2029-30 | H126: 2030 | I126: dms_crcp_cy15 | L126: 2012-13 | M126: 2013
B127: dms_fy16 | C127: 2020-21 | D127: 2021 | E127: dms_cy16 | L127: 2013-14 | M127: 2014
B128: dms_fy17 | C128: 2021-22 | D128: 2022 | E128: dms_cy17 | L128: 2014-15 | M128: 2015
B129: dms_fy18 | C129: 2022-23 | D129: 2023 | E129: dms_cy18 | L129: 2015-16 | M129: 2016
B130: dms_fy19 | C130: 2023-24 | D130: 2024 | E130: dms_cy19 | L130: 2016-17 | M130: 2017
B131: dms_fy20 | C131: 2024-25 | D131: 2025 | E131: dms_cy20 | L131: 2017-18 | M131: 2018
L132: 2018-19 | M132: 2019
L133: 2019-20 | M133: 2020
L134: 2020-21 | M134: 2021
L135: 2021-22 | M135: 2022
L136: 2022-23 | M136: 2023
L137: 2023-24 | M137: 2024
L138: 2024-25 | M138: 2025
L139: 2025-26 | M139: 2026
L140: 2026-27 | M140: 2027
L141: 2027-28 | M141: 2028
L142: 2028-29 | M142: 2029
L143: 2029-30 | M143: 2030
L144: 2030-31 | M144: 2031
L145: 2031-32 | M145: 2032
L146: 2032-33 | M146: 2033
L147: 2033-34 | M147: 2034
L148: 2034-35 | M148: 2035
L149: 2035-36 | M149: 2036

Sheet Instructions
B2: =CONCATENATE(dms_Segment," Network Service Provider") -> Distribution Network Service Provider
B3: =IF(dms_Model="Reset","Regulatory Proposal RIN Template","Annual Reporting RIN") -> Annual Reporting RIN
C4: =CONCATENATE("This template is to be used by ",dms_TradingName," to fulfil its reporting obligations to the AER.") -> This template is to be used by United Energy to fulfil its reporting obligations to the AER.
C5: INSTRUCTIONS
C6: Complete the Business & other details worksheet before entering data or values in any other worksheets. The Business & other details worksheet is linked to other worksheets within the workbook and automatically generates certain column headings and conditional formatting.
C8: Identifying CONFIDENTIAL INFORMATION: Please use the macro at the top of each worksheet to identify confidential information.
C9: -Do this by selecting the cell or cells that contain confidential information and then run the Mark selected cells as CONFIDENTIAL macro. This will format the cells a specific colour that is identified by the AER's database which in turn marks that information as confidential. -To reverse this, select the cell or cells and run the Return cells to NON-CONFIDENTIAL macro.
C11: UNITS OF MEASURE All amounts are to be unrounded and reported on a one for one basis: that is 1000 is to be entered as '1000'. Applicable units of measure may be identified in the table column headings or row descriptors.
C13: COLOUR CODING OF INPUT / NON-INPUT CELLS:
D14: Yellow = Input cell (mandatory)
D15: Darker yellow = input cell (mandatory)
D16: Orange = input cell (if data available)
D17: Grey = Not applicable/No inputs required
D18: PLEASE DO NOT ENTER TEXT into cells that are to contain numeric data.
C21: WORKSHEET NAVIGATION Many tables in the worksheets have been "grouped" to allow for easy navigation. To ungroup or group data use the outline symbols in the left margin (for Row groupings) or above the columns (for column groupings).
C23: RETURNING COMPLETED RESPONSES Please return two (2) files to the AER: 1. A confidential version which must contain a complete set of all responses with confidential information marked using the Mark selection CONFIDENTIAL macro and which has been completed using the locked template file provided by the AER. 2. A public version with confidential information either removed completely or aggregated in some form together with writtten consent to disclose the public version of the response. Use the drop down box on the Business and other details worksheet to identify the file as either confidential ('consolidated') or public.
C25: SUBMITTING AMENDED DATA TO THE AER If an NSP wishes to correct data previously submitted to the AER it should resubmit that data using the original completed submission as the starting point. Please make any necessary changes to the data. Data that is not being amended should be left unchanged. NSPs must identify the reason for the amendments in the Amendment Reason box on the Business and other details worksheet. NSPs may provide further details regarding any amendments in the Amendments worksheet. .
C26: NSP may use Amended Data macro to highlight cells that contain amended data. NB: if data is also CONFIDENTIAL, re-apply the Confidentiality macro after applying the Amended macro
C27: Please resubmit two (2) files - a confidential version and a public version of the amended submission to the AER

Sheet Contents
B3: =CONCATENATE(dms_Segment," Network Service Provider") -> Distribution Network Service Provider
B4: Annual Reporting RIN Template
B5: Table of Contents
C8: Instructions
C9: Business & other details
B12: CATEGORY ANALYSIS | C12: STPIS | D12: STATUTORY ACCOUNTS
B14: 2.11 Labour | C14: 6.2 STPIS Reliability | D14: 8.1 Income
C15: 6.6 STPIS Customer Service | D15: 8.2 Capex
C16: 6.7 STPIS Daily Performance
C17: 6.8 STPIS Exclusions | D17: 8.4 Opex
C18: 6.9 STPIS GSL
B22: NETWORK PERFORMANCE | C22: OTHER INFORMATION | D22: PRICING PROPOSAL
D23: Victorian Businesses Only
B24: 3.6 Quality of services | C24: 7.8 Avoided Cost Payments
B25: 3.6.8 Network-feeders | C25: 7.10 Juris Scheme | D25: 9.5 TUoS
B26: 3.6.9 Network-reliability | C26: 7.11 DMIS-DMIA
C27: 7.12 Safety and Bushfire
C28: 7.13 TARC
B29: PUBLIC LIGHTING
B31: 4.1 Public lighting tariffs

Sheet Business & other details
B1: =(LOOKUP(dms_Model,dms_Model_List,dms_Worksheet_List)) -> ANNUAL REPORTING STATEMENT
B2: =dms_TradingName -> United Energy
B3: =CONCATENATE("Annual Reporting RIN Response ",CRY) -> Annual Reporting RIN Response 2017
B4: BUSINESS & OTHER DETAILS
B7: Instructions
B8: Complete the following business details regulatory template before entering data or values in any other regulatory template. This regulatory template is linked to other cells within the spreadsheet and automatically generates column headings and conditional formatting to distinguish business specific input and non-input cells.
B10: SUBMISSION PARTICULARS INPUT SHEETS
B12: ENTITY DETAILS
B14: Short name | C14: United Energy | F14: Select business name from drop down list first
B15: ACN / ABN | C15: =INDEX(dms_ABN_List,MATCH(dms_TradingName,dms_TradingName_List)) -> 70064651029
B18: Business address | C18: Address 1 | E18: 43-45 Centreway
D19: Address 2
C20: Suburb | E20: Mount Waverley
D21: State | E21: Vic | F21: p/code | G21: 3149
B23: Postal address | C23: Address 1 | E23: PO Box 449
D24: Address 2
C25: Suburb | E25: Mount Waverley
D26: State | E26: VIC | F26: p/code | G26: 3149
B29: Contact name/s | C29: Mark de Villiers
B30: Contact phone/s
B31: Contact email address/s
B33: REGULATORY CONTROL PERIODS
B35: Forthcoming regulatory control period | C35: 2017 | D35: =dms_FRCP_y2 -> 2018 | E35: =dms_FRCP_y3 -> 2019 | F35: =dms_FRCP_y4 -> 2020 | G35: =dms_FRCP_y5 -> 2021 | H35: =dms_FRCP_y6 -> 2022 | I35: =dms_FRCP_y7 -> 2023 | J35: =dms_FRCP_y8 -> 2024 | K35: =dms_FRCP_y9 -> 2025 | L35: =dms_FRCP_y10 -> 2026
B38: Current regulatory control period | C38: =dms_CRCP_FirstYear_Result -> 2012 | D38: =IF(dms_RPT="financial",VALUE(LEFT(CRCP_y1,4)+1)&"-"&TEXT(MID(CRCP_y1,3,2)+2,"00"),VALUE(LEFT(CRCP_y1,4)+1)) -> 2013 | E38: =IF(dms_RPT="financial",VALUE(LEFT(CRCP_y2,4)+1)&"-"&TEXT(VALUE(MID(CRCP_y2,3,2)+2),"00"),VALUE(LEFT(CRCP_y2,4)+1)) -> 2014 | F38: =IF(dms_RPT="financial",VALUE(LEFT(CRCP_y3,4)+1)&"-"&TEXT(VALUE(MID(CRCP_y3,3,2)+2),"00"),VALUE(LEFT(CRCP_y3,4)+1)) -> 2015 | G38: =IF(dms_RPT="financial",VALUE(LEFT(CRCP_y4,4)+1)&"-"&TEXT(VALUE(MID(CRCP_y4,3,2)+2),"00"),VALUE(LEFT(CRCP_y4,4)+1)) -> 2016 | H38: =IF(dms_RPT="financial",VALUE(LEFT(CRCP_y5,4)+1)&"-"&TEXT(VALUE(MID(CRCP_y5,3,2)+2),"00"),VALUE(LEFT(CRCP_y5,4)+1)) -> 2017 | I38: =IF(dms_RPT="financial",VALUE(LEFT(CRCP_y6,4)+1)&"-"&TEXT(VALUE(MID(CRCP_y6,3,2)+2),"00"),VALUE(LEFT(CRCP_y6,4)+1)) -> 2018 | J38: =IF(dms_RPT="financial",VALUE(LEFT(CRCP_y7,4)+1)&"-"&TEXT(VALUE(MID(CRCP_y7,3,2)+2),"00"),VALUE(LEFT(CRCP_y7,4)+1)) -> 2019 | K38: =IF(dms_RPT="financial",VALUE(LEFT(CRCP_y8,4)+1)&"-"&TEXT(VALUE(MID(CRCP_y8,3,2)+2),"00"),VALUE(LEFT(CRCP_y8,4)+1)) -> 2020 | L38: =IF(dms_RPT="financial",VALUE(LEFT(CRCP_y9,4)+1)&"-"&TEXT(VALUE(MID(CRCP_y9,3,2)+2),"00"),VALUE(LEFT(CRCP_y9,4)+1)) -> 2021
B41: Previous regulatory control period | C41: =IF(dms_RPT="financial",VALUE(LEFT(PRCP_y2,4)-1)&"-"&TEXT(VALUE(MID(PRCP_y2,3,2)),"00"),VALUE(LEFT(PRCP_y2,4)-1)) -> 2007 | D41: =IF(dms_RPT="financial",VALUE(LEFT(PRCP_y3,4)-1)&"-"&TEXT(VALUE(MID(PRCP_y3,3,2)),"00"),VALUE(LEFT(PRCP_y3,4)-1)) -> 2008 | E41: =IF(dms_RPT="financial",VALUE(LEFT(PRCP_y4,4)-1)&"-"&TEXT(VALUE(MID(PRCP_y4,3,2)),"00"),VALUE(LEFT(PRCP_y4,4)-1)) -> 2009 | F41: =IF(dms_RPT="financial",VALUE(LEFT(PRCP_y5,4)-1)&"-"&TEXT(VALUE(RIGHT(PRCP_y5,2)-1),"00"),VALUE(LEFT(PRCP_y5,4)-1)) -> 2010 | G41: =IF(dms_RPT="financial",VALUE(LEFT(CRCP_y1,4)-1)&"-"&TEXT(VALUE(RIGHT(CRCP_y1,2)-1),"00"),VALUE(LEFT(CRCP_y1,4)-1)) -> 2011
B44: Commencing regulatory year | C44: 2017 | D44: CRY
B46: Last completed regulatory year | C46: 2017 | D46: dms_FinalYear
B50: Source | C50: Reporting
B51: Data quality (actual, estimate, public, consolidated) | C51: Consolidated | E51: Use Consolidated for the Consolidated Confidential version Use Public for the Consolidated Public version
B52: Amended RIN submission - amendment reason | C52: Updated on 7 December 2018 - see D19/5921 (AB) THEN public version sent on 22 January 2019 - see D19/32572 & D19/33062
B53: Submission Date | C53: 30/04/218 | D53: dms_SubmissionDate | E53: Please enter date this file submitted to AER (dd/mm/yyyy)
B54: EBSS - First application of scheme in forthcoming period? | C54: No
B55: Sector | C55: =INDEX(dms_Sector_List,MATCH(dms_TradingName,dms_TradingName_List)) -> Electricity | D55: dms_Sector | E55: =INDEX(dms_Sector_List,MATCH(dms_TradingName,dms_TradingName_List))
B56: Segment | C56: =INDEX(dms_Segment_List,MATCH(dms_TradingName,dms_TradingName_List)) -> Distribution | D56: dms_Segment | E56: =INDEX(dms_Segment_List,MATCH(dms_TradingName,dms_TradingName_List))
B57: Regulatory Year Ending | C57: =IF(dms_MultiYear_Flag=1,LEFT(dms_Specified_FinalYear,2)&RIGHT(dms_Specified_FinalYear,2),INDEX(dms_RYE_Formula_Result,MATCH(dms_Model,dms_Model_List))) -> 2017 | D57: dms_RYE | E57: =IF(dms_MultiYear_Flag=1,LEFT(dms_Specified_FinalYear,2)&RIGHT(dms_Specified_FinalYear,2),INDEX(dms_RYE_Formula_Result,MATCH(dms_Model,dms_Model_List)))
B58: Reporting Period Type | C58: =INDEX(dms_RPT_List,MATCH(dms_TradingName,dms_TradingName_List)) -> Calendar | D58: dms_RPT | E58: =INDEX(dms_RPT_List,MATCH(dms_TradingName,dms_TradingName_List))
B59: Model or RIN Type | C59: ARR | D59: dms_Model | E59: Drop down selection
B60: Security Classification | C60: Public | D60: dms_Classification | E60: Always Public
B61: Template - version no. | C61: 5 | D61: dms_TemplateNumber
B62: Dollar $ real month | C62: =INDEX(dms_RPTMonth_List,MATCH(dms_TradingName,dms_TradingName_List)) -> December | D62: dms_RPTMonth | E62: =INDEX(dms_RPTMonth_List,MATCH(dms_TradingName,dms_TradingName_List))
B63: Dollar $ real (the last month before the FRCP_y1) | C63: =CONCATENATE(dms_RPTMonth)&" "&VALUE((LEFT(dms_CRCP_FinalYear_Result,2)&RIGHT(dms_CRCP_FinalYear_Result,2))) -> December 2017 | D63: dms_DollarReal | E63: =IF(SUM(dms_SingleYear_Model)>0,CONCATENATE(dms_RPTMonth)&" "&VALUE((LEFT(CRY,2))&RIGHT(CRY,2)),CONCATENATE(dms_RPTMonth)&" "&VALUE((LEFT(dms_CRCP_FinalYear_Result,2)&RIGHT(dms_CRCP_FinalYear_Result,2))))
B64: Dollar $ real previous year (PRCP_y5) | C64: June 2014 | D64: dms_DollarReal_Prev | E64: =IF(SUM(dms_SingleYear_Model)>0,CONCATENATE(dms_RPTMonth)&" "&VALUE(((LEFT(CRY,2))&RIGHT(CRY,2))-1),CONCATENATE(dms_RPTMonth)&" "&VALUE(((LEFT(dms_CRCP_FirstYear_Result,2)&RIGHT(dms_CRCP_FirstYear_Result,2))))-1)
B65: Form of control | C65: =INDEX(dms_FormControl_List,MATCH(dms_TradingName,dms_TradingName_List)) -> Revenue cap | D65: dms_FormControl | E65: =INDEX(dms_FormControl_List,MATCH(dms_TradingName,dms_TradingName_List))
B66: Calendar Year for table 3.6 data | C66: =IF(dms_RPT="Calendar",dms_RYE,VALUE(dms_RYE)-1) -> 2017 | D66: dms_0306_Year | E66: =IF(dms_RPT="Calendar",dms_RYE,VALUE(dms_RYE)-1)
B67: RIN response - version no. | C67: 1 | D67: dms_RINversion
B68: Jurisdiction | C68: =INDEX(dms_JurisdictionList,MATCH(dms_TradingName,dms_TradingName_List)) -> Vic | D68: dms_Jurisdiction | E68: =INDEX(dms_JurisdictionList,MATCH(dms_TradingName,dms_TradingName_List))
B69: Backcast Multiyear EB, CA or ARR? | C69: 0 | D69: dms_MultiYear_Flag | E69: 1=y, 0-n
C70: 2013 | D70: dms_Specified_FinalYear | E70: The result here is returned to dms_CRCP_FinalYear_Result if dms_MultiYear_Flag is set to 1
B71: Single Year Model T/F | C71: =IF(dms_Model="EB",1,0) -> 0 | D71: dms_EB
C72: =IF(dms_Model="CA",1,0) -> 0 | D72: dms_CA | E72: =dms_SingleYear_Model
C73: =IF(dms_Model="ARR",1,0) -> 1 | D73: dms_ARR
B74: Single Year Final Year Reference | C74: CRY | D74: dms_SingleYear_FinalYear_Ref | E74: This is the reference for EB, CA & ARR RINs
B75: Single Year Final Year Result | C75: =INDIRECT(dms_SingleYear_FinalYear_Ref) -> 2017 | D75: dms_SingleYear_FinalYear_Result | E75: =INDIRECT(dms_SingleYear_FinalYear_Ref) | I75: Formula errors OK
B76: FRCP length in years | C76: =INDEX(dms_FRCPlength_List,MATCH(dms_TradingName,dms_TradingName_List)) -> 5 | D76: dms_FRCPlength_Num | E76: =INDEX(dms_FRCPlength_List,MATCH(dms_TradingName,dms_TradingName_List))
B77: Multi Year Final Year Reference | C77: =INDEX(dms_FinalYear_List,MATCH(dms_FRCPlength_Num,dms_FRCPlength_Num_List)) -> dms_FRCP_y5 | D77: dms_MultiYear_FinalYear_Ref | E77: =INDEX(dms_FinalYear_List,MATCH(dms_FRCPlength_Num,dms_FRCPlength_Num_List))
B78: Multi Year Final Year Result | C78: =IF(dms_MultiYear_Flag=0,INDIRECT(dms_MultiYear_FinalYear_Ref),dms_Specified_FinalYear) -> 2021 | D78: dms_MultiYear_FinalYear_Result | E78: =IF(dms_MultiYear_Flag=0,INDIRECT(dms_MultiYear_FinalYear_Ref),dms_Specified_FinalYear) | I78: Formula errors OK
B79: CRCP length in years | C79: =INDEX(dms_CRCPlength_List,MATCH(dms_TradingName,dms_TradingName_List)) -> 5 | D79: dms_CRCPlength_Num | E79: =INDEX(dms_CRCPlength_List,MATCH(dms_TradingName,dms_TradingName_List))
B80: CRCP Final Year Reference | C80: =INDEX(dms_CFinalYear_List,MATCH(dms_CRCPlength_Num,dms_CRCPlength_Num_List)) -> CRCP_y5 | D80: dms_CRCP_FinalYear_Ref | E80: =INDEX(dms_CFinalYear_List,MATCH(dms_CRCPlength_Num,dms_CRCPlength_Num_List))
B81: CRCP First Year Result | C81: =INDEX(dms_CRCP_years,MATCH(dms_CRCPlength_Num,dms_CRCP_index)) -> 2012 | D81: dms_CRCP_FirstYear_Result | E81: =INDEX(dms_CRCP_years,MATCH(dms_CRCPlength_Num,dms_CRCP_index))
B82: CRCP Final Year Result | C82: =IF(dms_MultiYear_Flag=0,(IF(SUM(dms_SingleYear_Model)>0,CRY,dms_CRCP_yZ)),dms_Specified_FinalYear) -> 2017 | D82: dms_CRCP_FinalYear_Result | E82: =IF(dms_MultiYear_Flag=0,(IF(SUM(dms_SingleYear_Model)>0,CRY,dms_CRCP_yZ)),dms_Specified_FinalYear)
B83: Table 6.6.3 - Public lighting repair - no. business days | C83: =INDEX(dms_663_List,MATCH(dms_TradingName,dms_TradingName_List)) -> 2 | D83: dms_663
B84: Distribution Determination Reference | C84: =INDEX(dms_DeterminationRef_List,MATCH(dms_TradingName,dms_TradingName_List)) -> 2016-20 Distribution Determination | D84: dms_DeterminationRef
B85: Backcast templates only - unit of measure | C85: $0s | D85: dms_Backcast_UOM | E85: If the cover sheet is for Backcast data ensure to apply dms_Backcast_UOM named range to this field. Otherwise, do not apply this named range.
B86: EB/CA Unit of Measure for Monetary Values | C86: $0s | D86: dms_dollar_nom_UOM | E86: If the cover sheet is attached to an EB files make sure this field is set
B87: Is this Submission File a Subset File | C87: NO | D87: dms_Partial
B88: discard this record? | C88: NO | D88: dms_DISCARD | E88: If record is to be discarded from DB set this flag to YES
B89: CBD Feeder for this business | C89: =INDEX(dms_CBD_flag,MATCH(dms_TradingName,dms_TradingName_List)) -> 0 | D89: dms_CBD_flag_NSP
B90: Urban Feeder for this business | C90: =INDEX(dms_Urban_flag,MATCH(dms_TradingName,dms_TradingName_List)) -> 0 | D90: dms_Urban_flag_NSP
B91: Short rural Feeder for this business | C91: =INDEX(dms_ShortRural_flag,MATCH(dms_TradingName,dms_TradingName_List)) -> YES | D91: dms_ShortRural_flag_NSP
B92: Long rural Feeder for this business | C92: =INDEX(dms_LongRural_flag,MATCH(dms_TradingName,dms_TradingName_List)) -> NO | D92: dms_LongRural_flag_NSP
B93: USES NAMED RANGES FLAG | C93: yes | D93: dms_Defined_Names_Used
B96: REGULATORY YEARS FOR MULTI RYE SUBMISSIONS
B97: Multiple RYE flag | C97: NO | D97: dms_Multi_RYE_flag
C98: Manually specify RYE | D98: Named ranges to apply
C99: 2013 | D99: dms_RYE_01
C100: 2014 | D100: dms_RYE_02
C101: 2015 | D101: dms_RYE_03
C102: 2016 | D102: dms_RYE_04
C103: 2017 | D103: dms_RYE_05

Sheet 2.11 Labour
B1: =(LOOKUP(dms_Model,dms_Model_List,dms_Worksheet_List)) -> ANNUAL REPORTING STATEMENT
B2: =dms_TradingName -> United Energy
B3: =CONCATENATE("Annual Reporting RIN Response ",CRY) -> Annual Reporting RIN Response 2017
B4: 2.11 LABOUR
B6: Tables 2.11.1 and 2.11.2 deliberately omitted.
B8: 2.11.3 - LABOUR / NON-LABOUR EXPENDITURE SPLIT
B9: 2.11.3.1 - Opex
C10: =CRY -> 2017
C11: $0's, nominal
C12: Opex
B13: In-house labour expenditure
B14: Labour expenditure outsourced to related parties
B15: Labour expenditure outsourced to unrelated parties
B16: Controllable non-labour expenditure
B17: Uncontrollable non-labour expenditure
B18: Total | C18: =SUM(C13:C17) -> 0
B20: Reconciliation with Opex worksheets - SCS | C20: Opex
B21: Total including margins | C21: =dms_Total_Actual_Opex -> 133029976.1 | D21: =IF(ROUND(C18,0)=ROUND(dms_Total_Actual_Opex,0),"OK","Error") -> Error
B24: 2.11.3.2 - Capex
C25: =CRY -> 2017
C26: $0's, nominal
C27: Capex
B28: In-house labour expenditure
B29: Labour expenditure outsourced to related parties
B30: Labour expenditure outsourced to unrelated parties
B31: Controllable non-labour expenditure
B32: Uncontrollable non-labour expenditure
B33: Total | C33: =SUM(C28:C32) -> 0
B35: Reconciliation with Capex & Opex worksheets - SCS | C35: Capex
B36: Total including margins | C36: =dms_Total_Actual_Capex -> 191970857.6 | D36: =IF(ROUND(C33,0)=ROUND(dms_Total_Actual_Capex,0),"OK","Error") -> Error

Sheet 3.6 Quality of services
B1: =(LOOKUP(dms_Model,dms_Model_List,dms_Worksheet_List)) -> ANNUAL REPORTING STATEMENT
B2: =dms_TradingName -> United Energy
B3: =CONCATENATE("Annual Reporting RIN Response ",CRY) -> Annual Reporting RIN Response 2017
B4: 3.6 QUALITY OF SERVICES
B6: 3.6.5 - QUALITY OF SUPPLY METRICS
D7: Volume
C8: Units | D8: =CRY -> 2017
B9: Over voltage events - due to high voltage injection | C9: number
B10: Customers receiving over-voltage - due to high voltage injection | C10: number
B11: Over voltage events - due to lightning | C11: number
B12: Customers receiving over-voltage - due to lightning | C12: number
B13: Over voltage events - due to voltage regulation or other cause | C13: number
B14: Customers receiving over-voltage - due to voltage regulation or other cause | C14: number
B15: Voltage variations - steady state (zone sub) | C15: number | D15: 45
B16: Voltage variations - one minute (zone sub) | C16: number | D16: 5
B17: Voltage variations - 10 seconds (zone sub) Min<0.7 | C17: number | D17: 1247
B18: Voltage variations - 10 seconds (zone sub) Min<0.8 | C18: number | D18: 499
B19: Voltage variations - 10 seconds (zone sub) Min<0.9 | C19: number | D19: 2358
B20: Voltage variations - steady state (feeder) | C20: number | D20: 676
B21: Voltage variations - % zone subs monitored | C21: (per cent) | D21: 1
B22: Voltage variations - % feeders monitored | C22: (per cent) | D22: 1
B24: 3.6.6 - COMPLAINTS - TECHNICAL QUALITY OF SUPPLY
D25: Volume
C26: Units | D26: =CRY -> 2017
B27: 3.6.6.1 - TECHNICAL QUALITY OF SUPPLY
B28: Number of complaints - technical quality of supply | C28: number | D28: 45
B29: 3.6.6.2 - PERCENTAGE OF COMPLAINTS BY CATEGORY
B30: Low voltage supply | C30: (per cent) | D30: 0.044
B31: Voltage dips | C31: (per cent) | D31: 0.022
B32: Voltage swell | C32: (per cent) | D32: 0.356
B33: Voltage spike (impulsive transient) | C33: (per cent) | D33: 0.2
B34: Waveform distortion | C34: (per cent) | D34: 0
B35: TV or radio interference | C35: (per cent) | D35: 0
B36: Solar related | C36: (per cent) | D36: 0.111
B37: Noise from appliances | C37: (per cent) | D37: 0.044
B38: Other | C38: (per cent) | D38: 0.156
B39: 3.6.6.3 - PERCENTAGE OF COMPLAINTS BY LIKELY CAUSE
B40: Network equipment faulty | C40: (per cent) | D40: 0.178
B41: Network interference by NSP equipment | C41: (per cent) | D41: 0
B42: Network interference by another customer | C42: (per cent) | D42: 0
B43: Network limitation | C43: (per cent) | D43: 0
B44: Customer internal problem | C44: (per cent) | D44: 0
B45: No problem identified | C45: (per cent) | D45: 0.133
B46: Environmental | C46: (per cent) | D46: 0
B47: Other | C47: (per cent) | D47: 0.689
B51: 3.6.7 - CUSTOMER SERVICE METRICS
D52: Volume
C53: Unit | D53: =CRY -> 2017
B54: 3.6.7.1 - TIMELY PROVISIONS OF SERVICES
B55: Number of connections made | C55: number | D55: 12835
B56: Number of connections not made on or before agreed date | C56: number | D56: 427
B57: 3.6.7.2 - TIMELY REPAIR OF FAULTY STREET LIGHTS
B58: Street lights - average monthly number "out" | C58: number | D58: 784
B59: Street lights - not repaired by "fix by" date | C59: number | D59: 2310
B60: Street lights - average number of days to repair | C60: number | D60: 2
B61: Total number of street lights | C61: number | D61: 120839
B62: 3.6.7.3 - CALL CENTRE PERFORMANCE
B63: Calls to call centre fault line | C63: number | D63: 95613
B64: Calls to fault line answered within 30 seconds | C64: number | D64: 76723
B65: Calls to fault line - average waiting time before call answered | C65: number | D65: 31
B66: Call centre - number of overload events | C66: number | D66: 0
B67: Percentage of calls abandoned | C67: (per cent) | D67: 0.3136
B68: 3.6.7.4 - NUMBER OF CUSTOMER COMPLAINTS
B69: Complaint - reliability of supply | C69: number | D69: 276
B70: Complaint - technical quality of supply | C70: number | D70: 45
B71: Complaint - administrative process or customer service | C71: number | D71: 245
B72: Complaint - connection or augmentation | C72: number | D72: 1546
B73: Complaint - other | C73: number | D73: 1356
B74: Total number of complaints | C74: number | D74: 3468

Sheet 3.6.8 Network-feeders
B1: =(LOOKUP(dms_Model,dms_Model_List,dms_Worksheet_List)) -> ANNUAL REPORTING STATEMENT
B2: =dms_TradingName -> United Energy
B3: =CONCATENATE("Annual Reporting RIN Response ",CRY) -> Annual Reporting RIN Response 2017
B4: 3.6 QUALITY OF SERVICES
B6: Did the MAIFI parameter of the STPIS apply during the period? | F6: Yes | G6: ** IMPORTANT Please ensure this question is answered correctly. Your response will affect other tables throughout this workbook and will determine which cells are grey and which are input cells.
B10: 3.6.8 - NETWORK FEEDER RELIABILITY
B11: Feeder ID / name | C11: Description of the service area for the feeder | D11: Feeder classification (drop down) | E11: Number of distribution customers | F11: Length of high voltage distribution lines | H11: Maximum demand (MVA) | I11: Energy not supplied (MWh) | K11: Unplanned Outages | P11: Planned Outages | U11: Momentary feeder outages
F12: Overhead | G12: Underground | I12: Unplanned | J12: Planned | K12: Total number of unplanned outages | L12: Unplanned customer minutes off-supply (SAIDI) | N12: Unplanned interruptions (SAIFI) | P12: Total number of planned outages | Q12: Planned customer minutes off-supply (SAIDI) | S12: Planned interruptions (SAIFI) | U12: Total number of momentary feeder outages | V12: Momentary interruptions due to feeder outages (MAIFI)
L13: Including excluded events and MEDs | M13: After removing excluded events and MED | N13: Including excluded events and MEDs | O13: After removing excluded events and MED | Q13: Including MEDs | R13: After removing MED | S13: Including MEDs | T13: After removing MED | V13: Including excluded events and MEDs | W13: After removing excluded events and MED
B14: AR11 | C14: Citipower | D14: Urban | E14: 0 | F14: 0 | G14: 0.183 | H14: 0 | I14: 0 | J14: 0 | K14: 0 | L14: 0 | M14: 0 | N14: 0 | O14: 0 | P14: 0 | Q14: 0 | R14: 0 | S14: 0 | T14: 0 | U14: 0 | V14: 0 | W14: 0
B15: AR12 | C15: Citipower | D15: Urban | E15: 261 | F15: 2.294 | G15: 0.509 | H15: 0 | I15: 0 | J15: 0 | K15: 0 | L15: 0 | M15: 0 | N15: 0 | O15: 0 | P15: 0 | Q15: 0 | R15: 0 | S15: 0 | T15: 0 | U15: 0 | V15: 0 | W15: 0
B16: AR2 | C16: Citipower | D16: Urban | E16: 110 | F16: 0 | G16: 1.375 | H16: 0 | I16: 0 | J16: 0 | K16: 0 | L16: 0 | M16: 0 | N16: 0 | O16: 0 | P16: 0 | Q16: 0 | R16: 0 | S16: 0 | T16: 0 | U16: 0 | V16: 0 | W16: 0
B17: AR3 | C17: Citipower | D17: Urban | E17: 71 | F17: 3.504 | G17: 2.482 | H17: 0 | I17: 0 | J17: 0 | K17: 2 | L17: 37.23 | M17: 37.23 | N17: 0.19041 | O17: 0.19041 | P17: 0 | Q17: 0 | R17: 0 | S17: 0 | T17: 0 | U17: 0 | V17: 0 | W17: 0
B18: AR6 | C18: Citipower | D18: Urban | E18: 386 | F18: 0.621 | G18: 2.248 | H18: 0 | I18: 0 | J18: 0 | K18: 1 | L18: 0.6241 | M18: 0.6241 | N18: 0.002593 | O18: 0.002593 | P18: 0 | Q18: 0 | R18: 0 | S18: 0 | T18: 0 | U18: 0 | V18: 0 | W18: 0
B19: AR7 | C19: Citipower | D19: Urban | E19: 302 | F19: 3.025 | G19: 1.09 | H19: 0 | I19: 0 | J19: 0 | K19: 0 | L19: 0 | M19: 0 | N19: 0 | O19: 0 | P19: 2 | Q19: 41.68033 | R19: 41.68033 | S19: 0.18569 | T19: 0.18569 | U19: 0 | V19: 0 | W19: 0
B20: BC11 | C20: Citipower | D20: Urban | E20: 1241 | F20: 1.33 | G20: 1.381 | H20: 0 | I20: 0 | J20: 0 | K20: 5 | L20: 2.0422 | M20: 2.0422 | N20: 0.024981 | O20: 0.024981 | P20: 0 | Q20: 0 | R20: 0 | S20: 0 | T20: 0 | U20: 2 | V20: 1.96782 | W20: 1.96782
B21: BC12 | C21: Citipower | D21: Urban | E21: 204 | F21: 2.331 | G21: 0.305 | H21: 0 | I21: 0 | J21: 0 | K21: 0 | L21: 0 | M21: 0 | N21: 0 | O21: 0 | P21: 0 | Q21: 0 | R21: 0 | S21: 0 | T21: 0 | U21: 0 | V21: 0 | W21: 0
B22: BC22 | C22: Citipower | D22: Urban | E22: 504 | F22: 0.02 | G22: 2.893 | H22: 0 | I22: 0 | J22: 0 | K22: 6 | L22: 16.4595 | M22: 16.4595 | N22: 0.15115 | O22: 0.15115 | P22: 0 | Q22: 0 | R22: 0 | S22: 0 | T22: 0 | U22: 0 | V22: 0 | W22: 0
B23: BC23 | C23: Citipower | D23: Urban | E23: 1306 | F23: 2.846 | G23: 1.214 | H23: 0 | I23: 0 | J23: 0 | K23: 7 | L23: 3.317 | M23: 3.317 | N23: 0.042736 | O23: 0.042736 | P23: 1 | Q23: 42.62838 | R23: 42.62838 | S23: 0.09187 | T23: 0.09187 | U23: 0 | V23: 0 | W23: 0
B24: BC6 | C24: Citipower | D24: Urban | E24: 5 | F24: 0 | G24: 1.912 | H24: 0 | I24: 0 | J24: 0 | K24: 0 | L24: 0 | M24: 0 | N24: 0 | O24: 0 | P24: 0 | Q24: 0 | R24: 0 | S24: 0 | T24: 0 | U24: 0 | V24: 0 | W24: 0
B25: BH11 | C25: United Energy | D25: Urban | E25: 2070 | F25: 5.334 | G25: 0.541 | H25: 5.896 | I25: 0.023 | J25: 0.582 | K25: 11 | L25: 0.6382 | M25: 0.6382 | N25: 0.005313 | O25: 0.005313 | P25: 4 | Q25: 16.30429 | R25: 16.30429 | S25: 0.04782 | T25: 0.04782 | U25: 1 | V25: 0.84045 | W25: 0.84045
B26: BH12 | C26: United Energy | D26: Urban | E26: 1890 | F26: 4.633 | G26: 1.07 | H26: 4.199 | I26: 0.015 | J26: 0.83 | K26: 5 | L26: 0.7921 | M26: 0.7921 | N26: 0.014504 | O26: 0.014504 | P26: 8 | Q26: 44.27434 | R26: 44.27434 | S26: 0.20418 | T26: 0.20418 | U26: 2 | V26: 1.29967 | W26: 1.29967
B27: BH14 | C27: United Energy | D27: Urban | E27: 1 | F27: 0 | G27: 1.164 | H27: 6.652 | I27: 0 | J27: 0 | K27: 0 | L27: 0 | M27: 0 | N27: 0 | O27: 0 | P27: 0 | Q27: 0 | R27: 0 | S27: 0 | T27: 0 | U27: 0 | V27: 0 | W27: 0
B28: BH21 | C28: United Energy | D28: Urban | E28: 2427 | F28: 7.352 | G28: 0.522 | H28: 4.612 | I28: 2.602 | J28: 4.397 | K28: 17 | L28: 94.1258 | M28: 94.1258 | N28: 1.939049 | O28: 1.939049 | P28: 16 | Q28: 159.04485 | R28: 159.04485 | S28: 0.4684 | T28: 0.4684 | U28: 0 | V28: 0 | W28: 0
B29: BH22 | C29: United Energy | D29: Urban | E29: 1525 | F29: 6.027 | G29: 0.851 | H29: 4.622 | I29: 2.556 | J29: 1.147 | K29: 10 | L29: 86.5552 | M29: 86.5552 | N29: 1.038856 | O29: 1.038856 | P29: 7 | Q29: 38.83359 | R29: 38.83359 | S29: 0.16588 | T29: 0.16588 | U29: 0 | V29: 0 | W29: 0
B30: BH23 | C30: United Energy | D30: Urban | E30: 2996 | F30: 6.92 | G30: 1.552 | H30: 9.15 | I30: 9.601 | J30: 1.541 | K30: 17 | L30: 134.0169 | M30: 134.0169 | N30: 1.024238 | O30: 1.024238 | P30: 9 | Q30: 21.50708 | R30: 21.50708 | S30: 0.06309 | T30: 0.06309 | U30: 0 | V30: 0 | W30: 0
B31: BH31 | C31: United Energy | D31: Urban | E31: 1451 | F31: 5.651 | G31: 2.845 | H31: 3.375 | I31: 1.626 | J31: 4.781 | K31: 10 | L31: 102.7781 | M31: 102.7781 | N31: 0.790571 | O31: 0.790571 | P31: 10 | Q31: 302.26772 | R31: 302.26772 | S31: 0.81401 | T31: 0.81401 | U31: 1 | V31: 0.97598 | W31: 0.97598
B32: BH34 | C32: United Energy | D32: Urban | E32: 1208 | F32: 4.391 | G32: 0.627 | H32: 2.551 | I32: 1.155 | J32: 0.104 | K32: 4 | L32: 100.3816 | M32: 100.3816 | N32: 1.31059 | O32: 1.31059 | P32: 1 | Q32: 9.07561 | R32: 9.07561 | S32: 0.03477 | T32: 0.03477 | U32: 0 | V32: 0 | W32: 0
B33: BR1 | C33: United Energy | D33: Urban | E33: 1548 | F33: 5.795 | G33: 0.279 | H33: 4.421 | I33: 0.941 | J33: 0.24 | K33: 7 | L33: 40.4989 | M33: 40.4989 | N33: 0.067067 | O33: 0.067067 | P33: 1 | Q33: 10.33814 | R33: 10.33814 | S33: 0.02132 | T33: 0.02132 | U33: 0 | V33: 0 | W33: 0
B34: BR10 | C34: United Energy | D34: Urban | E34: 1101 | F34: 3.675 | G34: 3.009 | H34: 3.411 | I34: 0.062 | J34: 0 | K34: 4 | L34: 3.1793 | M34: 3.1793 | N34: 0.025132 | O34: 0.025132 | P34: 0 | Q34: 0 | R34: 0 | S34: 0 | T34: 0 | U34: 0 | V34: 0 | W34: 0
B35: BR13 | C35: United Energy | D35: Urban | E35: 1428 | F35: 4.574 | G35: 0.007 | H35: 3.88 | I35: 0.057 | J35: 1.08 | K35: 6 | L35: 3.0246 | M35: 3.0246 | N35: 0.038609 | O35: 0.038609 | P35: 4 | Q35: 57.4601 | R35: 57.4601 | S35: 0.15051 | T35: 0.15051 | U35: 0 | V35: 0 | W35: 0
B36: BR15 | C36: United Energy | D36: Urban | E36: 1384 | F36: 3.711 | G36: 0.18 | H36: 3.684 | I36: 0.007 | J36: 0 | K36: 7 | L36: 0.4282 | M36: 0.4282 | N36: 0.005057 | O36: 0.005057 | P36: 0 | Q36: 0 | R36: 0 | S36: 0 | T36: 0 | U36: 1 | V36: 0.99847 | W36: 0.99847
B37: BR4 | C37: United Energy | D37: Urban | E37: 1528 | F37: 4.201 | G37: 0.076 | H37: 4.066 | I37: 0.751 | J37: 0.193 | K37: 10 | L37: 38.9366 | M37: 38.9366 | N37: 0.357187 | O37: 0.357187 | P37: 1 | Q37: 9.99821 | R37: 9.99821 | S37: 0.04255 | T37: 0.04255 | U37: 0 | V37: 0 | W37: 0
B38: BR6 | C38: United Energy | D38: Urban | E38: 1270 | F38: 7.044 | G38: 0.64 | H38: 4.062 | I38: 0.052 | J38: 1.632 | K38: 10 | L38: 2.4541 | M38: 2.4541 | N38: 0.185748 | O38: 0.185748 | P38: 7 | Q38: 76.45652 | R38: 76.45652 | S38: 0.16929 | T38: 0.16929 | U38: 0 | V38: 0 | W38: 0
B39: BR9 | C39: United Energy | D39: Urban | E39: 1566 | F39: 5.233 | G39: 0.246 | H39: 4.881 | I39: 0.172 | J39: 0.095 | K39: 13 | L39: 6.8946 | M39: 6.8946 | N39: 0.0382 | O39: 0.0382 | P39: 1 | Q39: 3.79192 | R39: 3.79192 | S39: 0.02107 | T39: 0.02107 | U39: 1 | V39: 0.9716 | W39: 0.9716
B40: BRA21 | C40: Ausnet | D40: Urban | E40: 259 | F40: 3.869 | G40: 0.205 | H40: 0 | I40: 0 | J40: 0 | K40: 2 | L40: 181.4481 | M40: 181.4481 | N40: 1.030028 | O40: 1.030028 | P40: 1 | Q40: 19.82309 | R40: 19.82309 | S40: 0.07342 | T40: 0.07342 | U40: 1 | V40: 0.98536 | W40: 0.98536
B41: BRA23 | C41: Ausnet | D41: Urban | E41: 20 | F41: 1.163 | G41: 0.087 | H41: 0 | I41: 0 | J41: 0 | K41: 1 | L41: 945.9147 | M41: 945.9147 | N41: 0.73612 | O41: 0.73612 | P41: 1 | Q41: 6.18341 | R41: 6.18341 | S41: 1.03057 | T41: 1.03057 | U41: 0 | V41: 0 | W41: 0
B42: BT10 | C42: United Energy | D42: Urban | E42: 2076 | F42: 5.459 | G42: 0.203 | H42: 5.132 | I42: 0.444 | J42: 2.278 | K42: 17 | L42: 17.5516 | M42: 17.5516 | N42: 0.164947 | O42: 0.164947 | P42: 15 | Q42: 90.08265 | R42: 90.08265 | S42: 0.41273 | T42: 0.41273 | U42: 1 | V42: 1.00124 | W42: 1.00124
B43: BT14 | C43: United Energy | D43: Urban | E43: 1261 | F43: 2.91 | G43: 0.371 | H43: 3.546 | I43: 0.029 | J43: 0.316 | K43: 7 | L43: 1.5101 | M43: 1.5101 | N43: 0.028838 | O43: 0.028838 | P43: 3 | Q43: 16.52875 | R43: 16.52875 | S43: 0.05948 | T43: 0.05948 | U43: 2 | V43: 1.8924 | W43: 1.8924
B44: BT15 | C44: United Energy | D44: Urban | E44: 1924 | F44: 3.241 | G44: 1.036 | H44: 3.664 | I44: 0.104 | J44: 3.591 | K44: 11 | L44: 4.1106 | M44: 4.1106 | N44: 0.030245 | O44: 0.030245 | P44: 10 | Q44: 141.41726 | R44: 141.41726 | S44: 0.37118 | T44: 0.37118 | U44: 0 | V44: 0 | W44: 0
B45: BT2 | C45: United Energy | D45: Urban | E45: 1604 | F45: 3.027 | G45: 0.925 | H45: 3.598 | I45: 0.039 | J45: 1.889 | K45: 8 | L45: 1.7816 | M45: 1.7816 | N45: 0.030614 | O45: 0.030614 | P45: 5 | Q45: 85.48566 | R45: 85.48566 | S45: 0.20197 | T45: 0.20197 | U45: 0 | V45: 0 | W45: 0
B46: BT4 | C46: United Energy | D46: Urban | E46: 2184 | F46: 5.225 | G46: 1.726 | H46: 3.993 | I46: 0.12 | J46: 0.183 | K46: 10 | L46: 4.3507 | M46: 4.3507 | N46: 0.026574 | O46: 0.026574 | P46: 2 | Q46: 6.62691 | R46: 6.62691 | S46: 0.04624 | T46: 0.04624 | U46: 0 | V46: 0 | W46: 0
B47: BT5 | C47: United Energy | D47: Urban | E47: 750 | F47: 2.054 | G47: 0.257 | H47: 1.71 | I47: 0.004 | J47: 0.444 | K47: 1 | L47: 0.573 | M47: 0.573 | N47: 0.001333 | O47: 0.001333 | P47: 2 | Q47: 58.18333 | R47: 58.18333 | S47: 0.17058 | T47: 0.17058 | U47: 0 | V47: 0 | W47: 0
B48: BT6 | C48: United Energy | D48: Urban | E48: 1029 | F48: 3.029 | G48: 0.241 | H48: 2.553 | I48: 3.47 | J48: 0 | K48: 5 | L48: 217.7372 | M48: 217.7372 | N48: 1.217635 | O48: 1.217635 | P48: 0 | Q48: 0 | R48: 0 | S48: 0 | T48: 0 | U48: 0 | V48: 0 | W48: 0
B49: BT9 | C49: United Energy | D49: Urban | E49: 1813 | F49: 5.594 | G49: 0.862 | H49: 2.53 | I49: 0.01 | J49: 1.439 | K49: 4 | L49: 0.5084 | M49: 0.5084 | N49: 0.002207 | O49: 0.002207 | P49: 9 | Q49: 73.58777 | R49: 73.58777 | S49: 0.22565 | T49: 0.22565 | U49: 0 | V49: 0 | W49: 0
B50: BU1 | C50: United Energy | D50: Urban | E50: 1330 | F50: 6.895 | G50: 0.305 | H50: 3.988 | I50: 0.064 | J50: 3.767 | K50: 7 | L50: 3.4282 | M50: 3.4282 | N50: 0.023496 | O50: 0.023496 | P50: 21 | Q50: 203.3347 | R50: 203.3347 | S50: 0.56182 | T50: 0.56182 | U50: 1 | V50: 0.98525 | W50: 0.98525
B51: BU10 | C51: United Energy | D51: Urban | E51: 1768 | F51: 8.297 | G51: 0.162 | H51: 3.95 | I51: 1.566 | J51: 0.79 | K51: 8 | L51: 65.9572 | M51: 65.9572 | N51: 2.338506 | O51: 2.338506 | P51: 6 | Q51: 33.27069 | R51: 33.27069 | S51: 0.11763 | T51: 0.11763 | U51: 0 | V51: 0 | W51: 0
B52: BU13 | C52: United Energy | D52: Urban | E52: 745 | F52: 5.578 | G52: 0.819 | H52: 2.267 | I52: 0.036 | J52: 2.232 | K52: 2 | L52: 2.2521 | M52: 2.2521 | N52: 0.019496 | O52: 0.019496 | P52: 5 | Q52: 138.60062 | R52: 138.60062 | S52: 0.33276 | T52: 0.33276 | U52: 0 | V52: 0 | W52: 0
B53: BU14 | C53: United Energy | D53: Urban | E53: 1680 | F53: 9.886 | G53: 0.682 | H53: 4.337 | I53: 0.464 | J53: 1.502 | K53: 9 | L53: 18.0601 | M53: 18.0601 | N53: 0.084997 | O53: 0.084997 | P53: 15 | Q53: 58.49787 | R53: 58.49787 | S53: 0.15242 | T53: 0.15242 | U53: 0 | V53: 0 | W53: 0
B54: BU2 | C54: United Energy | D54: Urban | E54: 1610 | F54: 9.055 | G54: 2.202 | H54: 3.546 | I54: 0.002 | J54: 1.732 | K54: 1 | L54: 0.0723 | M54: 0.0723 | N54: 0.000621 | O54: 0.000621 | P54: 11 | Q54: 70.0596 | R54: 70.0596 | S54: 0.20307 | T54: 0.20307 | U54: 0 | V54: 0 | W54: 0
B55: BU4 | C55: United Energy | D55: Urban | E55: 1497 | F55: 6.076 | G55: 0.11 | H55: 3.828 | I55: 0.022 | J55: 0.934 | K55: 4 | L55: 1.2242 | M55: 1.2242 | N55: 0.007958 | O55: 0.007958 | P55: 8 | Q55: 52.21761 | R55: 52.21761 | S55: 0.17505 | T55: 0.17505 | U55: 1 | V55: 0.9708 | W55: 0.9708
B56: BU6 | C56: United Energy | D56: Urban | E56: 1504 | F56: 5.444 | G56: 0.811 | H56: 3.481 | I56: 0.016 | J56: 0.322 | K56: 4 | L56: 0.9348 | M56: 0.9348 | N56: 0.008798 | O56: 0.008798 | P56: 5 | Q56: 19.25085 | R56: 19.25085 | S56: 0.0778 | T56: 0.0778 | U56: 0 | V56: 0 | W56: 0
B57: BU9 | C57: United Energy | D57: Urban | E57: 1673 | F57: 7.876 | G57: 1.702 | H57: 3.696 | I57: 0.077 | J57: 2.104 | K57: 15 | L57: 3.743 | M57: 3.743 | N57: 0.051193 | O57: 0.051193 | P57: 10 | Q57: 102.10883 | R57: 102.10883 | S57: 0.32985 | T57: 0.32985 | U57: 1 | V57: 0.95849 | W57: 0.95849
B58: BW21 | C58: United Energy | D58: Urban | E58: 1876 | F58: 6.668 | G58: 0.811 | H58: 4.136 | I58: 0.625 | J58: 1.062 | K58: 9 | L58: 23.8194 | M58: 23.8194 | N58: 0.041898 | O58: 0.041898 | P58: 5 | Q58: 40.44298 | R58: 40.44298 | S58: 0.12419 | T58: 0.12419 | U58: 0 | V58: 0 | W58: 0
B59: BW22 | C59: United Energy | D59: Urban | E59: 645 | F59: 3.648 | G59: 1.387 | H59: 3.09 | I59: 2.356 | J59: 2.309 | K59: 6 | L59: 127.1522 | M59: 127.1522 | N59: 0.272632 | O59: 0.272632 | P59: 9 | Q59: 124.61871 | R59: 124.61871 | S59: 0.414 | T59: 0.414 | U59: 0 | V59: 0 | W59: 0
B60: BW23 | C60: United Energy | D60: Urban | E60: 855 | F60: 2.987 | G60: 1.222 | H60: 3.146 | I60: 1.157 | J60: 0.476 | K60: 4 | L60: 74.0041 | M60: 74.0041 | N60: 0.473502 | O60: 0.473502 | P60: 3 | Q60: 30.48535 | R60: 30.48535 | S60: 0.11224 | T60: 0.11224 | U60: 0 | V60: 0 | W60: 0
B61: BW32 | C61: United Energy | D61: Urban | E61: 971 | F61: 2.635 | G61: 0.476 | H61: 2.311 | I61: 0.268 | J61: 2.997 | K61: 12 | L61: 18.1312 | M61: 18.1312 | N61: 0.119406 | O61: 0.119406 | P61: 5 | Q61: 202.78065 | R61: 202.78065 | S61: 0.63923 | T61: 0.63923 | U61: 0 | V61: 0 | W61: 0
B62: BW33 | C62: United Energy | D62: Urban | E62: 1560 | F62: 8.069 | G62: 0.102 | H62: 3.359 | I62: 0.037 | J62: 3.467 | K62: 5 | L62: 1.837 | M62: 1.837 | N62: 0.018919 | O62: 0.018919 | P62: 13 | Q62: 170.7825 | R62: 170.7825 | S62: 0.58704 | T62: 0.58704 | U62: 0 | V62: 0 | W62: 0
B63: BW34 | C63: United Energy | D63: Urban | E63: 1582 | F63: 6.005 | G63: 0.16 | H63: 3.354 | I63: 1.626 | J63: 0.444 | K63: 7 | L63: 90.0713 | M63: 90.0713 | N63: 0.943151 | O63: 0.943151 | P63: 4 | Q63: 24.61382 | R63: 24.61382 | S63: 0.08911 | T63: 0.08911 | U63: 0 | V63: 0 | W63: 0
B64: BW35 | C64: United Energy | D64: Urban | E64: 1965 | F64: 6.649 | G64: 0.284 | H64: 4.405 | I64: 1.377 | J64: 0.36 | K64: 15 | L64: 51.7344 | M64: 51.7344 | N64: 0.074795 | O64: 0.074795 | P64: 4 | Q64: 13.52416 | R64: 13.52416 | S64: 0.03765 | T64: 0.03765 | U64: 0 | V64: 0 | W64: 0
B65: CDA11 | C65: United Energy | D65: Urban | E65: 1844 | F65: 7.326 | G65: 1.935 | H65: 5.118 | I65: 1.19 | J65: 0.912 | K65: 9 | L65: 39.6808 | M65: 39.6808 | N65: 2.402579 | O65: 2.402579 | P65: 3 | Q65: 30.38916 | R65: 30.38916 | S65: 0.09167 | T65: 0.09167 | U65: 0 | V65: 0 | W65: 0
B66: CDA21 | C66: United Energy | D66: Urban | E66: 659 | F66: 4.381 | G66: 0.529 | H66: 1.754 | I66: 0.628 | J66: 0 | K66: 4 | L66: 54.2716 | M66: 54.2716 | N66: 0.987562 | O66: 0.987562 | P66: 0 | Q66: 0 | R66: 0 | S66: 0 | T66: 0 | U66: 1 | V66: 0.97543 | W66: 0.97543
B67: CDA22 | C67: United Energy | D67: Urban | E67: 2017 | F67: 13.585 | G67: 4.382 | H67: 8.136 | I67: 0.69 | J67: 0.31 | K67: 15 | L67: 10.1028 | M67: 10.1028 | N67: 0.422475 | O67: 0.422475 | P67: 1 | Q67: 4.53783 | R67: 4.53783 | S67: 0.02578 | T67: 0.02578 | U67: 0 | V67: 0 | W67: 0
B68: CDA23 | C68: United Energy | D68: Urban | E68: 4743 | F68: 17.256 | G68: 1.684 | H68: 9.656 | I68: 2.639 | J68: 7.846 | K68: 24 | L68: 44.9205 | M68: 44.9205 | N68: 1.168688 | O68: 1.168688 | P68: 16 | Q68: 133.56792 | R68: 133.56792 | S68: 0.37253 | T68: 0.37253 | U68: 0 | V68: 0 | W68: 0
B69: CDA24 | C69: United Energy | D69: Urban | E69: 3812 | F69: 13.046 | G69: 1.711 | H69: 8.601 | I69: 1.268 | J69: 3.623 | K69: 28 | L69: 21.1875 | M69: 21.1875 | N69: 0.981643 | O69: 0.981643 | P69: 10 | Q69: 60.5412 | R69: 60.5412 | S69: 0.20517 | T69: 0.20517 | U69: 0 | V69: 0 | W69: 0
B70: CFD11 | C70: United Energy | D70: Urban | E70: 190 | F70: 0 | G70: 2.452 | H70: 3.45 | I70: 0.037 | J70: 3.895 | K70: 2 | L70: 1.4956 | M70: 1.4956 | N70: 0.010554 | O70: 0.010554 | P70: 3 | Q70: 159.54553 | R70: 159.54553 | S70: 0.51713 | T70: 0.51713 | U70: 0 | V70: 0 | W70: 0
B71: CFD12 | C71: United Energy | D71: Urban | E71: 1199 | F71: 1.391 | G71: 4.396 | H71: 4.594 | I71: 1.605 | J71: 5.626 | K71: 13 | L71: 48.7357 | M71: 48.7357 | N71: 0.554348 | O71: 0.554348 | P71: 12 | Q71: 170.79578 | R71: 170.79578 | S71: 0.47282 | T71: 0.47282 | U71: 0 | V71: 0 | W71: 0
B72: CFD13 | C72: United Energy | D72: Urban | E72: 1796 | F72: 4.9 | G72: 0.542 | H72: 4.154 | I72: 1.311 | J72: 0.168 | K72: 21 | L72: 55.2625 | M72: 55.2625 | N72: 1.120329 | O72: 1.120329 | P72: 2 | Q72: 7.09738 | R72: 7.09738 | S72: 0.05068 | T72: 0.05068 | U72: 1 | V72: 1.00182 | W72: 1.00182
B73: CFD14 | C73: United Energy | D73: Urban | E73: 3591 | F73: 6.865 | G73: 1.86 | H73: 7.839 | I73: 0.104 | J73: 2.864 | K73: 12 | L73: 2.3171 | M73: 2.3171 | N73: 0.021897 | O73: 0.021897 | P73: 6 | Q73: 63.58616 | R73: 63.58616 | S73: 0.17739 | T73: 0.17739 | U73: 0 | V73: 0 | W73: 0
B74: CFD15 | C74: United Energy | D74: Urban | E74: 2752 | F74: 1.777 | G74: 0.799 | H74: 3.235 | I74: 0.07 | J74: 2.466 | K74: 9 | L74: 3.0976 | M74: 3.0976 | N74: 0.045182 | O74: 0.045182 | P74: 7 | Q74: 108.36979 | R74: 108.36979 | S74: 0.29465 | T74: 0.29465 | U74: 1 | V74: 0.98785 | W74: 0.98785
B75: CFD16 | C75: United Energy | D75: Urban | E75: 1679 | F75: 4.157 | G75: 4.53 | H75: 5.105 | I75: 0.01 | J75: 1.268 | K75: 7 | L75: 0.4211 | M75: 0.4211 | N75: 0.004169 | O75: 0.004169 | P75: 5 | Q75: 51.21695 | R75: 51.21695 | S75: 0.21262 | T75: 0.21262 | U75: 1 | V75: 0.83141 | W75: 0.83141
B76: CFD21 | C76: United Energy | D76: Urban | E76: 146 | F76: 0 | G76: 1.789 | H76: 0.595 | I76: 0.067 | J76: 0 | K76: 1 | L76: 13.2077 | M76: 13.2077 | N76: 1.088313 | O76: 1.088313 | P76: 0 | Q76: 0 | R76: 0 | S76: 0 | T76: 0 | U76: 0 | V76: 0 | W76: 0
B77: CFD22 | C77: United Energy | D77: Urban | E77: 1292 | F77: 4.127 | G77: 1.24 | H77: 2.954 | I77: 0.244 | J77: 0.041 | K77: 5 | L77: 12.3191 | M77: 12.3191 | N77: 0.99917 | O77: 0.99917 | P77: 1 | Q77: 2.08993 | R77: 2.08993 | S77: 0.00697 | T77: 0.00697 | U77: 1 | V77: 0.96911 | W77: 0.96911
B78: CFD23 | C78: United Energy | D78: Urban | E78: 1787 | F78: 3.298 | G78: 0.245 | H78: 4.911 | I78: 0.924 | J78: 0.718 | K78: 11 | L78: 34.1035 | M78: 34.1035 | N78: 1.212634 | O78: 1.212634 | P78: 2 | Q78: 26.50705 | R78: 26.50705 | S78: 0.05708 | T78: 0.05708 | U78: 0 | V78: 0 | W78: 0
B79: CFD24 | C79: United Energy | D79: Urban | E79: 787 | F79: 3.116 | G79: 0.509 | H79: 3.646 | I79: 0.467 | J79: 1.436 | K79: 10 | L79: 13.7847 | M79: 13.7847 | N79: 0.974768 | O79: 0.974768 | P79: 6 | Q79: 42.42341 | R79: 42.42341 | S79: 0.16771 | T79: 0.16771 | U79: 0 | V79: 0 | W79: 0
B80: CFD25 | C80: United Energy | D80: Urban | E80: 1423 | F80: 2.883 | G80: 1.102 | H80: 2.682 | I80: 0.156 | J80: 1.607 | K80: 8 | L80: 11.4666 | M80: 11.4666 | N80: 0.911515 | O80: 0.911515 | P80: 6 | Q80: 117.74483 | R80: 117.74483 | S80: 0.25021 | T80: 0.25021 | U80: 0 | V80: 0 | W80: 0
B81: CFD26 | C81: United Energy | D81: Urban | E81: 2728 | F81: 2.615 | G81: 1.109 | H81: 3.669 | I81: 0.45 | J81: 1.461 | K81: 13 | L81: 18.4976 | M81: 18.4976 | N81: 1.020572 | O81: 1.020572 | P81: 10 | Q81: 59.99008 | R81: 59.99008 | S81: 0.17302 | T81: 0.17302 | U81: 0 | V81: 0 | W81: 0
B82: CM11 | C82: United Energy | D82: Urban | E82: 47 | F82: 1.528 | G82: 0.413 | H82: 2.175 | I82: 0.035 | J82: 1.927 | K82: 1 | L82: 1.7308 | M82: 1.7308 | N82: 0.021107 | O82: 0.021107 | P82: 2 | Q82: 96.03865 | R82: 96.03865 | S82: 0.23218 | T82: 0.23218 | U82: 0 | V82: 0 | W82: 0
B83: CM12 | C83: United Energy | D83: Urban | E83: 256 | F83: 0 | G83: 2.534 | H83: 4.132 | I83: 0 | J83: 0 | K83: 0 | L83: 0 | M83: 0 | N83: 0 | O83: 0 | P83: 0 | Q83: 0 | R83: 0 | S83: 0 | T83: 0 | U83: 0 | V83: 0 | W83: 0
B84: CM13 | C84: United Energy | D84: Urban | E84: 1083 | F84: 3.687 | G84: 0.319 | H84: 2.629 | I84: 0.022 | J84: 0.762 | K84: 11 | L84: 1.3087 | M84: 1.3087 | N84: 0.010161 | O84: 0.010161 | P84: 4 | Q84: 45.59489 | R84: 45.59489 | S84: 0.19584 | T84: 0.19584 | U84: 1 | V84: 0.96995 | W84: 0.96995
B85: CM14 | C85: United Energy | D85: Urban | E85: 8 | F85: 0 | G85: 1.632 | H85: 2.38 | I85: 0 | J85: 0 | K85: 0 | L85: 0 | M85: 0 | N85: 0 | O85: 0 | P85: 0 | Q85: 0 | R85: 0 | S85: 0 | T85: 0 | U85: 0 | V85: 0 | W85: 0
B86: CM15 | C86: United Energy | D86: Urban | E86: 76 | F86: 0.496 | G86: 0.936 | H86: 1.606 | I86: 0 | J86: 0.312 | K86: 0 | L86: 0 | M86: 0 | N86: 0 | O86: 0 | P86: 2 | Q86: 31.01521 | R86: 31.01521 | S86: 0.05235 | T86: 0.05235 | U86: 0 | V86: 0 | W86: 0
B87: CM21 | C87: United Energy | D87: Urban | E87: 116 | F87: 0.994 | G87: 0.525 | H87: 3.206 | I87: 0 | J87: 0.817 | K87: 0 | L87: 0 | M87: 0 | N87: 0 | O87: 0 | P87: 2 | Q87: 27.02351 | R87: 27.02351 | S87: 0.19889 | T87: 0.19889 | U87: 0 | V87: 0 | W87: 0
B88: CM22 | C88: United Energy | D88: Urban | E88: 430 | F88: 1.603 | G88: 0.038 | H88: 1.338 | I88: 0.063 | J88: 2.394 | K88: 2 | L88: 8.4336 | M88: 8.4336 | N88: 0.723735 | O88: 0.723735 | P88: 4 | Q88: 319.14697 | R88: 319.14697 | S88: 0.71086 | T88: 0.71086 | U88: 0 | V88: 0 | W88: 0
B89: CM23 | C89: United Energy | D89: Urban | E89: 0 | F89: 0.031 | G89: 1.557 | H89: 2.396 | I89: 0 | J89: 0 | K89: 0 | L89: 0 | M89: 0 | N89: 0 | O89: 0 | P89: 0 | Q89: 0 | R89: 0 | S89: 0 | T89: 0 | U89: 0 | V89: 0 | W89: 0
B90: CM24 | C90: United Energy | D90: Urban | E90: 251 | F90: 1.067 | G90: 1.044 | H90: 3.005 | I90: 0.233 | J90: 0.49 | K90: 1 | L90: 12.102 | M90: 12.102 | N90: 1.073941 | O90: 1.073941 | P90: 1 | Q90: 25.44319 | R90: 25.44319 | S90: 0.07167 | T90: 0.07167 | U90: 0 | V90: 0 | W90: 0
B91: CM25 | C91: United Energy | D91: Urban | E91: 1457 | F91: 3.523 | G91: 0.877 | H91: 2.856 | I91: 3.055 | J91: 2.46 | K91: 5 | L91: 138.7548 | M91: 138.7548 | N91: 2.064994 | O91: 2.064994 | P91: 13 | Q91: 111.70773 | R91: 111.70773 | S91: 0.36789 | T91: 0.36789 | U91: 1 | V91: 0.99042 | W91: 0.99042
B92: CRM11 | C92: United Energy | D92: Urban | E92: 8 | F92: 2.309 | G92: 0.541 | H92: 13.308 | I92: 0 | J92: 0 | K92: 0 | L92: 0 | M92: 0 | N92: 0 | O92: 0 | P92: 0 | Q92: 0 | R92: 0 | S92: 0 | T92: 0 | U92: 0 | V92: 0 | W92: 0
B93: CRM12 | C93: United Energy | D93: Urban | E93: 3457 | F93: 4.828 | G93: 3.061 | H93: 6.687 | I93: 0.309 | J93: 6.635 | K93: 22 | L93: 7.6249 | M93: 7.6249 | N93: 0.056454 | O93: 0.056454 | P93: 20 | Q93: 163.9773 | R93: 163.9773 | S93: 0.41707 | T93: 0.41707 | U93: 0 | V93: 0 | W93: 0
B94: CRM13 | C94: United Energy | D94: Urban | E94: 764 | F94: 10.212 | G94: 3.309 | H94: 7.7 | I94: 0.839 | J94: 2.108 | K94: 13 | L94: 18.91 | M94: 18.91 | N94: 0.33202 | O94: 0.33202 | P94: 5 | Q94: 47.49645 | R94: 47.49645 | S94: 0.212 | T94: 0.212 | U94: 1 | V94: 1.14377 | W94: 1.14377
B95: CRM14 | C95: United Energy | D95: Urban | E95: 4112 | F95: 21.895 | G95: 8.006 | H95: 9.31 | I95: 6.369 | J95: 8.055 | K95: 25 | L95: 117.3979 | M95: 117.3979 | N95: 2.623777 | O95: 2.623777 | P95: 21 | Q95: 148.4794 | R95: 148.4794 | S95: 0.43214 | T95: 0.43214 | U95: 1 | V95: 0.97639 | W95: 0.97639
B96: CRM21 | C96: United Energy | D96: Rural Short | E96: 3136 | F96: 20.259 | G96: 10.547 | H96: 8.474 | I96: 1.502 | J96: 0.14 | K96: 13 | L96: 29.5353 | M96: 29.5353 | N96: 0.361784 | O96: 0.361784 | P96: 4 | Q96: 2.74559 | R96: 2.74559 | S96: 0.03316 | T96: 0.03316 | U96: 3 | V96: 3.79313 | W96: 3.79313
B97: CRM22 | C97: United Energy | D97: Urban | E97: 4266 | F97: 10.274 | G97: 4.133 | H97: 8.994 | I97: 7.918 | J97: 4.932 | K97: 41 | L97: 176.1639 | M97: 176.1639 | N97: 1.278244 | O97: 1.278244 | P97: 16 | Q97: 109.72481 | R97: 109.72481 | S97: 0.36189 | T97: 0.36189 | U97: 2 | V97: 1.72344 | W97: 1.72344
B98: CRM24 | C98: United Energy | D98: Urban | E98: 1848 | F98: 3.753 | G98: 3.801 | H98: 4.141 | I98: 0.383 | J98: 0.187 | K98: 8 | L98: 14.9106 | M98: 14.9106 | N98: 0.089198 | O98: 0.089198 | P98: 1 | Q98: 7.30641 | R98: 7.30641 | S98: 0.04871 | T98: 0.04871 | U98: 0 | V98: 0 | W98: 0
B99: CRM32 | C99: United Energy | D99: Urban | E99: 2 | F99: 0.095 | G99: 2.823 | H99: 8.204 | I99: 0 | J99: 0 | K99: 0 | L99: 0 | M99: 0 | N99: 0 | O99: 0 | P99: 0 | Q99: 0 | R99: 0 | S99: 0 | T99: 0 | U99: 0 | V99: 0 | W99: 0
B100: CRM33 | C100: United Energy | D100: Urban | E100: 2246 | F100: 7.972 | G100: 1.513 | H100: 7.03 | I100: 1.643 | J100: 0.053 | K100: 23 | L100: 48.0068 | M100: 48.0068 | N100: 0.234646 | O100: 0.234646 | P100: 2 | Q100: 1.55641 | R100: 1.55641 | S100: 0.02761 | T100: 0.02761 | U100: 0 | V100: 0 | W100: 0
B101: CRM34 | C101: United Energy | D101: Urban | E101: 715 | F101: 7.981 | G101: 8.497 | H101: 6.701 | I101: 0.037 | J101: 1.744 | K101: 4 | L101: 0.8474 | M101: 0.8474 | N101: 0.007131 | O101: 0.007131 | P101: 9 | Q101: 39.43173 | R101: 39.43173 | S101: 0.20832 | T101: 0.20832 | U101: 0 | V101: 0 | W101: 0
B102: CRM35 | C102: United Energy | D102: Urban | E102: 3491 | F102: 29.162 | G102: 4.724 | H102: 10.113 | I102: 0.641 | J102: 3.336 | K102: 33 | L102: 9.6212 | M102: 9.6212 | N102: 0.087163 | O102: 0.087163 | P102: 13 | Q102: 50.08226 | R102: 50.08226 | S102: 0.15126 | T102: 0.15126 | U102: 1 | V102: 0.7884 | W102: 0.7884
B103: DC1 | C103: United Energy | D103: Urban | E103: 2354 | F103: 18.25 | G103: 5.946 | H103: 9.244 | I103: 6.298 | J103: 3.443 | K103: 10 | L103: 112.202 | M103: 112.202 | N103: 1.976215 | O103: 1.976215 | P103: 35 | Q103: 61.33147 | R103: 61.33147 | S103: 0.24176 | T103: 0.24176 | U103: 1 | V103: 0.97937 | W103: 0.97937
B104: DC10 | C104: United Energy | D104: Urban | E104: 3971 | F104: 14.211 | G104: 3.685 | H104: 7.914 | I104: 4.096 | J104: 1.051 | K104: 26 | L104: 101.7224 | M104: 101.7224 | N104: 2.06811 | O104: 2.06811 | P104: 19 | Q104: 26.10963 | R104: 26.10963 | S104: 0.09015 | T104: 0.09015 | U104: 1 | V104: 0.98817 | W104: 0.98817
B105: DC12 | C105: United Energy | D105: Urban | E105: 1512 | F105: 4.534 | G105: 1.315 | H105: 7.981 | I105: 0.134 | J105: 7.95 | K105: 9 | L105: 2.285 | M105: 2.285 | N105: 0.023141 | O105: 0.023141 | P105: 19 | Q105: 135.95128 | R105: 135.95128 | S105: 0.36893 | T105: 0.36893 | U105: 1 | V105: 1.01554 | W105: 1.01554
B106: DC2 | C106: United Energy | D106: Urban | E106: 4162 | F106: 13.961 | G106: 10.154 | H106: 9.898 | I106: 2.032 | J106: 11.322 | K106: 24 | L106: 38.8423 | M106: 38.8423 | N106: 0.962116 | O106: 0.962116 | P106: 74 | Q106: 216.40342 | R106: 216.40342 | S106: 0.64296 | T106: 0.64296 | U106: 2 | V106: 1.86928 | W106: 1.86928
B107: DC3 | C107: United Energy | D107: Urban | E107: 4198 | F107: 13.762 | G107: 10.314 | H107: 9.178 | I107: 6.993 | J107: 2.39 | K107: 29 | L107: 123.1383 | M107: 123.1383 | N107: 1.51743 | O107: 1.51743 | P107: 23 | Q107: 42.09346 | R107: 42.09346 | S107: 0.13317 | T107: 0.13317 | U107: 1 | V107: 0.96363 | W107: 0.96363
B108: DC4 | C108: United Energy | D108: Urban | E108: 3394 | F108: 11.509 | G108: 2.987 | H108: 7.752 | I108: 0.424 | J108: 1.146 | K108: 13 | L108: 7.4161 | M108: 7.4161 | N108: 0.062302 | O108: 0.062302 | P108: 21 | Q108: 20.02943 | R108: 20.02943 | S108: 0.0825 | T108: 0.0825 | U108: 2 | V108: 1.92851 | W108: 1.92851
B109: DC5 | C109: United Energy | D109: Urban | E109: 4887 | F109: 14.273 | G109: 2.519 | H109: 10.153 | I109: 6.304 | J109: 4.75 | K109: 23 | L109: 106.8141 | M109: 106.8141 | N109: 0.975437 | O109: 0.975437 | P109: 25 | Q109: 80.48802 | R109: 80.48802 | S109: 0.20565 | T109: 0.20565 | U109: 1 | V109: 0.97239 | W109: 0.97239
B110: DC6 | C110: United Energy | D110: Urban | E110: 1958 | F110: 4.253 | G110: 3.248 | H110: 8.295 | I110: 3.746 | J110: 8.725 | K110: 13 | L110: 76.7168 | M110: 76.7168 | N110: 1.539027 | O110: 1.539027 | P110: 7 | Q110: 178.68144 | R110: 178.68144 | S110: 0.44746 | T110: 0.44746 | U110: 3 | V110: 2.89774 | W110: 2.89774
B111: DC7 | C111: United Energy | D111: Urban | E111: 2152 | F111: 5.504 | G111: 1.882 | H111: 5.417 | I111: 0.792 | J111: 1.545 | K111: 14 | L111: 18.5163 | M111: 18.5163 | N111: 0.268145 | O111: 0.268145 | P111: 6 | Q111: 36.14379 | R111: 36.14379 | S111: 0.14918 | T111: 0.14918 | U111: 0 | V111: 0 | W111: 0
B112: DC8 | C112: United Energy | D112: Urban | E112: 2969 | F112: 11.182 | G112: 1.061 | H112: 6.526 | I112: 3.273 | J112: 1.841 | K112: 21 | L112: 93.9515 | M112: 93.9515 | N112: 2.34167 | O112: 2.34167 | P112: 23 | Q112: 52.85452 | R112: 52.85452 | S112: 0.23203 | T112: 0.23203 | U112: 1 | V112: 1.04026 | W112: 1.04026
B113: DMA12 | C113: United Energy | D113: Urban | E113: 2107 | F113: 3.086 | G113: 9.787 | H113: 4.634 | I113: 0.002 | J113: 0.172 | K113: 1 | L113: 0.0849 | M113: 0.0849 | N113: 0.000475 | O113: 0.000475 | P113: 2 | Q113: 8.22262 | R113: 8.22262 | S113: 0.05126 | T113: 0.05126 | U113: 0 | V113: 0 | W113: 0
B114: DMA13 | C114: United Energy | D114: Urban | E114: 2484 | F114: 13.426 | G114: 0.976 | H114: 4.359 | I114: 0.055 | J114: 1.237 | K114: 11 | L114: 2.6547 | M114: 2.6547 | N114: 0.539401 | O114: 0.539401 | P114: 7 | Q114: 59.63627 | R114: 59.63627 | S114: 0.22701 | T114: 0.22701 | U114: 0 | V114: 0 | W114: 0
B115: DMA14 | C115: United Energy | D115: Urban | E115: 3498 | F115: 21.078 | G115: 6.029 | H115: 8.619 | I115: 3.124 | J115: 1.045 | K115: 21 | L115: 96.7745 | M115: 96.7745 | N115: 1.102312 | O115: 1.102312 | P115: 7 | Q115: 32.372 | R115: 32.372 | S115: 0.13064 | T115: 0.13064 | U115: 1 | V115: 1.00679 | W115: 1.00679
B116: DMA15 | C116: United Energy | D116: Rural Short | E116: 743 | F116: 58.659 | G116: 4.01 | H116: 3.074 | I116: 5.643 | J116: 35.807 | K116: 37 | L116: 219.7615 | M116: 219.7615 | N116: 2.972735 | O116: 2.972735 | P116: 120 | Q116: 1394.51701 | R116: 1394.51701 | S116: 4.61791 | T116: 4.61791 | U116: 3 | V116: 4.109 | W116: 4.109
B117: DMA21 | C117: United Energy | D117: Urban | E117: 2797 | F117: 13.391 | G117: 1.51 | H117: 6.967 | I117: 0.541 | J117: 0.515 | K117: 23 | L117: 16.6705 | M117: 16.6705 | N117: 0.156067 | O117: 0.156067 | P117: 5 | Q117: 15.88626 | R117: 15.88626 | S117: 0.06078 | T117: 0.06078 | U117: 0 | V117: 0 | W117: 0
B118: DMA23 | C118: United Energy | D118: Rural Short | E118: 1715 | F118: 123.714 | G118: 5.457 | H118: 6.693 | I118: 15.187 | J118: 17.982 | K118: 58 | L118: 348.2895 | M118: 348.2895 | N118: 4.191937 | O118: 4.191937 | P118: 97 | Q118: 412.38228 | R118: 412.38228 | S118: 1.55726 | T118: 1.55726 | U118: 3 | V118: 4.23334 | W118: 4.23334
B119: DMA24 | C119: United Energy | D119: Rural Short | E119: 1562 | F119: 33.727 | G119: 4.949 | H119: 5.808 | I119: 0.989 | J119: 4.589 | K119: 19 | L119: 33.9305 | M119: 33.9305 | N119: 2.782303 | O119: 2.782303 | P119: 27 | Q119: 157.48439 | R119: 157.48439 | S119: 0.4685 | T119: 0.4685 | U119: 1 | V119: 1.36773 | W119: 1.36773
B120: DN10 | C120: United Energy | D120: Urban | E120: 3282 | F120: 5.367 | G120: 8.315 | H120: 5.254 | I120: 1.37 | J120: 0 | K120: 10 | L120: 46.1717 | M120: 46.1717 | N120: 1.424069 | O120: 1.424069 | P120: 0 | Q120: 0 | R120: 0 | S120: 0 | T120: 0 | U120: 0 | V120: 0 | W120: 0
B121: DN11 | C121: United Energy | D121: Urban | E121: 2660 | F121: 9.056 | G121: 0.682 | H121: 7.839 | I121: 0.556 | J121: 0 | K121: 14 | L121: 29.6667 | M121: 29.6667 | N121: 2.112447 | O121: 2.112447 | P121: 0 | Q121: 0 | R121: 0 | S121: 0 | T121: 0 | U121: 2 | V121: 2.00305 | W121: 2.00305
B122: DN13 | C122: United Energy | D122: Urban | E122: 4605 | F122: 7.721 | G122: 17.692 | H122: 9.857 | I122: 4.464 | J122: 1.905 | K122: 17 | L122: 126.0668 | M122: 126.0668 | N122: 2.77071 | O122: 2.77071 | P122: 11 | Q122: 53.80354 | R122: 53.80354 | S122: 0.13291 | T122: 0.13291 | U122: 1 | V122: 0.96715 | W122: 0.96715
B123: DN2 | C123: United Energy | D123: Urban | E123: 65 | F123: 4.241 | G123: 0.25 | H123: 7.187 | I123: 5.974 | J123: 0.301 | K123: 2 | L123: 109.5851 | M123: 109.5851 | N123: 1.088845 | O123: 1.088845 | P123: 1 | Q123: 5.5209 | R123: 5.5209 | S123: 0.03067 | T123: 0.03067 | U123: 2 | V123: 2.2237 | W123: 2.2237
B124: DN21 | C124: United Energy | D124: Urban | E124: 594 | F124: 5.751 | G124: 2.852 | H124: 6.839 | I124: 25.383 | J124: 2.647 | K124: 9 | L124: 598.2449 | M124: 598.2449 | N124: 5.767666 | O124: 5.767666 | P124: 1 | Q124: 62.37621 | R124: 62.37621 | S124: 0.1128 | T124: 0.1128 | U124: 3 | V124: 2.98994 | W124: 2.98994
B125: DN22 | C125: United Energy | D125: Urban | E125: 4745 | F125: 8.257 | G125: 14.624 | H125: 9.37 | I125: 1.107 | J125: 0.605 | K125: 6 | L125: 20.8878 | M125: 20.8878 | N125: 0.787302 | O125: 0.787302 | P125: 2 | Q125: 11.41083 | R125: 11.41083 | S125: 0.03098 | T125: 0.03098 | U125: 2 | V125: 1.92211 | W125: 1.92211
B126: DN23 | C126: United Energy | D126: Urban | E126: 44 | F126: 0 | G126: 3.697 | H126: 1.205 | I126: 0 | J126: 0 | K126: 0 | L126: 0 | M126: 0 | N126: 0 | O126: 0 | P126: 0 | Q126: 0 | R126: 0 | S126: 0 | T126: 0 | U126: 0 | V126: 0 | W126: 0
B127: DN24 | C127: United Energy | D127: Urban | E127: 186 | F127: 6.775 | G127: 3.405 | H127: 5.967 | I127: 0.186 | J127: 0.93 | K127: 4 | L127: 4.7105 | M127: 4.7105 | N127: 0.037543 | O127: 0.037543 | P127: 3 | Q127: 23.54513 | R127: 23.54513 | S127: 0.09118 | T127: 0.09118 | U127: 1 | V127: 1.05658 | W127: 1.05658
B128: DN25 | C128: United Energy | D128: Urban | E128: 996 | F128: 7.9 | G128: 1.51 | H128: 6.003 | I128: 2.388 | J128: 0.553 | K128: 8 | L128: 52.9024 | M128: 52.9024 | N128: 1.128592 | O128: 1.128592 | P128: 1 | Q128: 12.23981 | R128: 12.23981 | S128: 0.02309 | T128: 0.02309 | U128: 1 | V128: 1.12257 | W128: 1.12257
B129: DN4 | C129: United Energy | D129: Urban | E129: 167 | F129: 6.804 | G129: 0.978 | H129: 4.692 | I129: 0 | J129: 0 | K129: 0 | L129: 0 | M129: 0 | N129: 0 | O129: 0 | P129: 0 | Q129: 0 | R129: 0 | S129: 0 | T129: 0 | U129: 0 | V129: 0 | W129: 0
B130: DN6 | C130: United Energy | D130: Urban | E130: 1095 | F130: 5.348 | G130: 0.989 | H130: 5.672 | I130: 0.092 | J130: 2.916 | K130: 12 | L130: 2.5189 | M130: 2.5189 | N130: 0.013659 | O130: 0.013659 | P130: 2 | Q130: 79.5147 | R130: 79.5147 | S130: 0.18352 | T130: 0.18352 | U130: 1 | V130: 0.98423 | W130: 0.98423
B131: DN7 | C131: United Energy | D131: Urban | E131: 793 | F131: 4.471 | G131: 3.168 | H131: 8.92 | I131: 0.255 | J131: 2.225 | K131: 8 | L131: 4.6418 | M131: 4.6418 | N131: 0.040168 | O131: 0.040168 | P131: 3 | Q131: 40.45698 | R131: 40.45698 | S131: 0.17536 | T131: 0.17536 | U131: 2 | V131: 1.96545 | W131: 1.96545
B132: DN8 | C132: United Energy | D132: Urban | E132: 319 | F132: 2.082 | G132: 6.459 | H132: 5.974 | I132: 1.468 | J132: 0.096 | K132: 4 | L132: 47.7462 | M132: 47.7462 | N132: 1.020628 | O132: 1.020628 | P132: 1 | Q132: 3.13076 | R132: 3.13076 | S132: 0.06262 | T132: 0.06262 | U132: 1 | V132: 1.01124 | W132: 1.01124
B133: DN9 | C133: United Energy | D133: Urban | E133: 77 | F133: 5.308 | G133: 2.145 | H133: 7.227 | I133: 0.481 | J133: 84.704 | K133: 4 | L133: 8.0264 | M133: 8.0264 | N133: 0.052 | O133: 0.052 | P133: 2 | Q133: 1414.70319 | R133: 1414.70319 | S133: 5.18697 | T133: 5.18697 | U133: 2 | V133: 1.91135 | W133: 1.91135
B134: DSH13 | C134: United Energy | D134: Urban | E134: 0 | F134: 0 | G134: 0.511 | H134: 12.837 | I134: 0 | J134: 0 | K134: 0 | L134: 0 | M134: 0 | N134: 0 | O134: 0 | P134: 0 | Q134: 0 | R134: 0 | S134: 0 | T134: 0 | U134: 0 | V134: 0 | W134: 0
B135: DSH14 | C135: United Energy | D135: Urban | E135: 151 | F135: 4.044 | G135: 2.704 | H135: 5.976 | I135: 0.139 | J135: 8.353 | K135: 3 | L135: 2.3382 | M135: 2.3382 | N135: 0.019828 | O135: 0.019828 | P135: 6 | Q135: 140.54199 | R135: 140.54199 | S135: 0.61467 | T135: 0.61467 | U135: 0 | V135: 0 | W135: 0
B136: DSH21 | C136: United Energy | D136: Urban | E136: 181 | F136: 3.738 | G136: 2.44 | H136: 10.102 | I136: 2.817 | J136: 0 | K136: 1 | L136: 30.2688 | M136: 30.2688 | N136: 0.987008 | O136: 0.987008 | P136: 0 | Q136: 0 | R136: 0 | S136: 0 | T136: 0 | U136: 0 | V136: 0 | W136: 0
B137: DSH22 | C137: United Energy | D137: Urban | E137: 8 | F137: 1.8 | G137: 0.241 | H137: 5.931 | I137: 0 | J137: 0 | K137: 0 | L137: 0 | M137: 0 | N137: 0 | O137: 0 | P137: 0 | Q137: 0 | R137: 0 | S137: 0 | T137: 0 | U137: 0 | V137: 0 | W137: 0
B138: DSH23 | C138: United Energy | D138: Urban | E138: 167 | F138: 2.762 | G138: 0.07 | H138: 2.735 | I138: 0.043 | J138: 0 | K138: 3 | L138: 2.0468 | M138: 2.0468 | N138: 0.017954 | O138: 0.017954 | P138: 0 | Q138: 0 | R138: 0 | S138: 0 | T138: 0 | U138: 0 | V138: 0 | W138: 0
B139: DSH24 | C139: United Energy | D139: Rural Short | E139: 215 | F139: 0.364 | G139: 8.815 | H139: 2.251 | I139: 0.01 | J139: 0.206 | K139: 2 | L139: 0.7395 | M139: 0.7395 | N139: 0.009304 | O139: 0.009304 | P139: 2 | Q139: 15.07317 | R139: 15.07317 | S139: 0.02791 | T139: 0.02791 | U139: 0 | V139: 0 | W139: 0
B140: DSH31 | C140: United Energy | D140: Urban | E140: 68 | F140: 3.49 | G140: 0.421 | H140: 6.82 | I140: 0.041 | J140: 0.26 | K140: 1 | L140: 1.0765 | M140: 1.0765 | N140: 0.014649 | O140: 0.014649 | P140: 1 | Q140: 6.81186 | R140: 6.81186 | S140: 0.04395 | T140: 0.04395 | U140: 1 | V140: 1.04009 | W140: 1.04009
B141: DSH32 | C141: United Energy | D141: Urban | E141: 197 | F141: 4.657 | G141: 1.237 | H141: 8.14 | I141: 0.146 | J141: 4.7 | K141: 3 | L141: 2.6928 | M141: 2.6928 | N141: 0.010171 | O141: 0.010171 | P141: 1 | Q141: 86.7071 | R141: 86.7071 | S141: 0.2797 | T141: 0.2797 | U141: 0 | V141: 0 | W141: 0
B142: DSH33 | C142: United Energy | D142: Urban | E142: 154 | F142: 2.236 | G142: 8.309 | H142: 14.37 | I142: 0.272 | J142: 1.258 | K142: 3 | L142: 3.6261 | M142: 3.6261 | N142: 0.019436 | O142: 0.019436 | P142: 1 | Q142: 16.77933 | R142: 16.77933 | S142: 0.04535 | T142: 0.04535 | U142: 0 | V142: 0 | W142: 0
B143: DSH34 | C143: United Energy | D143: Urban | E143: 329 | F143: 3.678 | G143: 3.005 | H143: 4.326 | I143: 0 | J143: 0.07 | K143: 0 | L143: 0 | M143: 0 | N143: 0 | O143: 0 | P143: 1 | Q143: 1.90221 | R143: 1.90221 | S143: 0.00608 | T143: 0.00608 | U143: 0 | V143: 0 | W143: 0
B144: DVY11 | C144: United Energy | D144: Urban | E144: 65 | F144: 1.328 | G144: 5.197 | H144: 5.362 | I144: 0.178 | J144: 1.206 | K144: 1 | L144: 4.317 | M144: 4.317 | N144: 0.973766 | O144: 0.973766 | P144: 2 | Q144: 29.21297 | R144: 29.21297 | S144: 0.13911 | T144: 0.13911 | U144: 0 | V144: 0 | W144: 0
B145: DVY13 | C145: United Energy | D145: Urban | E145: 79 | F145: 2.795 | G145: 1.512 | H145: 8.637 | I145: 0.265 | J145: 13.548 | K145: 2 | L145: 3.3279 | M145: 3.3279 | N145: 0.03775 | O145: 0.03775 | P145: 7 | Q145: 170.20111 | R145: 170.20111 | S145: 0.59141 | T145: 0.59141 | U145: 1 | V145: 1.01924 | W145: 1.01924
B146: DVY14 | C146: United Energy | D146: Urban | E146: 57 | F146: 2.019 | G146: 0.97 | H146: 6.882 | I146: 0.289 | J146: 4.378 | K146: 4 | L146: 4.9537 | M146: 4.9537 | N146: 0.070738 | O146: 0.070738 | P146: 2 | Q146: 75.15944 | R146: 75.15944 | S146: 0.14148 | T146: 0.14148 | U146: 0 | V146: 0 | W146: 0
B147: DVY21 | C147: United Energy | D147: Urban | E147: 143 | F147: 4.89 | G147: 2.37 | H147: 9.502 | I147: 0.165 | J147: 1.492 | K147: 2 | L147: 2.0965 | M147: 2.0965 | N147: 0.013971 | O147: 0.013971 | P147: 6 | Q147: 18.93829 | R147: 18.93829 | S147: 0.20957 | T147: 0.20957 | U147: 1 | V147: 1.00594 | W147: 1.00594
B148: DVY22 | C148: United Energy | D148: Urban | E148: 163 | F148: 3.521 | G148: 1.544 | H148: 6.511 | I148: 1.599 | J148: 1.862 | K148: 2 | L148: 33.0947 | M148: 33.0947 | N148: 0.092015 | O148: 0.092015 | P148: 3 | Q148: 38.52364 | R148: 38.52364 | S148: 0.20243 | T148: 0.20243 | U148: 1 | V148: 1.02443 | W148: 1.02443
B149: DVY23 | C149: United Energy | D149: Urban | E149: 135 | F149: 2.143 | G149: 1.815 | H149: 8.568 | I149: 0.048 | J149: 1.985 | K149: 1 | L149: 0.7221 | M149: 0.7221 | N149: 0.007408 | O149: 0.007408 | P149: 3 | Q149: 30.00038 | R149: 30.00038 | S149: 0.48149 | T149: 0.48149 | U149: 0 | V149: 0 | W149: 0
B150: DVY24 | C150: United Energy | D150: Rural Short | E150: 1203 | F150: 32.001 | G150: 15.056 | H150: 7.267 | I150: 3.665 | J150: 0.769 | K150: 12 | L150: 60.6865 | M150: 60.6865 | N150: 1.535526 | O150: 1.535526 | P150: 8 | Q150: 12.73148 | R150: 12.73148 | S150: 0.16544 | T150: 0.16544 | U150: 0 | V150: 0 | W150: 0
B151: DVY31 | C151: United Energy | D151: Urban | E151: 261 | F151: 2.903 | G151: 2.293 | H151: 7.829 | I151: 0.625 | J151: 0 | K151: 2 | L151: 9.9767 | M151: 9.9767 | N151: 0.069011 | O151: 0.069011 | P151: 0 | Q151: 0 | R151: 0 | S151: 0 | T151: 0 | U151: 0 | V151: 0 | W151: 0
B152: DVY32 | C152: United Energy | D152: Urban | E152: 134 | F152: 3.533 | G152: 2.042 | H152: 6.798 | I152: 0.041 | J152: 5.664 | K152: 1 | L152: 1.1064 | M152: 1.1064 | N152: 0.007436 | O152: 0.007436 | P152: 4 | Q152: 152.7264 | R152: 152.7264 | S152: 0.29742 | T152: 0.29742 | U152: 0 | V152: 0 | W152: 0
B153: DVY33 | C153: United Energy | D153: Urban | E153: 77 | F153: 1.296 | G153: 4.577 | H153: 6.492 | I153: 0 | J153: 2.171 | K153: 0 | L153: 0 | M153: 0 | N153: 0 | O153: 0 | P153: 1 | Q153: 44.94209 | R153: 44.94209 | S153: 0.10332 | T153: 0.10332 | U153: 0 | V153: 0 | W153: 0
B154: DVY34 | C154: United Energy | D154: Urban | E154: 695 | F154: 12.576 | G154: 7.835 | H154: 10.603 | I154: 0.008 | J154: 1.859 | K154: 1 | L154: 0.0965 | M154: 0.0965 | N154: 0.001438 | O154: 0.001438 | P154: 4 | Q154: 22.82962 | R154: 22.82962 | S154: 0.17257 | T154: 0.17257 | U154: 0 | V154: 0 | W154: 0
B155: EB11 | C155: United Energy | D155: Urban | E155: 1532 | F155: 4.267 | G155: 1.604 | H155: 8.01 | I155: 0.392 | J155: 0.535 | K155: 6 | L155: 7.1196 | M155: 7.1196 | N155: 0.087476 | O155: 0.087476 | P155: 2 | Q155: 9.71375 | R155: 9.71375 | S155: 0.02938 | T155: 0.02938 | U155: 0 | V155: 0 | W155: 0
B156: EB12 | C156: United Energy | D156: Urban | E156: 1884 | F156: 8.309 | G156: 0.163 | H156: 3.152 | I156: 0.135 | J156: 2.546 | K156: 5 | L156: 8.1622 | M156: 8.1622 | N156: 0.061984 | O156: 0.061984 | P156: 9 | Q156: 154.1155 | R156: 154.1155 | S156: 0.43569 | T156: 0.43569 | U156: 0 | V156: 0 | W156: 0
B157: EB13 | C157: United Energy | D157: Urban | E157: 582 | F157: 3.562 | G157: 2.19 | H157: 3.839 | I157: 0.715 | J157: 0.073 | K157: 2 | L157: 20.1554 | M157: 20.1554 | N157: 0.070413 | O157: 0.070413 | P157: 1 | Q157: 2.06088 | R157: 2.06088 | S157: 0.00687 | T157: 0.00687 | U157: 0 | V157: 0 | W157: 0
B158: EB14 | C158: United Energy | D158: Urban | E158: 2266 | F158: 6.877 | G158: 1.359 | H158: 3.739 | I158: 0.064 | J158: 2.129 | K158: 9 | L158: 3.0968 | M158: 3.0968 | N158: 0.018836 | O158: 0.018836 | P158: 17 | Q158: 103.07495 | R158: 103.07495 | S158: 0.29524 | T158: 0.29524 | U158: 1 | V158: 0.9837 | W158: 0.9837
B159: EB21 | C159: United Energy | D159: Urban | E159: 1404 | F159: 6.511 | G159: 0.761 | H159: 4.202 | I159: 0.643 | J159: 4.113 | K159: 5 | L159: 20.4257 | M159: 20.4257 | N159: 0.1006 | O159: 0.1006 | P159: 14 | Q159: 130.73171 | R159: 130.73171 | S159: 0.44231 | T159: 0.44231 | U159: 1 | V159: 0.95653 | W159: 0.95653
B160: EB22 | C160: United Energy | D160: Urban | E160: 2070 | F160: 8.235 | G160: 0.158 | H160: 5.818 | I160: 4.271 | J160: 0.246 | K160: 10 | L160: 120.3569 | M160: 120.3569 | N160: 2.020872 | O160: 2.020872 | P160: 2 | Q160: 6.92819 | R160: 6.92819 | S160: 0.01788 | T160: 0.01788 | U160: 2 | V160: 1.97297 | W160: 1.97297
B161: EB23 | C161: United Energy | D161: Urban | E161: 458 | F161: 2.696 | G161: 2.027 | H161: 6.284 | I161: 0.712 | J161: 0.761 | K161: 3 | L161: 11.5762 | M161: 11.5762 | N161: 0.068825 | O161: 0.068825 | P161: 3 | Q161: 12.38276 | R161: 12.38276 | S161: 0.04585 | T161: 0.04585 | U161: 1 | V161: 1.02435 | W161: 1.02435
B162: EB24 | C162: United Energy | D162: Urban | E162: 1322 | F162: 2.985 | G162: 1.085 | H162: 2.211 | I162: 0.136 | J162: 1.907 | K162: 3 | L162: 9.6335 | M162: 9.6335 | N162: 0.1375 | O162: 0.1375 | P162: 11 | Q162: 135.46204 | R162: 135.46204 | S162: 0.47714 | T162: 0.47714 | U162: 1 | V162: 0.88566 | W162: 0.88566
B163: EB31 | C163: United Energy | D163: Urban | E163: 2034 | F163: 6.32 | G163: 3.505 | H163: 6.22 | I163: 1.345 | J163: 2.709 | K163: 12 | L163: 29.0537 | M163: 29.0537 | N163: 0.344528 | O163: 0.344528 | P163: 4 | Q163: 58.50618 | R163: 58.50618 | S163: 0.16518 | T163: 0.16518 | U163: 2 | V163: 2.01608 | W163: 2.01608
B164: EB32 | C164: United Energy | D164: Urban | E164: 3954 | F164: 19.137 | G164: 1.787 | H164: 7.388 | I164: 0.559 | J164: 1.264 | K164: 21 | L164: 14.1566 | M164: 14.1566 | N164: 0.068234 | O164: 0.068234 | P164: 14 | Q164: 32.0274 | R164: 32.0274 | S164: 0.09737 | T164: 0.09737 | U164: 1 | V164: 0.99743 | W164: 0.99743
B165: EB33 | C165: United Energy | D165: Urban | E165: 2593 | F165: 7.952 | G165: 1.544 | H165: 6.185 | I165: 2.021 | J165: 0.176 | K165: 12 | L165: 45.7144 | M165: 45.7144 | N165: 0.996789 | O165: 0.996789 | P165: 2 | Q165: 3.98575 | R165: 3.98575 | S165: 0.01427 | T165: 0.01427 | U165: 0 | V165: 0 | W165: 0
B166: EL10 | C166: United Energy | D166: Urban | E166: 1212 | F166: 1.531 | G166: 0.999 | H166: 3.189 | I166: 0.38 | J166: 3.287 | K166: 14 | L166: 17.4479 | M166: 17.4479 | N166: 0.098488 | O166: 0.098488 | P166: 8 | Q166: 151.01727 | R166: 151.01727 | S166: 0.27878 | T166: 0.27878 | U166: 0 | V166: 0 | W166: 0
B167: EL11 | C167: United Energy | D167: Urban | E167: 235 | F167: 4.144 | G167: 0.257 | H167: 3.806 | I167: 0.03 | J167: 0.512 | K167: 2 | L167: 1.5418 | M167: 1.5418 | N167: 0.008516 | O167: 0.008516 | P167: 2 | Q167: 26.25124 | R167: 26.25124 | S167: 0.06387 | T167: 0.06387 | U167: 0 | V167: 0 | W167: 0
B168: EL12 | C168: United Energy | D168: Urban | E168: 345 | F168: 1.263 | G168: 0.842 | H168: 2.962 | I168: 0.016 | J168: 0 | K168: 1 | L168: 0.8528 | M168: 0.8528 | N168: 0.0029 | O168: 0.0029 | P168: 0 | Q168: 0 | R168: 0 | S168: 0 | T168: 0 | U168: 0 | V168: 0 | W168: 0
B169: EL13 | C169: United Energy | D169: Urban | E169: 1158 | F169: 3.391 | G169: 0.547 | H169: 3.287 | I169: 0.022 | J169: 0.629 | K169: 8 | L169: 1.0655 | M169: 1.0655 | N169: 0.006909 | O169: 0.006909 | P169: 6 | Q169: 30.16507 | R169: 30.16507 | S169: 0.09586 | T169: 0.09586 | U169: 0 | V169: 0 | W169: 0
B170: EL14 | C170: United Energy | D170: Urban | E170: 1290 | F170: 2.915 | G170: 0.93 | H170: 3.043 | I170: 0.02 | J170: 1.565 | K170: 9 | L170: 1.0411 | M170: 1.0411 | N170: 0.006975 | O170: 0.006975 | P170: 6 | Q170: 79.66104 | R170: 79.66104 | S170: 0.19064 | T170: 0.19064 | U170: 0 | V170: 0 | W170: 0
B171: EL5 | C171: United Energy | D171: Urban | E171: 874 | F171: 1.099 | G171: 3.706 | H171: 2.693 | I171: 0.407 | J171: 0.168 | K171: 10 | L171: 26.2058 | M171: 26.2058 | N171: 0.155562 | O171: 0.155562 | P171: 4 | Q171: 10.79014 | R171: 10.79014 | S171: 0.08241 | T171: 0.08241 | U171: 0 | V171: 0 | W171: 0
B172: EL6 | C172: United Energy | D172: Urban | E172: 1576 | F172: 3.575 | G172: 0.233 | H172: 3.45 | I172: 0.009 | J172: 1.992 | K172: 5 | L172: 0.5246 | M172: 0.5246 | N172: 0.003173 | O172: 0.003173 | P172: 7 | Q172: 122.66484 | R172: 122.66484 | S172: 0.39285 | T172: 0.39285 | U172: 0 | V172: 0 | W172: 0
B173: EL7 | C173: United Energy | D173: Urban | E173: 451 | F173: 1.643 | G173: 1.616 | H173: 2.316 | I173: 0.218 | J173: 0 | K173: 2 | L173: 19.388 | M173: 19.388 | N173: 0.135415 | O173: 0.135415 | P173: 0 | Q173: 0 | R173: 0 | S173: 0 | T173: 0 | U173: 0 | V173: 0 | W173: 0
B174: EL8 | C174: United Energy | D174: Urban | E174: 1551 | F174: 4.294 | G174: 0.445 | H174: 3.87 | I174: 0.072 | J174: 2.463 | K174: 8 | L174: 3.1678 | M174: 3.1678 | N174: 0.015367 | O174: 0.015367 | P174: 10 | Q174: 108.97613 | R174: 108.97613 | S174: 0.33275 | T174: 0.33275 | U174: 0 | V174: 0 | W174: 0
B175: EL9 | C175: United Energy | D175: Urban | E175: 859 | F175: 4.372 | G175: 2.079 | H175: 3.063 | I175: 0.042 | J175: 0 | K175: 3 | L175: 2.4989 | M175: 2.4989 | N175: 0.023076 | O175: 0.023076 | P175: 0 | Q175: 0 | R175: 0 | S175: 0 | T175: 0 | U175: 0 | V175: 0 | W175: 0
B176: EM1 | C176: United Energy | D176: Urban | E176: 1725 | F176: 2.208 | G176: 0.084 | H176: 3.504 | I176: 0.008 | J176: 10.087 | K176: 6 | L176: 0.3595 | M176: 0.3595 | N176: 0.003477 | O176: 0.003477 | P176: 25 | Q176: 474.16732 | R176: 474.16732 | S176: 1.17478 | T176: 1.17478 | U176: 0 | V176: 0 | W176: 0
B177: EM10 | C177: United Energy | D177: Urban | E177: 2232 | F177: 4.315 | G177: 0.956 | H177: 3.114 | I177: 0.005 | J177: 6.702 | K177: 6 | L177: 0.237 | M177: 0.237 | N177: 0.002688 | O177: 0.002688 | P177: 12 | Q177: 308.88343 | R177: 308.88343 | S177: 0.50172 | T177: 0.50172 | U177: 0 | V177: 0 | W177: 0
B178: EM11 | C178: United Energy | D178: Urban | E178: 963 | F178: 3.722 | G178: 1.199 | H178: 2.663 | I178: 1.369 | J178: 2.225 | K178: 7 | L178: 75.331 | M178: 75.331 | N178: 1.003812 | O178: 1.003812 | P178: 5 | Q178: 122.4921 | R178: 122.4921 | S178: 0.29793 | T178: 0.29793 | U178: 0 | V178: 0 | W178: 0
B179: EM2 | C179: United Energy | D179: Urban | E179: 628 | F179: 3.443 | G179: 0.732 | H179: 2.287 | I179: 2.534 | J179: 0 | K179: 8 | L179: 97.2461 | M179: 97.2461 | N179: 1.202617 | O179: 1.202617 | P179: 0 | Q179: 0 | R179: 0 | S179: 0 | T179: 0 | U179: 2 | V179: 1.9598 | W179: 1.9598
B180: EM3 | C180: United Energy | D180: Urban | E180: 412 | F180: 1.499 | G180: 0.473 | H180: 3.241 | I180: 0.007 | J180: 0 | K180: 1 | L180: 0.3263 | M180: 0.3263 | N180: 0.002426 | O180: 0.002426 | P180: 0 | Q180: 0 | R180: 0 | S180: 0 | T180: 0 | U180: 0 | V180: 0 | W180: 0
B181: EM5 | C181: United Energy | D181: Urban | E181: 1582 | F181: 4.858 | G181: 0.543 | H181: 3.7 | I181: 1.434 | J181: 2.478 | K181: 4 | L181: 65.7987 | M181: 65.7987 | N181: 0.890141 | O181: 0.890141 | P181: 13 | Q181: 113.72053 | R181: 113.72053 | S181: 0.29271 | T181: 0.29271 | U181: 0 | V181: 0 | W181: 0
B182: EM6 | C182: United Energy | D182: Urban | E182: 1314 | F182: 4.191 | G182: 1.471 | H182: 2.89 | I182: 0.228 | J182: 0.107 | K182: 7 | L182: 11.204 | M182: 11.204 | N182: 0.079646 | O182: 0.079646 | P182: 3 | Q182: 5.24047 | R182: 5.24047 | S182: 0.05785 | T182: 0.05785 | U182: 0 | V182: 0 | W182: 0
B183: EM7 | C183: United Energy | D183: Urban | E183: 1618 | F183: 5.547 | G183: 1.063 | H183: 3.904 | I183: 0.189 | J183: 0.478 | K183: 9 | L183: 7.1143 | M183: 7.1143 | N183: 0.954299 | O183: 0.954299 | P183: 5 | Q183: 17.99199 | R183: 17.99199 | S183: 0.09086 | T183: 0.09086 | U183: 0 | V183: 0 | W183: 0
B184: EM8 | C184: United Energy | D184: Urban | E184: 1682 | F184: 4.355 | G184: 1.344 | H184: 4.362 | I184: 0.037 | J184: 1.637 | K184: 7 | L184: 1.6915 | M184: 1.6915 | N184: 0.019856 | O184: 0.019856 | P184: 7 | Q184: 75.65739 | R184: 75.65739 | S184: 0.18613 | T184: 0.18613 | U184: 0 | V184: 0 | W184: 0
B185: EM9 | C185: United Energy | D185: Urban | E185: 1201 | F185: 3.229 | G185: 0.523 | H185: 2.458 | I185: 1.037 | J185: 2.211 | K185: 8 | L185: 70.7797 | M185: 70.7797 | N185: 1.024983 | O185: 1.024983 | P185: 6 | Q185: 150.887 | R185: 150.887 | S185: 0.43372 | T185: 0.43372 | U185: 0 | V185: 0 | W185: 0
B186: EW1 | C186: United Energy | D186: Urban | E186: 3103 | F186: 3.345 | G186: 2.78 | H186: 3.994 | I186: 5.332 | J186: 3.167 | K186: 22 | L186: 149.4065 | M186: 149.4065 | N186: 1.45847 | O186: 1.45847 | P186: 8 | Q186: 88.74149 | R186: 88.74149 | S186: 0.31164 | T186: 0.31164 | U186: 1 | V186: 0.98101 | W186: 0.98101
B187: EW12 | C187: United Energy | D187: Urban | E187: 2853 | F187: 3.906 | G187: 0.877 | H187: 3.683 | I187: 3.264 | J187: 4.932 | K187: 16 | L187: 125.9991 | M187: 125.9991 | N187: 1.027004 | O187: 1.027004 | P187: 21 | Q187: 190.35583 | R187: 190.35583 | S187: 0.57978 | T187: 0.57978 | U187: 1 | V187: 0.97098 | W187: 0.97098
B188: EW14 | C188: United Energy | D188: Urban | E188: 2069 | F188: 4.336 | G188: 2.951 | H188: 4.368 | I188: 1.791 | J188: 2.373 | K188: 8 | L188: 65.043 | M188: 65.043 | N188: 0.403519 | O188: 0.403519 | P188: 12 | Q188: 86.1598 | R188: 86.1598 | S188: 0.21795 | T188: 0.21795 | U188: 1 | V188: 0.61084 | W188: 0.61084
B189: EW2 | C189: United Energy | D189: Urban | E189: 2440 | F189: 2.925 | G189: 0.861 | H189: 2.708 | I189: 0.009 | J189: 1.895 | K189: 6 | L189: 0.4148 | M189: 0.4148 | N189: 0.002459 | O189: 0.002459 | P189: 8 | Q189: 87.06787 | R189: 87.06787 | S189: 0.22872 | T189: 0.22872 | U189: 0 | V189: 0 | W189: 0
B190: EW3 | C190: United Energy | D190: Urban | E190: 1154 | F190: 2.068 | G190: 0.987 | H190: 1.946 | I190: 1.878 | J190: 0.44 | K190: 11 | L190: 113.9264 | M190: 113.9264 | N190: 0.807503 | O190: 0.807503 | P190: 3 | Q190: 26.70703 | R190: 26.70703 | S190: 0.04767 | T190: 0.04767 | U190: 1 | V190: 0.98539 | W190: 0.98539
B191: EW8 | C191: United Energy | D191: Urban | E191: 1652 | F191: 1.616 | G191: 2.452 | H191: 1.664 | I191: 0.019 | J191: 0.852 | K191: 5 | L191: 1.3629 | M191: 1.3629 | N191: 0.003026 | O191: 0.003026 | P191: 2 | Q191: 61.94035 | R191: 61.94035 | S191: 0.14951 | T191: 0.14951 | U191: 1 | V191: 0.99148 | W191: 0.99148
B192: EW9 | C192: United Energy | D192: Urban | E192: 2809 | F192: 2.313 | G192: 1.519 | H192: 3.095 | I192: 0.256 | J192: 1.815 | K192: 13 | L192: 9.2435 | M192: 9.2435 | N192: 0.097231 | O192: 0.097231 | P192: 5 | Q192: 65.60381 | R192: 65.60381 | S192: 0.19046 | T192: 0.19046 | U192: 0 | V192: 0 | W192: 0
B193: FGY21 | C193: Ausnet | D193: Urban | E193: 13 | F193: 5.61 | G193: 1.419 | H193: 0 | I193: 0 | J193: 0 | K193: 0 | L193: 0 | M193: 0 | N193: 0 | O193: 0 | P193: 1 | Q193: 15.3113 | R193: 15.3113 | S193: 1.02075 | T193: 1.02075 | U193: 0 | V193: 0 | W193: 0
B194: FGY31 | C194: Ausnet | D194: Urban | E194: 22 | F194: 1.64 | G194: 0.167 | H194: 0 | I194: 0 | J194: 0 | K194: 5 | L194: 16.3773 | M194: 16.3773 | N194: 0.222175 | O194: 0.222175 | P194: 0 | Q194: 0 | R194: 0 | S194: 0 | T194: 0 | U194: 0 | V194: 0 | W194: 0
B195: FSH11 | C195: United Energy | D195: Urban | E195: 1470 | F195: 6.873 | G195: 1.098 | H195: 6.853 | I195: 1.921 | J195: 17.615 | K195: 11 | L195: 38.386 | M195: 38.386 | N195: 1.010313 | O195: 1.010313 | P195: 11 | Q195: 351.97745 | R195: 351.97745 | S195: 0.92844 | T195: 0.92844 | U195: 0 | V195: 0 | W195: 0
B196: FSH12 | C196: United Energy | D196: Rural Short | E196: 1762 | F196: 22.771 | G196: 5.177 | H196: 6.419 | I196: 1.584 | J196: 2.35 | K196: 13 | L196: 39.4284 | M196: 39.4284 | N196: 0.748437 | O196: 0.748437 | P196: 6 | Q196: 58.50371 | R196: 58.50371 | S196: 0.15154 | T196: 0.15154 | U196: 0 | V196: 0 | W196: 0
B197: FSH13 | C197: United Energy | D197: Rural Short | E197: 2431 | F197: 25.354 | G197: 2.053 | H197: 8.156 | I197: 3.181 | J197: 7.926 | K197: 34 | L197: 69.5543 | M197: 69.5543 | N197: 0.340204 | O197: 0.340204 | P197: 25 | Q197: 173.28352 | R197: 173.28352 | S197: 0.52232 | T197: 0.52232 | U197: 2 | V197: 2.68317 | W197: 2.68317
B198: FSH21 | C198: United Energy | D198: Rural Short | E198: 1573 | F198: 20.48 | G198: 3.161 | H198: 4.558 | I198: 0.073 | J198: 1.854 | K198: 9 | L198: 2.8581 | M198: 2.8581 | N198: 0.018428 | O198: 0.018428 | P198: 5 | Q198: 73.04588 | R198: 73.04588 | S198: 0.12904 | T198: 0.12904 | U198: 1 | V198: 1.36162 | W198: 1.36162
B199: FSH22 | C199: United Energy | D199: Urban | E199: 2777 | F199: 10.101 | G199: 2.73 | H199: 7.826 | I199: 0.101 | J199: 2.182 | K199: 11 | L199: 2.1358 | M199: 2.1358 | N199: 0.015528 | O199: 0.015528 | P199: 10 | Q199: 46.3335 | R199: 46.3335 | S199: 0.13396 | T199: 0.13396 | U199: 1 | V199: 0.98275 | W199: 0.98275
B200: FSH23 | C200: United Energy | D200: Rural Short | E200: 660 | F200: 11.401 | G200: 2.526 | H200: 3.411 | I200: 0.278 | J200: 1.083 | K200: 11 | L200: 15.3937 | M200: 15.3937 | N200: 0.120441 | O200: 0.120441 | P200: 6 | Q200: 59.8717 | R200: 59.8717 | S200: 0.15768 | T200: 0.15768 | U200: 0 | V200: 0 | W200: 0
B201: FSH31 | C201: United Energy | D201: Urban | E201: 3974 | F201: 15.677 | G201: 1.579 | H201: 7.646 | I201: 0.692 | J201: 4.065 | K201: 29 | L201: 16.0918 | M201: 16.0918 | N201: 0.102911 | O201: 0.102911 | P201: 15 | Q201: 94.50402 | R201: 94.50402 | S201: 0.22449 | T201: 0.22449 | U201: 1 | V201: 1.02093 | W201: 1.02093
B202: FSH32 | C202: United Energy | D202: Rural Short | E202: 947 | F202: 37.906 | G202: 2.609 | H202: 8.749 | I202: 0.661 | J202: 16.304 | K202: 19 | L202: 8.3861 | M202: 8.3861 | N202: 0.075655 | O202: 0.075655 | P202: 27 | Q202: 206.86621 | R202: 206.86621 | S202: 0.78486 | T202: 0.78486 | U202: 4 | V202: 5.24169 | W202: 5.24169
B203: FSH33 | C203: United Energy | D203: Urban | E203: 3259 | F203: 18.921 | G203: 5.407 | H203: 8.906 | I203: 2.355 | J203: 3.02 | K203: 32 | L203: 41.4564 | M203: 41.4564 | N203: 0.722049 | O203: 0.722049 | P203: 11 | Q203: 53.163 | R203: 53.163 | S203: 0.23291 | T203: 0.23291 | U203: 5 | V203: 5.0252 | W203: 5.0252
B204: FSH34 | C204: United Energy | D204: Urban | E204: 2931 | F204: 6.268 | G204: 7.629 | H204: 5.182 | I204: 0.413 | J204: 0.927 | K204: 12 | L204: 16.3156 | M204: 16.3156 | N204: 0.996053 | O204: 0.996053 | P204: 3 | Q204: 36.64847 | R204: 36.64847 | S204: 0.13478 | T204: 0.13478 | U204: 1 | V204: 1.01509 | W204: 1.01509
... 273 more rows

Sheet 3.6.9 Network-reliability
B1: =(LOOKUP(dms_Model,dms_Model_List,dms_Worksheet_List)) -> ANNUAL REPORTING STATEMENT
B2: =dms_TradingName -> United Energy
B3: =CONCATENATE("Annual Reporting RIN Response ",CRY) -> Annual Reporting RIN Response 2017
B4: 3.6 QUALITY OF SERVICES
B7: 3.6.9 - NETWORK FEEDER RELIABILITY - PLANNED OUTAGES
C8: =CRY -> 2017
B9: 3.6.9.1 - PLANNED MINUTES OFF SUPPLY (SAIDI)
B10: =INDEX(dms_FeederName_1,MATCH(dms_TradingName,dms_TradingName_List)) -> CBD | C10: 0
B11: =INDEX(dms_FeederName_2,MATCH(dms_TradingName,dms_TradingName_List)) -> Urban | C11: 64.6195197
B12: =INDEX(dms_FeederName_3,MATCH(dms_TradingName,dms_TradingName_List)) -> Short rural | C12: 153.0234118
B13: =INDEX(dms_FeederName_4,MATCH(dms_TradingName,dms_TradingName_List)) -> Long rural | C13: 0
B14: =IF((INDEX(dms_FeederName_5,MATCH(dms_TradingName,dms_TradingName_List))=0),"",(INDEX(dms_FeederName_5,MATCH(dms_TradingName,dms_TradingName_List)))) -> 
C16: =CRY -> 2017
B17: 3.6.9.2 - PLANNED INTERRUPTIONS TO SUPPLY (SAIFI)
B18: =INDEX(dms_FeederName_1,MATCH(dms_TradingName,dms_TradingName_List)) -> CBD | C18: 0
B19: =INDEX(dms_FeederName_2,MATCH(dms_TradingName,dms_TradingName_List)) -> Urban | C19: 0.1914276
B20: =INDEX(dms_FeederName_3,MATCH(dms_TradingName,dms_TradingName_List)) -> Short rural | C20: 0.5285357
B21: =INDEX(dms_FeederName_4,MATCH(dms_TradingName,dms_TradingName_List)) -> Long rural | C21: 0
B22: =IF((INDEX(dms_FeederName_5,MATCH(dms_TradingName,dms_TradingName_List))=0),"",(INDEX(dms_FeederName_5,MATCH(dms_TradingName,dms_TradingName_List)))) -> 

Sheet 4.1 Public lighting
B1: =(LOOKUP(dms_Model,dms_Model_List,dms_Worksheet_List)) -> ANNUAL REPORTING STATEMENT
B2: =dms_TradingName -> United Energy
B3: =CONCATENATE("Annual Reporting RIN Response ",CRY) -> Annual Reporting RIN Response 2017
B4: 4.1 PUBLIC LIGHTING
B6: Tables 4.1.1 - 4.1.3 deliberately omitted.
B8: 4.1.4 - PUBLIC LIGHTING METRICS BY TARIFF
C9: Number of Lights | D9: Public Lighting Revenue
B10: Tariff categories | C10: 0's | D10: $0's, nominal
B11: CC Mercury Vapour 1x125 | C11: 773 | D11: 65184
B12: CC Mercury Vapour 1x250 | C12: 120 | D12: 7601
B13: CC Mercury Vapour 1x400 | C13: 6 | D13: 526
B14: CC Mercury Vapour 1x50 | C14: 30 | D14: 2403
B15: CC Mercury Vapour 1x700 | C15: 3 | D15: 263
B16: CC Mercury Vapour 1x80 | C16: 26321 | D16: 1739461
B17: Compact Fluorescent 1x32 | C17: 1775 | D17: 59281
B18: Compact Fluorescent 1x42 | C18: 344 | D18: 11400
B19: Flourescent 2x20 | C19: 47 | D19: 3793
B20: Flourescent 3x20 | C20: 3 | D20: 198
B21: HP Sodium 1x100 | C21: 1034 | D21: 77256
B22: HP Sodium 1x150 | C22: 23988 | D22: 1630269
B23: HP Sodium 1x250 | C23: 10339 | D23: 717190
B24: HP Sodium 1x400 | C24: 315 | D24: 27860
B25: HP Sodium 1x70 | C25: 294 | D25: 34720
B26: LED 1x17 | C26: 1 | D26: 3
B27: LED 1x18 | C27: 10742 | D27: 177808
B28: LED 1x21.900 | C28: 6146 | D28: 37107
B29: LED 1x23 | C29: 4689 | D29: 28369
B30: LED 1x25 | C30: 10 | D30: 143
B31: LED 1x70.400 | C31: 13 | D31: 44
B32: metal halide 1x100 | C32: 95 | D32: 8716
B33: metal halide 1x150 | C33: 43 | D33: 2997
B34: metal halide 1x250 | C34: 125 | D34: 11770
B35: metal halide 1x400 | C35: 117 | D35: 10995
B36: metal halide 1x70 | C36: 9 | D36: 826
B37: T5 Fluorescent 2x14 | C37: 33025 | D37: 1110318
B38: T5 Fluorescent 2x24 | C38: 352 | D38: 11866
B39: Avoided costs | C39: 0 | D39: -210996
B51: To enter further tariff categories - please insert new lines above this line.
B52: Total | C52: =SUM(C11:C50) -> 120759 | D52: =SUM(D11:D50) -> 5567371

Sheet 6.2 STPIS Reliability
B1: =(LOOKUP(dms_Model,dms_Model_List,dms_Worksheet_List)) -> ANNUAL REPORTING STATEMENT
B2: =dms_TradingName -> United Energy
B3: =CONCATENATE("Annual Reporting RIN Response ",CRY) -> Annual Reporting RIN Response 2017
B4: 6.2 RELIABILITY AND CUSTOMER SERVICE PERFORMANCE
B6: Did the MAIFI parameter of the STPIS apply during the period? NB:This flag is set from the response on worksheet 3.6.8 Network feeders | D6: =dms_MAIFI_Flag -> Yes
B9: 6.2.1 - UNPLANNED MINUTES OFF SUPPLY (SAIDI)
D10: =CRY -> 2017
B11: Total sustained minutes off supply | C11: =INDEX(dms_FeederName_1,MATCH(dms_TradingName,dms_TradingName_List)) -> CBD | D11: 0
C12: =INDEX(dms_FeederName_2,MATCH(dms_TradingName,dms_TradingName_List)) -> Urban | D12: 41.21543034
C13: =INDEX(dms_FeederName_3,MATCH(dms_TradingName,dms_TradingName_List)) -> Short rural | D13: 65.37812653
C14: =INDEX(dms_FeederName_4,MATCH(dms_TradingName,dms_TradingName_List)) -> Long rural | D14: 0
C15: =IF((INDEX(dms_FeederName_5,MATCH(dms_TradingName,dms_TradingName_List))=0),"",(INDEX(dms_FeederName_5,MATCH(dms_TradingName,dms_TradingName_List)))) -> 
C16: Whole Network | D16: 42.93832022
B17: Total of excluded events* *see 3.3 of STPIS | C17: =INDEX(dms_FeederName_1,MATCH(dms_TradingName,dms_TradingName_List)) -> CBD | D17: 0
C18: =INDEX(dms_FeederName_2,MATCH(dms_TradingName,dms_TradingName_List)) -> Urban | D18: 0
C19: =INDEX(dms_FeederName_3,MATCH(dms_TradingName,dms_TradingName_List)) -> Short rural | D19: 0
C20: =INDEX(dms_FeederName_4,MATCH(dms_TradingName,dms_TradingName_List)) -> Long rural | D20: 0
C21: =IF((INDEX(dms_FeederName_5,MATCH(dms_TradingName,dms_TradingName_List))=0),"",(INDEX(dms_FeederName_5,MATCH(dms_TradingName,dms_TradingName_List)))) -> 
C22: Whole Network | D22: 0
B23: Total sustained minutes off supply after removing excluded events | C23: =INDEX(dms_FeederName_1,MATCH(dms_TradingName,dms_TradingName_List)) -> CBD | D23: 0
C24: =INDEX(dms_FeederName_2,MATCH(dms_TradingName,dms_TradingName_List)) -> Urban | D24: 41.21543034
C25: =INDEX(dms_FeederName_3,MATCH(dms_TradingName,dms_TradingName_List)) -> Short rural | D25: 65.37812653
C26: =INDEX(dms_FeederName_4,MATCH(dms_TradingName,dms_TradingName_List)) -> Long rural | D26: 0
C27: =IF((INDEX(dms_FeederName_5,MATCH(dms_TradingName,dms_TradingName_List))=0),"",(INDEX(dms_FeederName_5,MATCH(dms_TradingName,dms_TradingName_List)))) -> 
C28: Whole Network | D28: 42.93832022
B31: 6.2.2 - UNPLANNED INTERRUPTIONS TO SUPPLY (SAIFI)
D32: =CRY -> 2017
B33: Total sustained interruptions | C33: =INDEX(dms_FeederName_1,MATCH(dms_TradingName,dms_TradingName_List)) -> CBD | D33: 0
C34: =INDEX(dms_FeederName_2,MATCH(dms_TradingName,dms_TradingName_List)) -> Urban | D34: 0.606395624
C35: =INDEX(dms_FeederName_3,MATCH(dms_TradingName,dms_TradingName_List)) -> Short rural | D35: 1.110926814
C36: =INDEX(dms_FeederName_4,MATCH(dms_TradingName,dms_TradingName_List)) -> Long rural | D36: 0
C37: =IF((INDEX(dms_FeederName_5,MATCH(dms_TradingName,dms_TradingName_List))=0),"",(INDEX(dms_FeederName_5,MATCH(dms_TradingName,dms_TradingName_List)))) -> 
C38: Whole Network | D38: 0.642370569
B39: Total of excluded events* *see 3.3 of STPIS | C39: =INDEX(dms_FeederName_1,MATCH(dms_TradingName,dms_TradingName_List)) -> CBD | D39: 0
C40: =INDEX(dms_FeederName_2,MATCH(dms_TradingName,dms_TradingName_List)) -> Urban | D40: 0
C41: =INDEX(dms_FeederName_3,MATCH(dms_TradingName,dms_TradingName_List)) -> Short rural | D41: 0
C42: =INDEX(dms_FeederName_4,MATCH(dms_TradingName,dms_TradingName_List)) -> Long rural | D42: 0
C43: =IF((INDEX(dms_FeederName_5,MATCH(dms_TradingName,dms_TradingName_List))=0),"",(INDEX(dms_FeederName_5,MATCH(dms_TradingName,dms_TradingName_List)))) -> 
C44: Whole Network | D44: 0
B45: Total sustained interruptions after removing excluded events | C45: =INDEX(dms_FeederName_1,MATCH(dms_TradingName,dms_TradingName_List)) -> CBD | D45: 0
C46: =INDEX(dms_FeederName_2,MATCH(dms_TradingName,dms_TradingName_List)) -> Urban | D46: 0.606395624
C47: =INDEX(dms_FeederName_3,MATCH(dms_TradingName,dms_TradingName_List)) -> Short rural | D47: 1.110926814
C48: =INDEX(dms_FeederName_4,MATCH(dms_TradingName,dms_TradingName_List)) -> Long rural | D48: 0
C49: =IF((INDEX(dms_FeederName_5,MATCH(dms_TradingName,dms_TradingName_List))=0),"",(INDEX(dms_FeederName_5,MATCH(dms_TradingName,dms_TradingName_List)))) -> 
C50: Whole Network | D50: 0.642370569
B53: 6.2.3 - UNPLANNED MOMENTARY INTERRUPTIONS TO SUPPLY (MAIFI)
D54: =CRY -> 2017
B55: Total momentary interruptions | C55: =INDEX(dms_FeederName_1,MATCH(dms_TradingName,dms_TradingName_List)) -> CBD | D55: 0
C56: =INDEX(dms_FeederName_2,MATCH(dms_TradingName,dms_TradingName_List)) -> Urban | D56: 0.992879246
C57: =INDEX(dms_FeederName_3,MATCH(dms_TradingName,dms_TradingName_List)) -> Short rural | D57: 4.910240722
C58: =INDEX(dms_FeederName_4,MATCH(dms_TradingName,dms_TradingName_List)) -> Long rural | D58: 0
C59: =IF((INDEX(dms_FeederName_5,MATCH(dms_TradingName,dms_TradingName_List))=0),"",(INDEX(dms_FeederName_5,MATCH(dms_TradingName,dms_TradingName_List)))) -> 
C60: Whole Network | D60: 1.272201652
B61: Total of excluded events* *see 3.3 of STPIS | C61: =INDEX(dms_FeederName_1,MATCH(dms_TradingName,dms_TradingName_List)) -> CBD | D61: 0
C62: =INDEX(dms_FeederName_2,MATCH(dms_TradingName,dms_TradingName_List)) -> Urban | D62: 0
C63: =INDEX(dms_FeederName_3,MATCH(dms_TradingName,dms_TradingName_List)) -> Short rural | D63: 0
C64: =INDEX(dms_FeederName_4,MATCH(dms_TradingName,dms_TradingName_List)) -> Long rural | D64: 0
C65: =IF((INDEX(dms_FeederName_5,MATCH(dms_TradingName,dms_TradingName_List))=0),"",(INDEX(dms_FeederName_5,MATCH(dms_TradingName,dms_TradingName_List)))) -> 
C66: Whole Network | D66: 0
B67: Total momentary interruptions after removing excluded events | C67: =INDEX(dms_FeederName_1,MATCH(dms_TradingName,dms_TradingName_List)) -> CBD | D67: 0
C68: =INDEX(dms_FeederName_2,MATCH(dms_TradingName,dms_TradingName_List)) -> Urban | D68: 0.992879246
C69: =INDEX(dms_FeederName_3,MATCH(dms_TradingName,dms_TradingName_List)) -> Short rural | D69: 4.910240722
C70: =INDEX(dms_FeederName_4,MATCH(dms_TradingName,dms_TradingName_List)) -> Long rural | D70: 0
C71: =IF((INDEX(dms_FeederName_5,MATCH(dms_TradingName,dms_TradingName_List))=0),"",(INDEX(dms_FeederName_5,MATCH(dms_TradingName,dms_TradingName_List)))) -> 
C72: Whole Network | D72: 1.272201652
B75: 6.2.4 - DISTRIBUTION CUSTOMER NUMBERS
D76: =CRY -> 2017
B77: Customer numbers at the start of the period | C77: =INDEX(dms_FeederName_1,MATCH(dms_TradingName,dms_TradingName_List)) -> CBD | D77: 0
C78: =INDEX(dms_FeederName_2,MATCH(dms_TradingName,dms_TradingName_List)) -> Urban | D78: 621855
C79: =INDEX(dms_FeederName_3,MATCH(dms_TradingName,dms_TradingName_List)) -> Short rural | D79: 47971
C80: =INDEX(dms_FeederName_4,MATCH(dms_TradingName,dms_TradingName_List)) -> Long rural | D80: 0
C81: =IF((INDEX(dms_FeederName_5,MATCH(dms_TradingName,dms_TradingName_List))=0),"",(INDEX(dms_FeederName_5,MATCH(dms_TradingName,dms_TradingName_List)))) -> 
C82: Whole Network | D82: 669826
B83: Customer numbers at the end of the period | C83: =INDEX(dms_FeederName_1,MATCH(dms_TradingName,dms_TradingName_List)) -> CBD | D83: 0
C84: =INDEX(dms_FeederName_2,MATCH(dms_TradingName,dms_TradingName_List)) -> Urban | D84: 628758
C85: =INDEX(dms_FeederName_3,MATCH(dms_TradingName,dms_TradingName_List)) -> Short rural | D85: 48049
C86: =INDEX(dms_FeederName_4,MATCH(dms_TradingName,dms_TradingName_List)) -> Long rural | D86: 0
C87: =IF((INDEX(dms_FeederName_5,MATCH(dms_TradingName,dms_TradingName_List))=0),"",(INDEX(dms_FeederName_5,MATCH(dms_TradingName,dms_TradingName_List)))) -> 
C88: Whole Network | D88: 676807
B89: Average customer numbers | C89: =INDEX(dms_FeederName_1,MATCH(dms_TradingName,dms_TradingName_List)) -> CBD | D89: 0
C90: =INDEX(dms_FeederName_2,MATCH(dms_TradingName,dms_TradingName_List)) -> Urban | D90: 625307
C91: =INDEX(dms_FeederName_3,MATCH(dms_TradingName,dms_TradingName_List)) -> Short rural | D91: 48010
C92: =INDEX(dms_FeederName_4,MATCH(dms_TradingName,dms_TradingName_List)) -> Long rural | D92: 0
C93: =IF((INDEX(dms_FeederName_5,MATCH(dms_TradingName,dms_TradingName_List))=0),"",(INDEX(dms_FeederName_5,MATCH(dms_TradingName,dms_TradingName_List)))) ->  | D93: =ROUND(SUM(D81+D87)/2,0) -> 0
C94: Whole Network | D94: 673317

Sheet 6.6 STPIS Customer Service
B1: =(LOOKUP(dms_Model,dms_Model_List,dms_Worksheet_List)) -> ANNUAL REPORTING STATEMENT
B2: =dms_TradingName -> United Energy
B3: =CONCATENATE("Annual Reporting RIN Response ",CRY) -> Annual Reporting RIN Response 2017
B4: 6.6 STPIS CUSTOMER SERVICE
B7: 6.6.1 - TELEPHONE ANSWERING
C8: Number of calls after removing excluded events | D8: Total number of calls
C9: =CRY -> 2017 | D9: =CRY -> 2017
B10: Number of calls received | C10: 95613 | D10: 95613
B11: Number of calls answered within 30 seconds | C11: 76723
B12: Percentage of calls answered within 30 seconds | C12: 0.8

Sheet 6.7 STPIS Daily Performance
B1: =(LOOKUP(dms_Model,dms_Model_List,dms_Worksheet_List)) -> ANNUAL REPORTING STATEMENT | I1: =CONCATENATE(IF(LEN(CRY)=4,"1-Jan-","1-Jul-"),LEFT(CRY,4)) -> 1-Jan-2017
B2: =dms_TradingName -> United Energy
B3: =CONCATENATE("Annual Reporting RIN Response ",CRY) -> Annual Reporting RIN Response 2017
B4: 6.7 STPIS DAILY PERFORMANCE
B7: Did the MAIFI parameter of the STPIS apply during the period? This flag is set from the response on worksheet 3.6.8 Network feeders | G7: =dms_MAIFI_Flag -> Yes
B9: The excluded events to be removed from the data refer only to events listed in clause 3.3(a) of the STPIS, with respect to reliability data, and in clause 5.4 of the STPIS with respect to customer service parameters. *Customer service information must be reported as per the definitions in the STPIS, that is excluding: • calls to payment lines and automated interactive services • calls abandoned by the customer within 30 seconds of the call being queued for response by a human operator (where the time in which a telephone call is abandoned is not measured, then an estimate of the number of calls abandoned within 30 seconds will be determined by taking 20 per cent of all calls abandoned).
B11: 6.7.1 - DAILY PERFORMANCE DATA - UNPLANNED
B12: Date | C12: Customer service* | E12: MAIFI
C13: Number of calls received (after removing excluded events) | D13: Number of calls answered in 30 seconds (after removing excluded events) | E13: =INDEX(dms_FeederName_1,MATCH(dms_TradingName,dms_TradingName_List)) -> CBD | G13: =INDEX(dms_FeederName_2,MATCH(dms_TradingName,dms_TradingName_List)) -> Urban | I13: =INDEX(dms_FeederName_3,MATCH(dms_TradingName,dms_TradingName_List)) -> Short rural | K13: =INDEX(dms_FeederName_4,MATCH(dms_TradingName,dms_TradingName_List)) -> Long rural | M13: =IF((INDEX(dms_FeederName_5,MATCH(dms_TradingName,dms_TradingName_List))=0),"Network",(INDEX(dms_FeederName_5,MATCH(dms_TradingName,dms_TradingName_List)))) -> Network
E14: All events | F14: After removing excluded events | G14: All events | H14: After removing excluded events | I14: All events | J14: After removing excluded events | K14: All events | L14: After removing excluded events | M14: All events | N14: After removing excluded events
B15: =CONCATENATE(IF(LEN(CRY)=4,"1-Jan-","1-Jul-"),LEFT(CRY,4)) -> 1-Jan-2017 | C15: 80 | D15: 75 | E15: 0 | F15: 0 | G15: 0 | H15: 0 | I15: 0 | J15: 0 | K15: 0 | L15: 0 | M15: 0 | N15: 0
B16: =B15+1 -> 2017-01-02 | C16: 136 | D16: 123 | E16: 0 | F16: 0 | G16: 0 | H16: 0 | I16: 0 | J16: 0 | K16: 0 | L16: 0 | M16: 0 | N16: 0
B17: 2017-01-03 | C17: 201 | D17: 166 | E17: 0 | F17: 0 | G17: 0 | H17: 0 | I17: 0.0676 | J17: 0.0676 | K17: 0 | L17: 0 | M17: 0.0048 | N17: 0.0048
B18: 2017-01-04 | C18: 405 | D18: 231 | E18: 0 | F18: 0 | G18: 0.0062 | H18: 0.0062 | I18: 0.0891 | J18: 0.0891 | K18: 0 | L18: 0 | M18: 0.0121 | N18: 0.0121
B19: 2017-01-05 | C19: 323 | D19: 298 | E19: 0 | F19: 0 | G19: 0 | H19: 0 | I19: 0 | J19: 0 | K19: 0 | L19: 0 | M19: 0 | N19: 0
B20: 2017-01-06 | C20: 427 | D20: 338 | E20: 0 | F20: 0 | G20: 0 | H20: 0 | I20: 0 | J20: 0 | K20: 0 | L20: 0 | M20: 0 | N20: 0
B21: 2017-01-07 | C21: 899 | D21: 550 | E21: 0 | F21: 0 | G21: 0.0113 | H21: 0.0113 | I21: 0 | J21: 0 | K21: 0 | L21: 0 | M21: 0.0105 | N21: 0.0105
B22: 2017-01-08 | C22: 172 | D22: 135 | E22: 0 | F22: 0 | G22: 0 | H22: 0 | I22: 0.0087 | J22: 0.0087 | K22: 0 | L22: 0 | M22: 0.0006 | N22: 0.0006
B23: 2017-01-09 | C23: 299 | D23: 253 | E23: 0 | F23: 0 | G23: 0.0043 | H23: 0.0043 | I23: 0.0742 | J23: 0.0742 | K23: 0 | L23: 0 | M23: 0.0093 | N23: 0.0093
B24: 2017-01-10 | C24: 193 | D24: 190 | E24: 0 | F24: 0 | G24: 0 | H24: 0 | I24: 0.0412 | J24: 0.0412 | K24: 0 | L24: 0 | M24: 0.0029 | N24: 0.0029
B25: 2017-01-11 | C25: 272 | D25: 228 | E25: 0 | F25: 0 | G25: 0.0019 | H25: 0.0019 | I25: 0 | J25: 0 | K25: 0 | L25: 0 | M25: 0.0017 | N25: 0.0017
B26: 2017-01-12 | C26: 251 | D26: 213 | E26: 0 | F26: 0 | G26: 0.0041 | H26: 0.0041 | I26: 0 | J26: 0 | K26: 0 | L26: 0 | M26: 0.0038 | N26: 0.0038
B27: 2017-01-13 | C27: 425 | D27: 299 | E27: 0 | F27: 0 | G27: 0.0023 | H27: 0.0023 | I27: 0.1235 | J27: 0.1235 | K27: 0 | L27: 0 | M27: 0.0109 | N27: 0.0109
B28: 2017-01-14 | C28: 220 | D28: 182 | E28: 0 | F28: 0 | G28: 0 | H28: 0 | I28: 0 | J28: 0 | K28: 0 | L28: 0 | M28: 0 | N28: 0
B29: 2017-01-15 | C29: 133 | D29: 115 | E29: 0 | F29: 0 | G29: 0.0042 | H29: 0.0042 | I29: 0 | J29: 0 | K29: 0 | L29: 0 | M29: 0.0039 | N29: 0.0039
B30: 2017-01-16 | C30: 294 | D30: 245 | E30: 0 | F30: 0 | G30: 0.002 | H30: 0.002 | I30: 0 | J30: 0 | K30: 0 | L30: 0 | M30: 0.0018 | N30: 0.0018
B31: 2017-01-17 | C31: 462 | D31: 404 | E31: 0 | F31: 0 | G31: 0 | H31: 0 | I31: 0 | J31: 0 | K31: 0 | L31: 0 | M31: 0 | N31: 0
B32: 2017-01-18 | C32: 347 | D32: 257 | E32: 0 | F32: 0 | G32: 0 | H32: 0 | I32: 0 | J32: 0 | K32: 0 | L32: 0 | M32: 0 | N32: 0
B33: 2017-01-19 | C33: 314 | D33: 300 | E33: 0 | F33: 0 | G33: 0.0029 | H33: 0.0029 | I33: 0 | J33: 0 | K33: 0 | L33: 0 | M33: 0.0027 | N33: 0.0027
B34: 2017-01-20 | C34: 563 | D34: 327 | E34: 0 | F34: 0 | G34: 0.0213 | H34: 0.0213 | I34: 0 | J34: 0 | K34: 0 | L34: 0 | M34: 0.0198 | N34: 0.0198
B35: 2017-01-21 | C35: 167 | D35: 141 | E35: 0 | F35: 0 | G35: 0.0046 | H35: 0.0046 | I35: 0 | J35: 0 | K35: 0 | L35: 0 | M35: 0.0043 | N35: 0.0043
B36: 2017-01-22 | C36: 105 | D36: 97 | E36: 0 | F36: 0 | G36: 0.0061 | H36: 0.0061 | I36: 0.0412 | J36: 0.0412 | K36: 0 | L36: 0 | M36: 0.0086 | N36: 0.0086
B37: 2017-01-23 | C37: 642 | D37: 330 | E37: 0 | F37: 0 | G37: 0 | H37: 0 | I37: 0.0197 | J37: 0.0197 | K37: 0 | L37: 0 | M37: 0.0014 | N37: 0.0014
B38: 2017-01-24 | C38: 307 | D38: 257 | E38: 0 | F38: 0 | G38: 0.0053 | H38: 0.0053 | I38: 0 | J38: 0 | K38: 0 | L38: 0 | M38: 0.005 | N38: 0.005
B39: 2017-01-25 | C39: 264 | D39: 241 | E39: 0 | F39: 0 | G39: 0 | H39: 0 | I39: 0 | J39: 0 | K39: 0 | L39: 0 | M39: 0 | N39: 0
B40: 2017-01-26 | C40: 121 | D40: 103 | E40: 0 | F40: 0 | G40: 0.0024 | H40: 0.0024 | I40: 0 | J40: 0 | K40: 0 | L40: 0 | M40: 0.0022 | N40: 0.0022
B41: 2017-01-27 | C41: 217 | D41: 211 | E41: 0 | F41: 0 | G41: 0 | H41: 0 | I41: 0.0423 | J41: 0.0423 | K41: 0 | L41: 0 | M41: 0.003 | N41: 0.003
B42: 2017-01-28 | C42: 118 | D42: 84 | E42: 0 | F42: 0 | G42: 0 | H42: 0 | I42: 0 | J42: 0 | K42: 0 | L42: 0 | M42: 0 | N42: 0
B43: 2017-01-29 | C43: 110 | D43: 99 | E43: 0 | F43: 0 | G43: 0 | H43: 0 | I43: 0.0676 | J43: 0.0676 | K43: 0 | L43: 0 | M43: 0.0048 | N43: 0.0048
B44: 2017-01-30 | C44: 286 | D44: 238 | E44: 0 | F44: 0 | G44: 0.0052 | H44: 0.0052 | I44: 0.0335 | J44: 0.0335 | K44: 0 | L44: 0 | M44: 0.0073 | N44: 0.0073
B45: 2017-01-31 | C45: 319 | D45: 265 | E45: 0 | F45: 0 | G45: 0.0014 | H45: 0.0014 | I45: 0 | J45: 0 | K45: 0 | L45: 0 | M45: 0.0013 | N45: 0.0013
B46: 2017-02-01 | C46: 212 | D46: 198 | E46: 0 | F46: 0 | G46: 0.0025 | H46: 0.0025 | I46: 0 | J46: 0 | K46: 0 | L46: 0 | M46: 0.0023 | N46: 0.0023
B47: 2017-02-02 | C47: 300 | D47: 231 | E47: 0 | F47: 0 | G47: 0 | H47: 0 | I47: 0 | J47: 0 | K47: 0 | L47: 0 | M47: 0 | N47: 0
B48: 2017-02-03 | C48: 259 | D48: 217 | E48: 0 | F48: 0 | G48: 0.0082 | H48: 0.0082 | I48: 0 | J48: 0 | K48: 0 | L48: 0 | M48: 0.0076 | N48: 0.0076
B49: 2017-02-04 | C49: 239 | D49: 188 | E49: 0 | F49: 0 | G49: 0.0049 | H49: 0.0049 | I49: 0 | J49: 0 | K49: 0 | L49: 0 | M49: 0.0045 | N49: 0.0045
B50: 2017-02-05 | C50: 329 | D50: 175 | E50: 0 | F50: 0 | G50: 0.0094 | H50: 0.0094 | I50: 0 | J50: 0 | K50: 0 | L50: 0 | M50: 0.0087 | N50: 0.0087
B51: 2017-02-06 | C51: 428 | D51: 286 | E51: 0 | F51: 0 | G51: 0.0001 | H51: 0.0001 | I51: 0 | J51: 0 | K51: 0 | L51: 0 | M51: 0.0001 | N51: 0.0001
B52: 2017-02-07 | C52: 305 | D52: 268 | E52: 0 | F52: 0 | G52: 0 | H52: 0 | I52: 0.0748 | J52: 0.0748 | K52: 0 | L52: 0 | M52: 0.0053 | N52: 0.0053
B53: 2017-02-08 | C53: 694 | D53: 261 | E53: 0 | F53: 0 | G53: 0 | H53: 0 | I53: 0.0748 | J53: 0.0748 | K53: 0 | L53: 0 | M53: 0.0053 | N53: 0.0053
B54: 2017-02-09 | C54: 441 | D54: 317 | E54: 0 | F54: 0 | G54: 0.0063 | H54: 0.0063 | I54: 0 | J54: 0 | K54: 0 | L54: 0 | M54: 0.0058 | N54: 0.0058
B55: 2017-02-10 | C55: 342 | D55: 255 | E55: 0 | F55: 0 | G55: 0.0028 | H55: 0.0028 | I55: 0 | J55: 0 | K55: 0 | L55: 0 | M55: 0.0026 | N55: 0.0026
B56: 2017-02-11 | C56: 156 | D56: 131 | E56: 0 | F56: 0 | G56: 0.0006 | H56: 0.0006 | I56: 0 | J56: 0 | K56: 0 | L56: 0 | M56: 0.0006 | N56: 0.0006
B57: 2017-02-12 | C57: 84 | D57: 72 | E57: 0 | F57: 0 | G57: 0 | H57: 0 | I57: 0 | J57: 0 | K57: 0 | L57: 0 | M57: 0 | N57: 0
B58: 2017-02-13 | C58: 269 | D58: 222 | E58: 0 | F58: 0 | G58: 0.0077 | H58: 0.0077 | I58: 0 | J58: 0 | K58: 0 | L58: 0 | M58: 0.0071 | N58: 0.0071
B59: 2017-02-14 | C59: 276 | D59: 250 | E59: 0 | F59: 0 | G59: 0.0032 | H59: 0.0032 | I59: 0 | J59: 0 | K59: 0 | L59: 0 | M59: 0.0029 | N59: 0.0029
B60: 2017-02-15 | C60: 304 | D60: 207 | E60: 0 | F60: 0 | G60: 0.0047 | H60: 0.0047 | I60: 0.0791 | J60: 0.0791 | K60: 0 | L60: 0 | M60: 0.01 | N60: 0.01
B61: 2017-02-16 | C61: 216 | D61: 187 | E61: 0 | F61: 0 | G61: 0 | H61: 0 | I61: 0 | J61: 0 | K61: 0 | L61: 0 | M61: 0 | N61: 0
B62: 2017-02-17 | C62: 220 | D62: 210 | E62: 0 | F62: 0 | G62: 0.0028 | H62: 0.0028 | I62: 0.0401 | J62: 0.0401 | K62: 0 | L62: 0 | M62: 0.0055 | N62: 0.0055
B63: 2017-02-18 | C63: 181 | D63: 140 | E63: 0 | F63: 0 | G63: 0.0014 | H63: 0.0014 | I63: 0 | J63: 0 | K63: 0 | L63: 0 | M63: 0.0013 | N63: 0.0013
B64: 2017-02-19 | C64: 124 | D64: 104 | E64: 0 | F64: 0 | G64: 0.0018 | H64: 0.0018 | I64: 0 | J64: 0 | K64: 0 | L64: 0 | M64: 0.0017 | N64: 0.0017
B65: 2017-02-20 | C65: 303 | D65: 273 | E65: 0 | F65: 0 | G65: 0.0005 | H65: 0.0005 | I65: 0 | J65: 0 | K65: 0 | L65: 0 | M65: 0.0005 | N65: 0.0005
B66: 2017-02-21 | C66: 255 | D66: 221 | E66: 0 | F66: 0 | G66: 0 | H66: 0 | I66: 0 | J66: 0 | K66: 0 | L66: 0 | M66: 0 | N66: 0
B67: 2017-02-22 | C67: 283 | D67: 222 | E67: 0 | F67: 0 | G67: 0.0053 | H67: 0.0053 | I67: 0 | J67: 0 | K67: 0 | L67: 0 | M67: 0.0049 | N67: 0.0049
B68: 2017-02-23 | C68: 230 | D68: 217 | E68: 0 | F68: 0 | G68: 0 | H68: 0 | I68: 0 | J68: 0 | K68: 0 | L68: 0 | M68: 0 | N68: 0
B69: 2017-02-24 | C69: 241 | D69: 232 | E69: 0 | F69: 0 | G69: 0 | H69: 0 | I69: 0 | J69: 0 | K69: 0 | L69: 0 | M69: 0 | N69: 0
B70: 2017-02-25 | C70: 106 | D70: 96 | E70: 0 | F70: 0 | G70: 0.0064 | H70: 0.0064 | I70: 0 | J70: 0 | K70: 0 | L70: 0 | M70: 0.006 | N70: 0.006
B71: 2017-02-26 | C71: 139 | D71: 103 | E71: 0 | F71: 0 | G71: 0.0101 | H71: 0.0101 | I71: 0 | J71: 0 | K71: 0 | L71: 0 | M71: 0.0093 | N71: 0.0093
B72: 2017-02-27 | C72: 317 | D72: 300 | E72: 0 | F72: 0 | G72: 0 | H72: 0 | I72: 0 | J72: 0 | K72: 0 | L72: 0 | M72: 0 | N72: 0
B73: 2017-02-28 | C73: 269 | D73: 253 | E73: 0 | F73: 0 | G73: 0.0005 | H73: 0.0005 | I73: 0.0386 | J73: 0.0386 | K73: 0 | L73: 0 | M73: 0.0032 | N73: 0.0032
B74: 2017-03-01 | C74: 468 | D74: 400 | E74: 0 | F74: 0 | G74: 0.012 | H74: 0.012 | I74: 0 | J74: 0 | K74: 0 | L74: 0 | M74: 0.0111 | N74: 0.0111
B75: 2017-03-02 | C75: 282 | D75: 249 | E75: 0 | F75: 0 | G75: 0.0165 | H75: 0.0165 | I75: 0.1216 | J75: 0.1216 | K75: 0 | L75: 0 | M75: 0.024 | N75: 0.024
B76: 2017-03-03 | C76: 390 | D76: 287 | E76: 0 | F76: 0 | G76: 0.0013 | H76: 0.0013 | I76: 0 | J76: 0 | K76: 0 | L76: 0 | M76: 0.0012 | N76: 0.0012
B77: 2017-03-04 | C77: 122 | D77: 119 | E77: 0 | F77: 0 | G77: 0 | H77: 0 | I77: 0 | J77: 0 | K77: 0 | L77: 0 | M77: 0 | N77: 0
B78: 2017-03-05 | C78: 156 | D78: 97 | E78: 0 | F78: 0 | G78: 0.0118 | H78: 0.0118 | I78: 0 | J78: 0 | K78: 0 | L78: 0 | M78: 0.0109 | N78: 0.0109
B79: 2017-03-06 | C79: 225 | D79: 200 | E79: 0 | F79: 0 | G79: 0 | H79: 0 | I79: 0 | J79: 0 | K79: 0 | L79: 0 | M79: 0 | N79: 0
B80: =B79+1 -> 2017-03-07 | C80: 286 | D80: 239 | E80: 0 | F80: 0 | G80: 0 | H80: 0 | I80: 0 | J80: 0 | K80: 0 | L80: 0 | M80: 0 | N80: 0
B81: 2017-03-08 | C81: 422 | D81: 339 | E81: 0 | F81: 0 | G81: 0 | H81: 0 | I81: 0 | J81: 0 | K81: 0 | L81: 0 | M81: 0 | N81: 0
B82: 2017-03-09 | C82: 384 | D82: 293 | E82: 0 | F82: 0 | G82: 0 | H82: 0 | I82: 0 | J82: 0 | K82: 0 | L82: 0 | M82: 0 | N82: 0
B83: 2017-03-10 | C83: 253 | D83: 229 | E83: 0 | F83: 0 | G83: 0.0037 | H83: 0.0037 | I83: 0.0505 | J83: 0.0505 | K83: 0 | L83: 0 | M83: 0.007 | N83: 0.007
B84: 2017-03-11 | C84: 129 | D84: 102 | E84: 0 | F84: 0 | G84: 0 | H84: 0 | I84: 0 | J84: 0 | K84: 0 | L84: 0 | M84: 0 | N84: 0
B85: 2017-03-12 | C85: 178 | D85: 128 | E85: 0 | F85: 0 | G85: 0.0142 | H85: 0.0142 | I85: 0.0484 | J85: 0.0484 | K85: 0 | L85: 0 | M85: 0.0166 | N85: 0.0166
B86: 2017-03-13 | C86: 192 | D86: 124 | E86: 0 | F86: 0 | G86: 0 | H86: 0 | I86: 0 | J86: 0 | K86: 0 | L86: 0 | M86: 0 | N86: 0
B87: 2017-03-14 | C87: 264 | D87: 242 | E87: 0 | F87: 0 | G87: 0.0072 | H87: 0.0072 | I87: 0 | J87: 0 | K87: 0 | L87: 0 | M87: 0.0066 | N87: 0.0066
B88: 2017-03-15 | C88: 419 | D88: 340 | E88: 0 | F88: 0 | G88: 0.0024 | H88: 0.0024 | I88: 0 | J88: 0 | K88: 0 | L88: 0 | M88: 0.0022 | N88: 0.0022
B89: 2017-03-16 | C89: 279 | D89: 273 | E89: 0 | F89: 0 | G89: 0.0009 | H89: 0.0009 | I89: 0.087 | J89: 0.087 | K89: 0 | L89: 0 | M89: 0.007 | N89: 0.007
B90: 2017-03-17 | C90: 206 | D90: 193 | E90: 0 | F90: 0 | G90: 0 | H90: 0 | I90: 0 | J90: 0 | K90: 0 | L90: 0 | M90: 0 | N90: 0
B91: 2017-03-18 | C91: 160 | D91: 147 | E91: 0 | F91: 0 | G91: 0 | H91: 0 | I91: 0.0536 | J91: 0.0536 | K91: 0 | L91: 0 | M91: 0.0038 | N91: 0.0038
B92: 2017-03-19 | C92: 318 | D92: 202 | E92: 0 | F92: 0 | G92: 0.0117 | H92: 0.0117 | I92: 0.0745 | J92: 0.0745 | K92: 0 | L92: 0 | M92: 0.0161 | N92: 0.0161
B93: 2017-03-20 | C93: 331 | D93: 214 | E93: 0 | F93: 0 | G93: 0.0004 | H93: 0.0004 | I93: 0 | J93: 0 | K93: 0 | L93: 0 | M93: 0.0003 | N93: 0.0003
B94: 2017-03-21 | C94: 406 | D94: 343 | E94: 0 | F94: 0 | G94: 0 | H94: 0 | I94: 0 | J94: 0 | K94: 0 | L94: 0 | M94: 0 | N94: 0
B95: 2017-03-22 | C95: 392 | D95: 348 | E95: 0 | F95: 0 | G95: 0.0201 | H95: 0.0201 | I95: 0 | J95: 0 | K95: 0 | L95: 0 | M95: 0.0187 | N95: 0.0187
B96: 2017-03-23 | C96: 256 | D96: 235 | E96: 0 | F96: 0 | G96: 0.0029 | H96: 0.0029 | I96: 0 | J96: 0 | K96: 0 | L96: 0 | M96: 0.0027 | N96: 0.0027
B97: 2017-03-24 | C97: 211 | D97: 198 | E97: 0 | F97: 0 | G97: 0 | H97: 0 | I97: 0.0679 | J97: 0.0679 | K97: 0 | L97: 0 | M97: 0.0048 | N97: 0.0048
B98: 2017-03-25 | C98: 201 | D98: 157 | E98: 0 | F98: 0 | G98: 0 | H98: 0 | I98: 0 | J98: 0 | K98: 0 | L98: 0 | M98: 0 | N98: 0
B99: 2017-03-26 | C99: 126 | D99: 114 | E99: 0 | F99: 0 | G99: 0.0057 | H99: 0.0057 | I99: 0.0679 | J99: 0.0679 | K99: 0 | L99: 0 | M99: 0.0102 | N99: 0.0102
B100: 2017-03-27 | C100: 721 | D100: 487 | E100: 0 | F100: 0 | G100: 0.011 | H100: 0.011 | I100: 0 | J100: 0 | K100: 0 | L100: 0 | M100: 0.0102 | N100: 0.0102
B101: 2017-03-28 | C101: 279 | D101: 255 | E101: 0 | F101: 0 | G101: 0 | H101: 0 | I101: 0 | J101: 0 | K101: 0 | L101: 0 | M101: 0 | N101: 0
B102: 2017-03-29 | C102: 588 | D102: 397 | E102: 0 | F102: 0 | G102: 0.0022 | H102: 0.0022 | I102: 0.0842 | J102: 0.0842 | K102: 0 | L102: 0 | M102: 0.0081 | N102: 0.0081
B103: 2017-03-30 | C103: 280 | D103: 256 | E103: 0 | F103: 0 | G103: 0.0024 | H103: 0.0024 | I103: 0 | J103: 0 | K103: 0 | L103: 0 | M103: 0.0023 | N103: 0.0023
B104: 2017-03-31 | C104: 221 | D104: 147 | E104: 0 | F104: 0 | G104: 0 | H104: 0 | I104: 0 | J104: 0 | K104: 0 | L104: 0 | M104: 0 | N104: 0
B105: 2017-04-01 | C105: 179 | D105: 137 | E105: 0 | F105: 0 | G105: 0 | H105: 0 | I105: 0 | J105: 0 | K105: 0 | L105: 0 | M105: 0 | N105: 0
B106: 2017-04-02 | C106: 88 | D106: 84 | E106: 0 | F106: 0 | G106: 0 | H106: 0 | I106: 0 | J106: 0 | K106: 0 | L106: 0 | M106: 0 | N106: 0
B107: 2017-04-03 | C107: 237 | D107: 196 | E107: 0 | F107: 0 | G107: 0.0033 | H107: 0.0033 | I107: 0 | J107: 0 | K107: 0 | L107: 0 | M107: 0.003 | N107: 0.003
B108: 2017-04-04 | C108: 262 | D108: 244 | E108: 0 | F108: 0 | G108: 0.0024 | H108: 0.0024 | I108: 0 | J108: 0 | K108: 0 | L108: 0 | M108: 0.0022 | N108: 0.0022
B109: 2017-04-05 | C109: 202 | D109: 191 | E109: 0 | F109: 0 | G109: 0.0021 | H109: 0.0021 | I109: 0 | J109: 0 | K109: 0 | L109: 0 | M109: 0.002 | N109: 0.002
B110: 2017-04-06 | C110: 393 | D110: 256 | E110: 0 | F110: 0 | G110: 0.0119 | H110: 0.0119 | I110: 0.0537 | J110: 0.0537 | K110: 0 | L110: 0 | M110: 0.0149 | N110: 0.0149
B111: 2017-04-07 | C111: 315 | D111: 233 | E111: 0 | F111: 0 | G111: 0 | H111: 0 | I111: 0 | J111: 0 | K111: 0 | L111: 0 | M111: 0 | N111: 0
B112: 2017-04-08 | C112: 315 | D112: 216 | E112: 0 | F112: 0 | G112: 0.009 | H112: 0.009 | I112: 0 | J112: 0 | K112: 0 | L112: 0 | M112: 0.0084 | N112: 0.0084
B113: 2017-04-09 | C113: 226 | D113: 161 | E113: 0 | F113: 0 | G113: 0.0033 | H113: 0.0033 | I113: 0.0616 | J113: 0.0616 | K113: 0 | L113: 0 | M113: 0.0074 | N113: 0.0074
B114: 2017-04-10 | C114: 553 | D114: 221 | E114: 0 | F114: 0 | G114: 0.0016 | H114: 0.0016 | I114: 0 | J114: 0 | K114: 0 | L114: 0 | M114: 0.0015 | N114: 0.0015
B115: 2017-04-11 | C115: 293 | D115: 275 | E115: 0 | F115: 0 | G115: 0 | H115: 0 | I115: 0 | J115: 0 | K115: 0 | L115: 0 | M115: 0 | N115: 0
B116: 2017-04-12 | C116: 282 | D116: 224 | E116: 0 | F116: 0 | G116: 0.0026 | H116: 0.0026 | I116: 0 | J116: 0 | K116: 0 | L116: 0 | M116: 0.0024 | N116: 0.0024
B117: 2017-04-13 | C117: 218 | D117: 209 | E117: 0 | F117: 0 | G117: 0.0033 | H117: 0.0033 | I117: 0 | J117: 0 | K117: 0 | L117: 0 | M117: 0.0031 | N117: 0.0031
B118: 2017-04-14 | C118: 158 | D118: 127 | E118: 0 | F118: 0 | G118: 0 | H118: 0 | I118: 0.0755 | J118: 0.0755 | K118: 0 | L118: 0 | M118: 0.0054 | N118: 0.0054
B119: 2017-04-15 | C119: 103 | D119: 91 | E119: 0 | F119: 0 | G119: 0.0021 | H119: 0.0021 | I119: 0 | J119: 0 | K119: 0 | L119: 0 | M119: 0.0019 | N119: 0.0019
B120: 2017-04-16 | C120: 53 | D120: 50 | E120: 0 | F120: 0 | G120: 0 | H120: 0 | I120: 0 | J120: 0 | K120: 0 | L120: 0 | M120: 0 | N120: 0
B121: 2017-04-17 | C121: 72 | D121: 64 | E121: 0 | F121: 0 | G121: 0.0176 | H121: 0.0176 | I121: 0 | J121: 0 | K121: 0 | L121: 0 | M121: 0.0164 | N121: 0.0164
B122: 2017-04-18 | C122: 378 | D122: 325 | E122: 0 | F122: 0 | G122: 0 | H122: 0 | I122: 0.0502 | J122: 0.0502 | K122: 0 | L122: 0 | M122: 0.0036 | N122: 0.0036
B123: 2017-04-19 | C123: 405 | D123: 335 | E123: 0 | F123: 0 | G123: 0.002 | H123: 0.002 | I123: 0.2071 | J123: 0.2071 | K123: 0 | L123: 0 | M123: 0.0166 | N123: 0.0166
B124: 2017-04-20 | C124: 293 | D124: 276 | E124: 0 | F124: 0 | G124: 0 | H124: 0 | I124: 0 | J124: 0 | K124: 0 | L124: 0 | M124: 0 | N124: 0
B125: 2017-04-21 | C125: 346 | D125: 325 | E125: 0 | F125: 0 | G125: 0.0019 | H125: 0.0019 | I125: 0.0034 | J125: 0.0034 | K125: 0 | L125: 0 | M125: 0.002 | N125: 0.002
B126: 2017-04-22 | C126: 183 | D126: 126 | E126: 0 | F126: 0 | G126: 0.0039 | H126: 0.0039 | I126: 0 | J126: 0 | K126: 0 | L126: 0 | M126: 0.0036 | N126: 0.0036
B127: 2017-04-23 | C127: 104 | D127: 92 | E127: 0 | F127: 0 | G127: 0.005 | H127: 0.005 | I127: 0 | J127: 0 | K127: 0 | L127: 0 | M127: 0.0047 | N127: 0.0047
B128: 2017-04-24 | C128: 220 | D128: 201 | E128: 0 | F128: 0 | G128: 0 | H128: 0 | I128: 0.0087 | J128: 0.0087 | K128: 0 | L128: 0 | M128: 0.0006 | N128: 0.0006
B129: 2017-04-25 | C129: 175 | D129: 128 | E129: 0 | F129: 0 | G129: 0 | H129: 0 | I129: 0 | J129: 0 | K129: 0 | L129: 0 | M129: 0 | N129: 0
B130: 2017-04-26 | C130: 502 | D130: 328 | E130: 0 | F130: 0 | G130: 0.0024 | H130: 0.0024 | I130: 0 | J130: 0 | K130: 0 | L130: 0 | M130: 0.0022 | N130: 0.0022
B131: 2017-04-27 | C131: 335 | D131: 212 | E131: 0 | F131: 0 | G131: 0 | H131: 0 | I131: 0 | J131: 0 | K131: 0 | L131: 0 | M131: 0 | N131: 0
B132: 2017-04-28 | C132: 260 | D132: 228 | E132: 0 | F132: 0 | G132: 0 | H132: 0 | I132: 0 | J132: 0 | K132: 0 | L132: 0 | M132: 0 | N132: 0
B133: 2017-04-29 | C133: 145 | D133: 123 | E133: 0 | F133: 0 | G133: 0.0019 | H133: 0.0019 | I133: 0 | J133: 0 | K133: 0 | L133: 0 | M133: 0.0018 | N133: 0.0018
B134: 2017-04-30 | C134: 198 | D134: 163 | E134: 0 | F134: 0 | G134: 0.0021 | H134: 0.0021 | I134: 0 | J134: 0 | K134: 0 | L134: 0 | M134: 0.002 | N134: 0.002
B135: 2017-05-01 | C135: 286 | D135: 207 | E135: 0 | F135: 0 | G135: 0 | H135: 0 | I135: 0.0814 | J135: 0.0814 | K135: 0 | L135: 0 | M135: 0.0058 | N135: 0.0058
B136: 2017-05-02 | C136: 326 | D136: 277 | E136: 0 | F136: 0 | G136: 0.0033 | H136: 0.0033 | I136: 0 | J136: 0 | K136: 0 | L136: 0 | M136: 0.0031 | N136: 0.0031
B137: 2017-05-03 | C137: 307 | D137: 243 | E137: 0 | F137: 0 | G137: 0 | H137: 0 | I137: 0 | J137: 0 | K137: 0 | L137: 0 | M137: 0 | N137: 0
B138: 2017-05-04 | C138: 258 | D138: 205 | E138: 0 | F138: 0 | G138: 0 | H138: 0 | I138: 0 | J138: 0 | K138: 0 | L138: 0 | M138: 0 | N138: 0
B139: 2017-05-05 | C139: 272 | D139: 227 | E139: 0 | F139: 0 | G139: 0.0002 | H139: 0.0002 | I139: 0 | J139: 0 | K139: 0 | L139: 0 | M139: 0.0002 | N139: 0.0002
B140: 2017-05-06 | C140: 128 | D140: 98 | E140: 0 | F140: 0 | G140: 0.0047 | H140: 0.0047 | I140: 0 | J140: 0 | K140: 0 | L140: 0 | M140: 0.0044 | N140: 0.0044
B141: 2017-05-07 | C141: 102 | D141: 87 | E141: 0 | F141: 0 | G141: 0 | H141: 0 | I141: 0 | J141: 0 | K141: 0 | L141: 0 | M141: 0 | N141: 0
B142: 2017-05-08 | C142: 284 | D142: 250 | E142: 0 | F142: 0 | G142: 0 | H142: 0 | I142: 0 | J142: 0 | K142: 0 | L142: 0 | M142: 0 | N142: 0
B143: 2017-05-09 | C143: 245 | D143: 227 | E143: 0 | F143: 0 | G143: 0 | H143: 0 | I143: 0 | J143: 0 | K143: 0 | L143: 0 | M143: 0 | N143: 0
B144: =B143+1 -> 2017-05-10 | C144: 209 | D144: 186 | E144: 0 | F144: 0 | G144: 0 | H144: 0 | I144: 0 | J144: 0 | K144: 0 | L144: 0 | M144: 0 | N144: 0
B145: 2017-05-11 | C145: 299 | D145: 245 | E145: 0 | F145: 0 | G145: 0.0023 | H145: 0.0023 | I145: 0 | J145: 0 | K145: 0 | L145: 0 | M145: 0.0022 | N145: 0.0022
B146: 2017-05-12 | C146: 214 | D146: 202 | E146: 0 | F146: 0 | G146: 0 | H146: 0 | I146: 0.0211 | J146: 0.0211 | K146: 0 | L146: 0 | M146: 0.0015 | N146: 0.0015
B147: 2017-05-13 | C147: 108 | D147: 99 | E147: 0 | F147: 0 | G147: 0 | H147: 0 | I147: 0 | J147: 0 | K147: 0 | L147: 0 | M147: 0 | N147: 0
B148: 2017-05-14 | C148: 93 | D148: 72 | E148: 0 | F148: 0 | G148: 0 | H148: 0 | I148: 0 | J148: 0 | K148: 0 | L148: 0 | M148: 0 | N148: 0
B149: 2017-05-15 | C149: 375 | D149: 318 | E149: 0 | F149: 0 | G149: 0.0011 | H149: 0.0011 | I149: 0 | J149: 0 | K149: 0 | L149: 0 | M149: 0.0011 | N149: 0.0011
B150: 2017-05-16 | C150: 361 | D150: 313 | E150: 0 | F150: 0 | G150: 0.0018 | H150: 0.0018 | I150: 0 | J150: 0 | K150: 0 | L150: 0 | M150: 0.0017 | N150: 0.0017
B151: 2017-05-17 | C151: 248 | D151: 244 | E151: 0 | F151: 0 | G151: 0.0019 | H151: 0.0019 | I151: 0.027 | J151: 0.027 | K151: 0 | L151: 0 | M151: 0.0037 | N151: 0.0037
B152: 2017-05-18 | C152: 248 | D152: 225 | E152: 0 | F152: 0 | G152: 0.0048 | H152: 0.0048 | I152: 0.033 | J152: 0.033 | K152: 0 | L152: 0 | M152: 0.0068 | N152: 0.0068
B153: 2017-05-19 | C153: 221 | D153: 217 | E153: 0 | F153: 0 | G153: 0 | H153: 0 | I153: 0.0124 | J153: 0.0124 | K153: 0 | L153: 0 | M153: 0.0009 | N153: 0.0009
B154: 2017-05-20 | C154: 137 | D154: 110 | E154: 0 | F154: 0 | G154: 0 | H154: 0 | I154: 0.0235 | J154: 0.0235 | K154: 0 | L154: 0 | M154: 0.0017 | N154: 0.0017
B155: 2017-05-21 | C155: 164 | D155: 126 | E155: 0 | F155: 0 | G155: 0 | H155: 0 | I155: 0.0728 | J155: 0.0728 | K155: 0 | L155: 0 | M155: 0.0052 | N155: 0.0052
B156: 2017-05-22 | C156: 345 | D156: 334 | E156: 0 | F156: 0 | G156: 0.0017 | H156: 0.0017 | I156: 0.0156 | J156: 0.0156 | K156: 0 | L156: 0 | M156: 0.0027 | N156: 0.0027
B157: 2017-05-23 | C157: 326 | D157: 285 | E157: 0 | F157: 0 | G157: 0 | H157: 0 | I157: 0 | J157: 0 | K157: 0 | L157: 0 | M157: 0 | N157: 0
B158: 2017-05-24 | C158: 199 | D158: 168 | E158: 0 | F158: 0 | G158: 0 | H158: 0 | I158: 0 | J158: 0 | K158: 0 | L158: 0 | M158: 0 | N158: 0
B159: 2017-05-25 | C159: 215 | D159: 212 | E159: 0 | F159: 0 | G159: 0.0015 | H159: 0.0015 | I159: 0 | J159: 0 | K159: 0 | L159: 0 | M159: 0.0014 | N159: 0.0014
B160: 2017-05-26 | C160: 205 | D160: 193 | E160: 0 | F160: 0 | G160: 0.0033 | H160: 0.0033 | I160: 0 | J160: 0 | K160: 0 | L160: 0 | M160: 0.0031 | N160: 0.0031
B161: 2017-05-27 | C161: 131 | D161: 114 | E161: 0 | F161: 0 | G161: 0 | H161: 0 | I161: 0 | J161: 0 | K161: 0 | L161: 0 | M161: 0 | N161: 0
B162: 2017-05-28 | C162: 205 | D162: 170 | E162: 0 | F162: 0 | G162: 0 | H162: 0 | I162: 0 | J162: 0 | K162: 0 | L162: 0 | M162: 0 | N162: 0
B163: 2017-05-29 | C163: 293 | D163: 190 | E163: 0 | F163: 0 | G163: 0.0019 | H163: 0.0019 | I163: 0.0595 | J163: 0.0595 | K163: 0 | L163: 0 | M163: 0.006 | N163: 0.006
B164: 2017-05-30 | C164: 340 | D164: 309 | E164: 0 | F164: 0 | G164: 0.0077 | H164: 0.0077 | I164: 0 | J164: 0 | K164: 0 | L164: 0 | M164: 0.0071 | N164: 0.0071
B165: 2017-05-31 | C165: 368 | D165: 322 | E165: 0 | F165: 0 | G165: 0 | H165: 0 | I165: 0 | J165: 0 | K165: 0 | L165: 0 | M165: 0 | N165: 0
B166: 2017-06-01 | C166: 276 | D166: 195 | E166: 0 | F166: 0 | G166: 0.0019 | H166: 0.0019 | I166: 0 | J166: 0 | K166: 0 | L166: 0 | M166: 0.0018 | N166: 0.0018
B167: 2017-06-02 | C167: 279 | D167: 250 | E167: 0 | F167: 0 | G167: 0 | H167: 0 | I167: 0 | J167: 0 | K167: 0 | L167: 0 | M167: 0 | N167: 0
B168: 2017-06-03 | C168: 125 | D168: 105 | E168: 0 | F168: 0 | G168: 0.0043 | H168: 0.0043 | I168: 0 | J168: 0 | K168: 0 | L168: 0 | M168: 0.004 | N168: 0.004
B169: 2017-06-04 | C169: 87 | D169: 79 | E169: 0 | F169: 0 | G169: 0 | H169: 0 | I169: 0 | J169: 0 | K169: 0 | L169: 0 | M169: 0 | N169: 0
B170: 2017-06-05 | C170: 238 | D170: 214 | E170: 0 | F170: 0 | G170: 0 | H170: 0 | I170: 0.0279 | J170: 0.0279 | K170: 0 | L170: 0 | M170: 0.002 | N170: 0.002
B171: 2017-06-06 | C171: 494 | D171: 369 | E171: 0 | F171: 0 | G171: 0.0049 | H171: 0.0049 | I171: 0 | J171: 0 | K171: 0 | L171: 0 | M171: 0.0045 | N171: 0.0045
B172: 2017-06-07 | C172: 278 | D172: 226 | E172: 0 | F172: 0 | G172: 0 | H172: 0 | I172: 0 | J172: 0 | K172: 0 | L172: 0 | M172: 0 | N172: 0
B173: 2017-06-08 | C173: 292 | D173: 221 | E173: 0 | F173: 0 | G173: 0 | H173: 0 | I173: 0 | J173: 0 | K173: 0 | L173: 0 | M173: 0 | N173: 0
B174: 2017-06-09 | C174: 219 | D174: 206 | E174: 0 | F174: 0 | G174: 0 | H174: 0 | I174: 0 | J174: 0 | K174: 0 | L174: 0 | M174: 0 | N174: 0
B175: 2017-06-10 | C175: 160 | D175: 144 | E175: 0 | F175: 0 | G175: 0 | H175: 0 | I175: 0.0446 | J175: 0.0446 | K175: 0 | L175: 0 | M175: 0.0032 | N175: 0.0032
B176: 2017-06-11 | C176: 106 | D176: 90 | E176: 0 | F176: 0 | G176: 0 | H176: 0 | I176: 0 | J176: 0 | K176: 0 | L176: 0 | M176: 0 | N176: 0
B177: 2017-06-12 | C177: 68 | D177: 58 | E177: 0 | F177: 0 | G177: 0 | H177: 0 | I177: 0 | J177: 0 | K177: 0 | L177: 0 | M177: 0 | N177: 0
B178: 2017-06-13 | C178: 323 | D178: 211 | E178: 0 | F178: 0 | G178: 0.0022 | H178: 0.0022 | I178: 0 | J178: 0 | K178: 0 | L178: 0 | M178: 0.002 | N178: 0.002
B179: 2017-06-14 | C179: 308 | D179: 181 | E179: 0 | F179: 0 | G179: 0.0017 | H179: 0.0017 | I179: 0 | J179: 0 | K179: 0 | L179: 0 | M179: 0.0015 | N179: 0.0015
B180: 2017-06-15 | C180: 264 | D180: 240 | E180: 0 | F180: 0 | G180: 0 | H180: 0 | I180: 0.0264 | J180: 0.0264 | K180: 0 | L180: 0 | M180: 0.0019 | N180: 0.0019
B181: 2017-06-16 | C181: 261 | D181: 199 | E181: 0 | F181: 0 | G181: 0.0042 | H181: 0.0042 | I181: 0 | J181: 0 | K181: 0 | L181: 0 | M181: 0.0039 | N181: 0.0039
B182: 2017-06-17 | C182: 135 | D182: 111 | E182: 0 | F182: 0 | G182: 0.0053 | H182: 0.0053 | I182: 0 | J182: 0 | K182: 0 | L182: 0 | M182: 0.0049 | N182: 0.0049
B183: 2017-06-18 | C183: 88 | D183: 69 | E183: 0 | F183: 0 | G183: 0 | H183: 0 | I183: 0 | J183: 0 | K183: 0 | L183: 0 | M183: 0 | N183: 0
B184: 2017-06-19 | C184: 252 | D184: 231 | E184: 0 | F184: 0 | G184: 0 | H184: 0 | I184: 0.0264 | J184: 0.0264 | K184: 0 | L184: 0 | M184: 0.0019 | N184: 0.0019
B185: 2017-06-20 | C185: 295 | D185: 207 | E185: 0 | F185: 0 | G185: 0.0044 | H185: 0.0044 | I185: 0 | J185: 0 | K185: 0 | L185: 0 | M185: 0.0041 | N185: 0.0041
B186: 2017-06-21 | C186: 231 | D186: 222 | E186: 0 | F186: 0 | G186: 0 | H186: 0 | I186: 0 | J186: 0 | K186: 0 | L186: 0 | M186: 0 | N186: 0
B187: 2017-06-22 | C187: 239 | D187: 229 | E187: 0 | F187: 0 | G187: 0 | H187: 0 | I187: 0 | J187: 0 | K187: 0 | L187: 0 | M187: 0 | N187: 0
B188: 2017-06-23 | C188: 255 | D188: 248 | E188: 0 | F188: 0 | G188: 0.005 | H188: 0.005 | I188: 0 | J188: 0 | K188: 0 | L188: 0 | M188: 0.0047 | N188: 0.0047
B189: 2017-06-24 | C189: 105 | D189: 95 | E189: 0 | F189: 0 | G189: 0 | H189: 0 | I189: 0 | J189: 0 | K189: 0 | L189: 0 | M189: 0 | N189: 0
B190: 2017-06-25 | C190: 70 | D190: 70 | E190: 0 | F190: 0 | G190: 0 | H190: 0 | I190: 0 | J190: 0 | K190: 0 | L190: 0 | M190: 0 | N190: 0
B191: 2017-06-26 | C191: 276 | D191: 248 | E191: 0 | F191: 0 | G191: 0 | H191: 0 | I191: 0.0087 | J191: 0.0087 | K191: 0 | L191: 0 | M191: 0.0006 | N191: 0.0006
B192: 2017-06-27 | C192: 259 | D192: 235 | E192: 0 | F192: 0 | G192: 0 | H192: 0 | I192: 0 | J192: 0 | K192: 0 | L192: 0 | M192: 0 | N192: 0
B193: 2017-06-28 | C193: 269 | D193: 213 | E193: 0 | F193: 0 | G193: 0 | H193: 0 | I193: 0 | J193: 0 | K193: 0 | L193: 0 | M193: 0 | N193: 0
B194: 2017-06-29 | C194: 262 | D194: 200 | E194: 0 | F194: 0 | G194: 0 | H194: 0 | I194: 0 | J194: 0 | K194: 0 | L194: 0 | M194: 0 | N194: 0
B195: 2017-06-30 | C195: 255 | D195: 225 | E195: 0 | F195: 0 | G195: 0 | H195: 0 | I195: 0.0075 | J195: 0.0075 | K195: 0 | L195: 0 | M195: 0.0005 | N195: 0.0005
B196: 2017-07-01 | C196: 273 | D196: 133 | E196: 0 | F196: 0 | G196: 0.0076 | H196: 0.0076 | I196: 0 | J196: 0 | K196: 0 | L196: 0 | M196: 0.007 | N196: 0.007
B197: 2017-07-02 | C197: 203 | D197: 139 | E197: 0 | F197: 0 | G197: 0 | H197: 0 | I197: 0.0505 | J197: 0.0505 | K197: 0 | L197: 0 | M197: 0.0036 | N197: 0.0036
B198: 2017-07-03 | C198: 277 | D198: 214 | E198: 0 | F198: 0 | G198: 0 | H198: 0 | I198: 0 | J198: 0 | K198: 0 | L198: 0 | M198: 0 | N198: 0
B199: 2017-07-04 | C199: 246 | D199: 178 | E199: 0 | F199: 0 | G199: 0 | H199: 0 | I199: 0 | J199: 0 | K199: 0 | L199: 0 | M199: 0 | N199: 0
B200: 2017-07-05 | C200: 246 | D200: 229 | E200: 0 | F200: 0 | G200: 0 | H200: 0 | I200: 0 | J200: 0 | K200: 0 | L200: 0 | M200: 0 | N200: 0
B201: 2017-07-06 | C201: 290 | D201: 274 | E201: 0 | F201: 0 | G201: 0 | H201: 0 | I201: 0 | J201: 0 | K201: 0 | L201: 0 | M201: 0 | N201: 0
B202: 2017-07-07 | C202: 204 | D202: 170 | E202: 0 | F202: 0 | G202: 0 | H202: 0 | I202: 0 | J202: 0 | K202: 0 | L202: 0 | M202: 0 | N202: 0
B203: 2017-07-08 | C203: 166 | D203: 108 | E203: 0 | F203: 0 | G203: 0 | H203: 0 | I203: 0 | J203: 0 | K203: 0 | L203: 0 | M203: 0 | N203: 0
B204: 2017-07-09 | C204: 149 | D204: 103 | E204: 0 | F204: 0 | G204: 0 | H204: 0 | I204: 0 | J204: 0 | K204: 0 | L204: 0 | M204: 0 | N204: 0
... 176 more rows

Sheet 6.8 STPIS Exclusions
B1: =(LOOKUP(dms_Model,dms_Model_List,dms_Worksheet_List)) -> ANNUAL REPORTING STATEMENT
B2: =dms_TradingName -> United Energy
B3: =CONCATENATE("Annual Reporting RIN Response ",CRY) -> Annual Reporting RIN Response 2017
B4: 6.8 STPIS EXCLUSIONS
B7: =CONCATENATE("This information is collected to inform the application of the STPIS to ",dms_TradingName," in future regulatory periods. The information is also collected to monitor network performance, and may be used in performance reports.") -> This information is collected to inform the application of the STPIS to United Energy in future regulatory periods. The information is also collected to monitor network performance, and may be used in performance reports.
B9: 6.8.1 - STPIS EXCLUSIONS
B10: Date of event | C10: Outage ID | D10: Feeder ID / name | E10: Feeder classification (drop down) | F10: Cause of event (drop down) | G10: Unplanned | J10: Event category | K10: Effect on unplanned MAIFI | L10: Please provide separate explanation to confirm the outage was not due to inadequate transmission connection planning
B11: DD/MM/YYYY | G11: Number of interruptions | H11: Duration of interruption (mins) | I11: Total unplanned minutes off supply | J11: Use exclusion categories listed in section 3.3(a) of the STPIS (drop down) | K11: by feeder classification
L12: No Exclusions or MEDs for United Energy in 2017
B403: To enter further events - please insert new lines above this line.

Sheet 6.9 STPIS - GSL
B1: =(LOOKUP(dms_Model,dms_Model_List,dms_Worksheet_List)) -> ANNUAL REPORTING STATEMENT
B2: =dms_TradingName -> United Energy
B3: =CONCATENATE("Annual Reporting RIN Response ",CRY) -> Annual Reporting RIN Response 2017
B4: 6.9 STPIS - GUARANTEED SERVICE LEVEL
B6: Did the AER's GSL Scheme apply at any time during the regulatory year? | D6: No | E6: **IMPORTANT Please ensure this flag is set. Conditional formatting on this worksheet is dependant on this response.
B8: Instructions: Table 6.9.1 collects information relating to jurisdiction GSL scheme parameters. These parameters can be found in the jurisdictonal scheme relevant to NSP. Please identify each parameter in the relevant sub-tables and provide the volume and value of GSL payments. For GSL parameters that do not fit within the provided sub-tables provided, please enter a heading and identify the relevant parameter(s).
B10: 6.9.1 - GUARANTEED SERVICE LEVELS - JURISDICTIONAL GSL SCHEME
D11: =CRY -> 2017 | E11: =CRY -> 2017
D12: Volume | E12: Value of GSL payments
D13: 0's | E13: $0's
B14: Appointments
B15: Customer Arranged Appointments | D15: 5529
B16: Appointments not met within 15 minutes of agreed time | D16: 2
B17: Appoinments GSL Payments | D17: 2 | E17: 60
B19: To enter further GSL parameters relating to appointments - please copy a row from above and "insert copied cells" above this row.
B21: Connections
B22: Connections Made | D22: 12835
B23: Connections not made on agreed date | D23: 427
B24: Connections - GSL payments - 1-4 day delay | D24: 283 | E24: 38430
B25: Connections - GSL payments - 5+ day delay | D25: 144 | E25: 50400
B27: To enter further GSL parameters relating to connections - please copy a row from above and "insert copied cells" above this row.
B29: Reliability of supply
B30: Low reliability payments - Annual Duration of Unplanned Interuptions - 20 hours | D30: 258 | E30: 30960
B31: Low reliability payments - Annual Duration of Unplanned Interuptions - 30 hours | D31: 6 | E31: 1080
B32: Low reliability payments - Annual Duration of Unplanned Interuptions - 60 hours | D32: 1 | E32: 360
B33: Low reliability payments - Low Reliability Payments >8 events | D33: 2 | E33: 240
B34: Low reliability payments - Low Reliability Payments >12 events | D34: 0 | E34: 0
B35: Low reliability payments - Low Reliability Payments >24 events | D35: 0 | E35: 0
B36: Low reliability payments - Annual Frequency of Momentary Interuptions - 24 | D36: 0 | E36: 0
B37: Low reliability payments - Annual Frequency of Momentary Interuptions - 36 | D37: 0 | E37: 0
B38: Duration of an individual unplanned interuptions > 12hrs (CBD & Urban Feeders) | D38: 473 | E38: 37840
B39: Duration of an individual unplanned interuptions > 18hrs (Short & Long Rural Feeders) | D39: 0 | E39: 0
B41: To enter further GSL parameters relating to reliability of supply - please copy a row from above and "insert copied cells" above this row.
B43: Street lights
B44: Street lights | D44: 120839
B45: Street lights "out" during period | D45: 9407
B46: Street lights not repaired by "fix by" date | D46: 668
B47: Street lights not repaired in 2 business days | D47: 2134
B48: Street lights - number of business days to repair | D48: 2
B49: Street lights - GSL payments | D49: 97 | E49: 2425
B51: To enter further GSL parameters relating to street lights - please copy a row from above and "insert copied cells" above this row.
B53: Planned interruptions
B54: Planned Interruptions - 4 business days notice not given | D54: 93
B63: To enter further GSL parameters relating to planned interruptions - please copy a row from above and "insert copied cells" above this row.
B65: <NSP defined parameter category>
B69: To enter further GSL parameters - please identify the parameter and if insufficient rows please copy a row from above and "insert copied cells" above this row.
B71: <NSP defined parameter category>
B75: To enter further GSL parameters - please identify the parameter and if insufficient rows please copy a row from above and "insert copied cells" above this row.
B77: <NSP defined parameter category>
B81: To enter further GSL parameters - please identify the parameter and if insufficient rows please copy a row from above and "insert copied cells" above this row.
B83: <NSP defined parameter category>
B87: To enter further GSL parameters - please identify the parameter and if insufficient rows please copy a row from above and "insert copied cells" above this row.
B90: 6.9.2 - GUARANTEED SERVICE LEVELS - AER GSL SCHEME
B92: Complete Table 6.9.2 if the AER's GSL scheme applied at any time during the regulatory year. Do not complete Table 6.9.2 if the AER's GSL scheme did not apply during the regulatory year.
D94: =CRY -> 2017 | E94: =CRY -> 2017
D95: Volume | E95: Value of GSL payments
D96: 0's | E96: $0's
B97: New connections
B98: Number of connections made
B99: Number of connections not made on or before the day agreed
B100: Connections - GSL payments – 1-6 day delay
B101: Connections - GSL payments – 7+ day delay
B102: Reliability of supply
B103: Frequency of interruptions – CBD feeders – 9 interruptions
B104: Frequency of interruptions – Urban feeders – 9 interruptions
B105: Frequency of interruptions – Rural (short and long) feeders – 15 interruptions
B106: Interruptions – CBD feeders – 12 hours duration
B107: Interruptions – Urban feeders – 12 hours duration
B108: Interruptions – Rural (short and long) feeders – 18 hours duration
B109: Total duration of interruptions Level 1 – 20 hours
B110: Total duration of interruptions Level 2 – 30 hours
B111: Total duration of interruptions Level 3 – 60 hours
B112: Street lights
B113: Streetlight repair 5 days – GSL payments
B114: Planned interruptions
B115: Notice of planned interruptions – 4 business days notice not given
B116: Total | E116: =SUM(E115,E113,E103:E111,E100:E101) -> 0

Sheet 7.8 Avoided TUOS Payments
B1: =(LOOKUP(dms_Model,dms_Model_List,dms_Worksheet_List)) -> ANNUAL REPORTING STATEMENT
B2: =dms_TradingName -> United Energy
B3: =CONCATENATE("Annual Reporting RIN Response ",CRY) -> Annual Reporting RIN Response 2017
B4: 7.8 - AVOIDED TUOS PAYMENTS
B6: 7.8.1 - AVOIDED TUOS PAYMENTS
C7: Avoided TUOS Payment
C8: $0's, nominal
B9: Embedded generators | C9: 11279
B10: Market network service providers | C10: 0
B11: Other | C11: 0

Sheet 7.10 Juris Scheme
B1: =(LOOKUP(dms_Model,dms_Model_List,dms_Worksheet_List)) -> ANNUAL REPORTING STATEMENT
B2: =dms_TradingName -> United Energy
B3: =CONCATENATE("Annual Reporting RIN Response ",CRY) -> Annual Reporting RIN Response 2017
B4: 7.10 - JURISDICTIONAL SCHEMES
B6: Instructions Business must list each relevant jurisdictional scheme individually and report information for each scheme separately from other schemes.
B8: 7.10.1 - JURISDICTIONAL SCHEME PAYMENTS
B9: Jurisdictional Scheme Name | C9: Description | D9: Date DNSP Became Subject to Scheme | E9: Description of Cost Recovery Method | F9: Total Scheme Payments
F10: $0's, nominal
B11: PFIT | C11: Solar Rebate | D11: 1970-01-01T00:33:37 | E11: Full recovery via tariff submission | F11: 12876415.92
B12: TFIT | C12: Solar Rebate | D12: 1970-01-01T00:33:37 | E12: Full recovery via tariff submission | F12: 622927.44
E17: Total | F17: =SUM(F11:F16) -> 13499343.36

Sheet 7.11 DMIS-DMIA
B1: =(LOOKUP(dms_Model,dms_Model_List,dms_Worksheet_List)) -> ANNUAL REPORTING STATEMENT
B2: =dms_TradingName -> United Energy
B3: =CONCATENATE("Annual Reporting RIN Response ",CRY) -> Annual Reporting RIN Response 2017
B4: 7.11 - DEMAND MANAGEMENT INCENTIVE SCHEME
B6: 7.11.1 - DMIA - PROJECTS SUBMITTED FOR APPROVAL
C7: =CONCATENATE("Total amount of the DMIA spent in ", CRY) -> Total amount of the DMIA spent in 2017
C8: Operating expenditure | D8: Capital expenditure | E8: Total
B9: Name of project | C9: $0's, nominal
B10: Summer Saver Program | C10: 288192.37 | E10: =SUM(C10:D10) -> 288192.37
B11: Virtual Power Plant Stage 1 (VPP) | C11: 62074.35 | E11: 62074.35
E12: 0
E13: 0
E14: 0
E15: 0
E16: 0
E17: 0
E18: 0
E19: 0
E20: 0
E21: 0
E22: 0
E23: 0
E24: 0
E25: 0
E26: 0
E27: 0
E28: 0
E29: 0
E30: 0
E31: 0
E32: 0
E33: 0
E34: 0
E35: 0
E36: 0
E37: 0
E38: 0
E39: 0
E40: 0
E41: 0
E42: 0
E43: 0
E44: 0
B45: To enter additional projects - please copy an existing row and insert above this row.
B46: Total | C46: =SUM(C10:C45) -> 350266.72 | D46: =SUM(D10:D45) -> 0 | E46: =SUM(E10:E45) -> 350266.72

Sheet 7.12 Safety and Bushfire
B1: =(LOOKUP(dms_Model,dms_Model_List,dms_Worksheet_List)) -> ANNUAL REPORTING STATEMENT
B2: =dms_TradingName -> United Energy
B3: =CONCATENATE("Annual Reporting RIN Response ",CRY) -> Annual Reporting RIN Response 2017
B4: 7.12 SAFETY AND BUSHFIRE RELATED EXPENDITURE
B6: These templates collect information from Victorian businesses only. Bushfire and safety related expenditure information is used by the AER to monitor the expenditures throughout the regulatory control period.
B8: CPI applied to convert expected expenditure in real $ to nominal based on lagged September CPI index
B10: Instructions
B11: For "Exclusive of Margins & Overheads" reported expenditure is to EXCLUDE any overheads, profit margins or management fees paid directly or indirectly to related party contractors (not including actual incurred expense of the related party contractor) for the reporting period.
B12: For "Value of Margins & Overheads" reported expenditure is to COMPRISE ONLY the sum of overheads, profit margins or management fees paid directly or indirectly to related party contractors (not including actual incurred expenses of the related party contractor) for the reporting period.
B14: =CONCATENATE(dms_TradingName, " is to specify each activity in this table in accordance with the definition in Appendix F of the RIN.") -> United Energy is to specify each activity in this table in accordance with the definition in Appendix F of the RIN.
B15: All activities must be reported but the Reason for Difference is only required if there is a 10 per cent difference between the expected value and the actual value. Use median unit costs. Where unit costs are not recorded at the asset category level - provide the best estimates of the unit cost using the cost allocation method identified in this table. (As a transitional measure, the unit cost may be based on a statistically significant annual sample of actual work orders at a 5% or better confidence interval.) Provide basis of allocation where applicable.
B17: 7.12.1 - SAFETY AND BUSHFIRE RELATED ASSET GROUP DEFINITIONS AND ALLOCATION BASIS
B18: Activity | C18: Definitions | G18: Basis for allocation of cost to activity
B19: Planned non-preferred services replacements
B20: Planned replacement of non-preferred services due to height
B21: Removal of public lighting switchwire
B22: Replacement of existing SWER lines with 22kV overhead bare conductor
B23: Installation of GFN and associated equipment at zone substations
B24: Replacement of crossarms/insulator sets – pole top fire mitigation
B25: Replacement of crossarms – based on age and condition
B26: Replacement of poles – based on age and condition
B27: Stake poles – based on age and condition
B28: Replacement of undersized poles
B29: Stake undersized poles
B30: Replacement of overhead conductor – mainly steel
B31: Service line clearance – overhead services requiring relocation
B32: Service line clearance – overhead services requiring undergrounding
B33: Replacement of 22kV distribution feeders with ABC/underground cabling
B34: Replacement of SWER with covered carbon core conductor or equivalent
B35: Replacement of SWER with ABC
B36: Replacement of SWER with underground
B37: Replacement of surge diverters (neptune configuration)
B38: Replacement of surge diverters (single phase or three phase)
B39: Armour Rods and Vibration Dampers
B40: SWER ACRS
B41: Multicircuit Clearances (LBRA Survey)
B42: Multicircuit Clearances (HBRA)
B50: To enter further activities - please copy row from above and "insert copied cells" into a row above this row.
B53: 7.12.2 - BUSHFIRE RELATED
B55: 7.12.2.1 - NUMBER OF ACTIVITIES
B56: Activity | C56: Units | D56: Number of Activities
B57: Planned non-preferred services replacements | C57: number of services
B58: Planned replacement of non-preferred services due to height | C58: number of services
B59: Removal of public lighting switchwire | C59: number of spans removed
B60: Replacement of existing SWER lines with 22kV overhead bare conductor | C60: kms of SWER
B61: Installation of GFN and associated equipment at zone substations | C61: number of zone substations
B62: Replacement of crossarms/insulator sets – pole top fire mitigation | C62: number of crossarms/sets
B63: Replacement of crossarms – based on age and condition | C63: number of crossarms
B64: Replacement of poles – based on age and condition | C64: number of poles
B65: Stake poles – based on age and condition | C65: number of poles
B66: Replacement of undersized poles | C66: number of poles
B67: Stake undersized poles | C67: number of poles
B68: Replacement of overhead conductor – mainly steel | C68: kms
B69: Service line clearance – overhead services requiring relocation | C69: number of services
B70: Service line clearance – overhead services requiring undergrounding | C70: number of services
B71: Replacement of 22kV distribution feeders with ABC/underground cabling | C71: number of feeders
B72: Replacement of SWER with covered carbon core conductor or equivalent | C72: kms
B73: Replacement of SWER with ABC | C73: kms
B74: Replacement of SWER with underground | C74: kms
B75: Replacement of surge diverters (neptune configuration) | C75: number of units
B76: Replacement of surge diverters (single phase or three phase) | C76: number of units
B77: =IF(ISBLANK(B39),"",B39) -> Armour Rods and Vibration Dampers
B78: =IF(ISBLANK(B40),"",B40) -> SWER ACRS
B79: =IF(ISBLANK(B41),"",B41) -> Multicircuit Clearances (LBRA Survey)
B80: =IF(ISBLANK(B42),"",B42) -> Multicircuit Clearances (HBRA)
B81: =IF(ISBLANK(B43),"",B43) -> 
B82: =IF(ISBLANK(B48),"",B48) -> 
B83: =IF(ISBLANK(B49),"",B49) -> 
B84: To enter further activities - please copy row from above and "insert copied cells" into a row above this row.
B87: 7.12.2.2 - EXPENDITURE
B88: Activity | C88: Units | D88: Exclusive of Margins & Overheads | E88: Value of Margins & Overheads
D89: Actual Expenditure
D90: $0's, Nominal
B91: Planned non-preferred services replacements | C91: number of services
B92: Planned replacement of non-preferred services due to height | C92: number of services
B93: Removal of public lighting switchwire | C93: number of spans removed
B94: Replacement of existing SWER lines with 22kV overhead bare conductor | C94: kms of SWER
B95: Installation of GFN and associated equipment at zone substations | C95: number of zone substations
B96: Replacement of crossarms/insulator sets – pole top fire mitigation | C96: number of crossarms/sets
B97: Replacement of crossarms – based on age and condition | C97: number of crossarms
B98: Replacement of poles – based on age and condition | C98: number of poles
B99: Stake poles – based on age and condition | C99: number of poles
B100: Replacement of undersized poles | C100: number of poles
B101: Stake undersized poles | C101: number of poles
B102: Replacement of overhead conductor – mainly steel | C102: kms
B103: Service line clearance – overhead services requiring relocation | C103: number of services
B104: Service line clearance – overhead services requiring undergrounding | C104: number of services
B105: Replacement of 22kV distribution feeders with ABC/underground cabling | C105: number of feeders
B106: Replacement of SWER with covered carbon core conductor or equivalent | C106: kms
B107: Replacement of SWER with ABC | C107: kms
B108: Replacement of SWER with underground | C108: kms
B109: Replacement of surge diverters (neptune configuration) | C109: number of units
B110: Replacement of surge diverters (single phase or three phase) | C110: number of units
B111: =IF(ISBLANK(B39),"",B39) -> Armour Rods and Vibration Dampers | C111: number of units
B112: =IF(ISBLANK(B40),"",B40) -> SWER ACRS | C112: number of units
B113: =IF(ISBLANK(B41),"",B41) -> Multicircuit Clearances (LBRA Survey) | C113: kms
B114: =IF(ISBLANK(B42),"",B42) -> Multicircuit Clearances (HBRA) | C114: number of units
B115: =IF(ISBLANK(B43),"",B43) ->  | C115: =IF(ISBLANK(C81),"",C81) -> 
B116: =IF(ISBLANK(B48),"",B48) ->  | C116: =IF(ISBLANK(C82),"",C82) -> 
B117: =IF(ISBLANK(B49),"",B49) ->  | C117: =IF(ISBLANK(C83),"",C83) -> 
B118: To enter further activities - please copy row from above and "insert copied cells" into a row above this row.
B121: 7.12.2.3 - UNIT COSTS
B122: Activity | D122: Actual
D123: $0's, Per Unit
B124: Planned non-preferred services replacements
B125: Planned replacement of non-preferred services due to height
B126: Removal of public lighting switchwire
B127: Replacement of existing SWER lines with 22kV overhead bare conductor
B128: Installation of GFN and associated equipment at zone substations
B129: Replacement of crossarms/insulator sets – pole top fire mitigation
B130: Replacement of crossarms – based on age and condition
B131: Replacement of poles – based on age and condition
B132: Stake poles – based on age and condition
B133: Replacement of undersized poles
B134: Stake undersized poles
B135: Replacement of overhead conductor – mainly steel
B136: Service line clearance – overhead services requiring relocation
B137: Service line clearance – overhead services requiring undergrounding
B138: Replacement of 22kV distribution feeders with ABC/underground cabling
B139: Replacement of SWER with covered carbon core conductor or equivalent
B140: Replacement of SWER with ABC
B141: Replacement of SWER with underground
B142: Replacement of surge diverters (neptune configuration)
B143: Replacement of surge diverters (single phase or three phase)
B144: =IF(ISBLANK(B39),"",B39) -> Armour Rods and Vibration Dampers
B145: =IF(ISBLANK(B40),"",B40) -> SWER ACRS
B146: =IF(ISBLANK(B41),"",B41) -> Multicircuit Clearances (LBRA Survey)
B147: =IF(ISBLANK(B42),"",B42) -> Multicircuit Clearances (HBRA)
B148: =IF(ISBLANK(B43),"",B43) -> 
B149: =IF(ISBLANK(B48),"",B48) -> 
B150: =IF(ISBLANK(B49),"",B49) -> 
B151: To enter further activities - please copy row from above and "insert copied cells" into a row above this row.
B154: 7.12.2.4 - CONTINGENT PROJECT APPLICATIONS - VOLUMES APPROVED
B155: Activity | C155: Units | D155: Volume approved under contingent project applications | E155: Actual volumes | F155: Difference
F156: =E156-D156 -> 0
F157: 0
F158: 0
F159: 0
F160: 0
F161: 0
F162: 0
F163: 0
B164: To enter further activities - please copy row from above and "insert copied cells" into a row above this row.
B166: 7.12.2.5 - CONTINGENT PROJECT APPLICATIONS - EXPENDITURE APPROVED
B167: Activity | C167: Exclusive of Margins & Overheads | D167: Value of Margins & Overheads
C168: Actual Expenditure
C169: $0's, Nominal
B178: To enter further activities - please copy row from above and "insert copied cells" into a row above this row.
B182: 7.12.3 - SAFETY RELATED
B184: 7.12.3.1 - NUMBER OF ACTIVITIES
B185: Activity | C185: Units | D185: Number of Activities
B186: Planned non-preferred services replacements | C186: number of services
B187: Planned replacement of non-preferred services due to height | C187: number of services
B188: Removal of public lighting switchwire | C188: number of spans removed
B189: Replacement of existing SWER lines with 22kV overhead bare conductor | C189: kms of SWER
B190: Installation of GFN and associated equipment at zone substations | C190: number of zone substations
B191: Replacement of crossarms/insulator sets – pole top fire mitigation | C191: number of crossarms/sets
B192: Replacement of crossarms – based on age and condition | C192: number of crossarms
B193: Replacement of poles – based on age and condition | C193: number of poles
B194: Stake poles – based on age and condition | C194: number of poles
B195: Replacement of undersized poles | C195: number of poles
B196: Stake undersized poles | C196: number of poles
B197: Replacement of overhead conductor – mainly steel | C197: kms
B198: Service line clearance – overhead services requiring relocation | C198: number of services
B199: Service line clearance – overhead services requiring undergrounding | C199: number of services
B200: Replacement of 22kV distribution feeders with ABC/underground cabling | C200: number of feeders
B201: Replacement of SWER with covered carbon core conductor or equivalent | C201: kms
B202: Replacement of SWER with ABC | C202: kms
B203: Replacement of SWER with underground | C203: kms
B204: Replacement of surge diverters (neptune configuration) | C204: number of units
B205: Replacement of surge diverters (single phase or three phase) | C205: number of units
B206: =IF(ISBLANK(B39),"",B39) -> Armour Rods and Vibration Dampers | C206: number of units
B207: =IF(ISBLANK(B40),"",B40) -> SWER ACRS | C207: number of units
B208: =IF(ISBLANK(B41),"",B41) -> Multicircuit Clearances (LBRA Survey) | C208: kms
B209: =IF(ISBLANK(B42),"",B42) -> Multicircuit Clearances (HBRA) | C209: number of units
B210: =IF(ISBLANK(B43),"",B43) ->  | C210: =IF(ISBLANK(C81),"",C81) -> 
B211: =IF(ISBLANK(B48),"",B48) ->  | C211: =IF(ISBLANK(C82),"",C82) -> 
B212: =IF(ISBLANK(B49),"",B49) ->  | C212: =IF(ISBLANK(C83),"",C83) -> 
B213: To enter further activities - please copy row from above and "insert copied cells" into a row above this row.
B216: 7.12.3.2 - EXPENDITURE
B217: Activity | C217: Units | D217: Exclusive of Margins & Overheads | E217: Value of Margins & Overheads
D218: Actual Expenditure
D219: $0's, Nominal
B220: Planned non-preferred services replacements | C220: number of services
B221: Planned replacement of non-preferred services due to height | C221: number of services
B222: Removal of public lighting switchwire | C222: number of spans removed
B223: Replacement of existing SWER lines with 22kV overhead bare conductor | C223: kms of SWER
B224: Installation of GFN and associated equipment at zone substations | C224: number of zone substations
B225: Replacement of crossarms/insulator sets – pole top fire mitigation | C225: number of crossarms/sets
B226: Replacement of crossarms – based on age and condition | C226: number of crossarms
B227: Replacement of poles – based on age and condition | C227: number of poles
B228: Stake poles – based on age and condition | C228: number of poles
B229: Replacement of undersized poles | C229: number of poles
B230: Stake undersized poles | C230: number of poles
B231: Replacement of overhead conductor – mainly steel | C231: kms
B232: Service line clearance – overhead services requiring relocation | C232: number of services
B233: Service line clearance – overhead services requiring undergrounding | C233: number of services
B234: Replacement of 22kV distribution feeders with ABC/underground cabling | C234: number of feeders
B235: Replacement of SWER with covered carbon core conductor or equivalent | C235: kms
B236: Replacement of SWER with ABC | C236: kms
... 102 more rows

Sheet 7.13 TARC
B1: =(LOOKUP(dms_Model,dms_Model_List,dms_Worksheet_List)) -> ANNUAL REPORTING STATEMENT
B2: =dms_TradingName -> United Energy
B3: =CONCATENATE("Annual Reporting RIN Response ",CRY) -> Annual Reporting RIN Response 2017
B4: 7.13 - TARC
B7: 7.13.1 - TOTAL ANNUAL RETAILER CHARGES
C8: $0's
B9: TARC | C9: 584697245

Sheet 8.1 Income
B1: =(LOOKUP(dms_Model,dms_Model_List,dms_Worksheet_List)) -> ANNUAL REPORTING STATEMENT
B2: =dms_TradingName -> United Energy
B3: =CONCATENATE("Annual Reporting RIN Response ",CRY) -> Annual Reporting RIN Response 2017
B4: 8.1 - INCOME
B6: 8.1.1 - INCOME STATEMENT
C7: Audited Statutory Accounts | D7: Adjustments | E7: Distribution business | F7: Standard Control Services | G7: Alternative Control Services | L7: Negotiated Services
G8: Public Lighting | I8: Other
G9: =IF(dms_Jurisdiction="Vic","Energy efficient","") -> Energy efficient | H9: =IF(dms_Jurisdiction="Vic","Non-energy efficient","") -> Non-energy efficient | I9: Connection services | J9: Metering services | K9: Ancillary network services
C10: $0's, nominal
B11: 8.1.1.1 - REVENUE
B12: Distribution revenue | C12: 396999969 | D12: 5138687 | E12: 402138656 | F12: 402138656
B13: Cross boundary revenue | E13: --
B14: Contributions | C14: 46783375 | D14: -46783375 | E14: --
B15: Interest Income | C15: 694871 | D15: -694871 | E15: --
B16: Jurisdictional scheme amounts | C16: 13521848 | D16: -13521848 | E16: --
B17: Profit from sale of fixed assets | E17: --
B18: TUOS revenue | C18: 107044739 | D18: -107044739 | E18: --
B19: Pass through revenue (F-factor) | E19: --
B20: Other Revenue | C20: 76128990 | D20: -13126070 | E20: 63002920 | F20: 2711255 | G20: 1436340 | H20: 4131033 | I20: 7658945 | J20: 42579408 | K20: 3475020 | L20: 1010918
B21: Total revenue | C21: =SUM(C12:C20) -> 641173792 | D21: -176032216 | E21: 465141576 | F21: 404849911 | G21: 1436340 | H21: 4131033 | I21: 7658945 | J21: 42579408 | K21: 3475020 | L21: 1010918
B23: 8.1.1.2 - EXPENDITURE
B24: TUOS expenditure | C24: 106892516 | D24: -106892516 | E24: --
B25: Avoided TUOS expenditure | C25: 152223 | D25: -152223 | E25: --
B26: Cross boundary expenditure | E26: --
B27: Depreciation | C27: 141304898 | D27: 9071859 | E27: 150376757 | F27: 120908569 | G27: 354941 | H27: 1020840 | J27: 28092406
B28: Finance charges | C28: 118929240 | D28: -38993836 | E28: 79935403 | F28: 72689283 | G28: 173610 | H28: 499318 | J28: 6573192
B29: Impairment losses | E29: --
B30: Jurisdictional scheme amounts | C30: 13521848 | D30: -13521848 | E30: --
B31: Loss from sale of fixed assets | C31: 2250603 | E31: 2250603 | F31: 2250603 | H31: --
B32: Maintenance expenditure | C32: 47759034 | D32: =E32-C32 -> 3015049.95 | E32: ='[1]8.1 Income'!$E$36 -> 50774083.95 | F32: ='[1]8.1 Income'!$F$36 -> 45300108.27 | G32: 635816 | H32: 1828659 | I32: 1084 | J32: -- | K32: 3008416 | L32: --
B33: Operating expenditure excluding maintenance expenditure | C33: 94808620 | D33: 5178971 | E33: 99987591 | F33: 87729868 | G33: -- | H33: -- | I33: 6188789 | J33: 5999112 | K33: 69822 | L33: --
B34: Other | C34: 206800 | D34: (206800) | E34: --
B36: 8.1.1.3 - PROFIT
B37: Profit before tax (PBT) | C37: =C21-SUM(C24:C34) -> 115348010 | D37: -33737672.95 | E37: 81817138.05 | F37: 75971479.73 | G37: 271973 | H37: 782216 | I37: 1469072 | J37: 1914698 | K37: 396782 | L37: 1010918
B38: Income tax expenses (/ benefit) | C38: 35976180 | D38: =D37/C37*dms_080101_03_audited_Values -> -10522527.39 | E38: =dms_080101_03_audited_Values+dms_080101_03_adjust_Values -> 25453652.61 | F38: =F37/$E$37*dms_080101_03_dnsp_Values -> 23635043.94 | G38: 84611.93371 | H38: 243350.6574 | I38: 457034.4213 | J38: 595670.527 | K38: 123440.5337 | L38: 314500.8026
B39: Profit after tax | C39: =C37-C38 -> 79371830 | D39: -23215145.56 | E39: 56363485.44 | F39: 52336435.79 | G39: 187361.0663 | H39: 538865.3426 | I39: 1012037.579 | J39: 1319027.473 | K39: 273341.4663 | L39: 696417.1974

Sheet 8.2 Capex
B1: =(LOOKUP(dms_Model,dms_Model_List,dms_Worksheet_List)) -> ANNUAL REPORTING STATEMENT
B2: =dms_TradingName -> United Energy
B3: =CONCATENATE("Annual Reporting RIN Response ",CRY) -> Annual Reporting RIN Response 2017
B4: 8.2 - CAPEX
B6: Instructions
B7: Reported expenditure must EXCLUDE capital contributions (except tables 8.2.1 and 8.2.5 which should include all capital contributions).
B8: =CONCATENATE("Forecast expenditure is to be taken from ",dms_TradingName,"'s ",dms_DeterminationRef,".") -> Forecast expenditure is to be taken from United Energy's 2016-20 Distribution Determination.
B9: If allocating based on assumptions then provide method in Basis of Preparation. All adjustments must be explained in Basis of Preparation with supporting documentation attached.
B11: For tables 8.2.1 and 8.2.3: Reported expenditure must INCLUDE any profit margins or management fees paid directly or indirectly to related party contractors (not including actual incurred expenses of the related party contractor) for the regulatory reporting period. 'Related Party Margin Expenditure' must COMPRISE ONLY profit margins or management fees paid directly or indirectly to related party contractors (not including actual incurred expenses of the related party contractor) for the regulatory reporting period.
B13: 8.2.1 - CAPEX BY PURPOSE - STANDARD CONTROL SERVICES
B15: Each line item in this table must INCLUDE the capital contributions. Total capital contributions should also be identified in the last item in the table.
C17: EXPENDITURE
C18: CPI adjusted Forecast | D18: Actual | E18: Difference | F18: Related Party Margin | G18: Voltage level
G19: Subtransmission | H19: HV | I19: LV | J19: Other
B20: Description | C20: $0's, nominal | E20: (%) | F20: $0's, nominal
B21: AUGMENTATION | C21: 31581766 | D21: =SUM(G21:J21) -> 24611211 | E21: =IF(C21=0,1,(D21-C21)/C21*1) -> -0.2207145414 | G21: 8749513 | H21: 13740943 | I21: 13271 | J21: 2107484
B22: CONNECTION | C22: 65008915 | D22: 66669237 | E22: 0.02553991249 | G22: 19038 | H22: 25410686 | I22: 40253490 | J22: 986023
B23: REPLACEMENT | C23: 95329874 | D23: 71247467.55 | E23: -0.2526218219 | G23: 10072035 | H23: 34571336 | I23: 21320112 | J23: ='[2]RIN Tab 8.2'!$I$15 -> 5283984.55
B24: NON NETWORK IT | C24: 42971956 | D24: 26340807 | E24: -0.3870233182 | G24: 0 | H24: 0 | I24: 0 | J24: 26340807
B25: NON NETWORK OTHER | C25: 3869364 | D25: 3102135 | E25: -0.1982829736 | G25: 0 | H25: 45650 | I25: 0 | J25: 3056485
D26: 0 | E26: 1
D27: 0 | E27: 1
D28: 0 | E28: 1
D29: 0 | E29: 1
D30: 0 | E30: 1
D31: 0 | E31: 1
D32: 0 | E32: 1
D33: 0 | E33: 1
D34: 0 | E34: 1
D35: 0 | E35: 1
B36: Capital contributions included in the above | D36: 40922868 | E36: 1 | H36: 16788568 | I36: 23344878 | J36: 789422
B37: Total | C37: =SUM(C21:C35) -> 238761875 | D37: =SUM(D21:D35) -> 191970857.6 | E37: -0.1959735718 | F37: =SUM(F21:F35) -> 0 | G37: =SUM(G21:G35) -> 18840586 | H37: =SUM(H21:H35) -> 73768615 | I37: =SUM(I21:I35) -> 61586873 | J37: =SUM(J21:J35) -> 37774783.55
B40: 8.2.2 - CAPEX BY PURPOSE - MATERIAL DIFFERENCE EXPLANATION
B42: Where the difference between forecast and actual expenditure shown in table 8.2.1 is a Material Difference please explain the main factors driving the difference.
B44: Description | C44: Reason for material difference
B45: AUGMENTATION | C45: Reduced scope for distribution substation and low voltage circuit upgrade works has been driven largely by substitution of capex to opex for demand management activities by United EnergyÃÂÃÂÃÂÃÂÃÂÃÂÃÂÃÂÃÂÃÂÃÂÃÂÃÂÃÂÃÂÃÂ¢ÃÂÃÂÃÂÃÂÃÂÃÂÃÂÃÂÃÂÃÂÃÂÃÂÃÂÃÂÃÂÃÂÃÂÃÂÃÂÃÂÃÂÃÂÃÂÃÂÃÂÃÂÃÂÃÂÃÂÃÂÃÂÃÂs Summer Saver programme. Deferral of planned expenditure
B46: CONNECTION | C46: Marginal underspend in business supply projects offset against overspend in new housing estates and recoverable works. Net effect is only 3% difference between actual and allowance.
B47: REPLACEMENT | C47: Reduced expenditure driven predominantly by a reduction in expenditure for pole top structures with the substation for OPEX via increased asset inspection and assessment. Furthermore deferral of transformer and switchgear replacement achieved through inc
B48: NON NETWORK IT | C48: IT Capex underspend due to reduced scope for Power of Choice program and Asset Management projects. Also Webmethods Refresh and Works Planning projects put on hold.
B49: NON NETWORK OTHER | C49: Predominately due to fleet purchases being below forecast due to delays in ordering on new fleet and an increase in the level of refurbishment of existing fleet.
B62: 8.2.3 - CAPEX OTHER
C63: EXPENDITURE
C64: CPI adjusted Forecast | D64: Actual | E64: Difference | F64: Related Party Margin | G64: Voltage level
G65: Subtransmission | H65: HV | I65: LV | J65: Other
C66: $0's, nominal | E66: (%) | F66: $0's, nominal
B67: Public lighting
B68: =IF(dms_Jurisdiction="Vic","Energy Efficient", "Total") -> Energy Efficient | C68: 2079971 | D68: =SUM(G68:J68) -> 544925 | E68: =IF(C68=0,1,((D68-C68)/C68)*1) -> -0.7380131742 | G68: 0 | H68: 0 | I68: 0 | J68: 544925
B69: =IF(dms_Jurisdiction="Vic","Non-energy efficient", "") -> Non-energy efficient | D69: =SUM(G69:J69) -> 1189979 | E69: =IF(C69=0,1,((D69-C69)/C69)*1) -> 1 | G69: 0 | H69: 0 | I69: 0 | J69: 1189979
B70: Alternative Control Services
B71: Connection services | D71: =SUM(G71:J71) -> 0 | E71: =IF(C71=0,1,((D71-C71)/C71)*1) -> 1
B72: Metering services | D72: =SUM(G72:J72) -> 0 | E72: =IF(C72=0,1,((D72-C72)/C72)*1) -> 1
B73: Ancillary network services | D73: =SUM(G73:J73) -> 0 | E73: =IF(C73=0,1,((D73-C73)/C73)*1) -> 1
B74: Negotiated Services
B75: Negotiated services | D75: =SUM(G75:J75) -> 0 | E75: =IF(C75=0,1,((D75-C75)/C75)*1) -> 1
B76: Total | C76: =SUM(C68:C69,C71:C73,C75) -> 2079971 | D76: =SUM(D68:D69,D71:D73,D75) -> 1734904 | E76: =IF(C76=0,1,((D76-C76)/C76)*1) -> -0.1658999092 | G76: =SUM(G68:G69,G71:G73,G75) -> 0 | H76: =SUM(H68:H69,H71:H73,H75) -> 0 | I76: =SUM(I68:I69,I71:I73,I75) -> 0 | J76: =SUM(J68:J69,J71:J73,J75) -> 1734904
B80: 8.2.4 - CAPEX BY ASSET CLASS
B82: =CONCATENATE(dms_TradingName, " to enter in Table 8.2.4 each Asset Class specified in its current determination as listed in the AER's final decision in its Roll Forward Model and Post-tax Revenue Model and enter information against that Asset Class.") -> United Energy to enter in Table 8.2.4 each Asset Class specified in its current determination as listed in the AER's final decision in its Roll Forward Model and Post-tax Revenue Model and enter information against that Asset Class.
C84: CPI adjusted Forecast | D84: Actual | E84: Difference | F84: Movements in provisions allocated to as-incurred capex
B85: Asset class | C85: $0's, nominal | E85: (%) | F85: $0's, nominal
B86: Subtransmission | C86: 30569164 | D86: 18840586 | E86: =IF(C86=0,1,((D86-C86)/C86)*1) -> -0.3836734953 | F86: 185251
B87: Distribution system assets | C87: 155560986 | D87: ='[2]RIN Tab 8.2'!$C$75 -> 92861309.38 | E87: -0.403055279 | F87: 942709
B88: SCADA | C88: 5790406 | D88: 9903152 | E88: 0.7102690209 | F88: 97373
B89: Non network - IT | C89: 42971956 | D89: 26340807 | E89: -0.3870233182 | F89: 258997
B90: Non network - other | C90: 3869364 | D90: 3102135 | E90: -0.1982829736 | F90: 30502
B91: Neutral Screen Services | E91: 1
B92: Distribution Transformers upgrades | E92: 1
B93: Metering - Non AMI | E93: 1
B94: Equity raising costs | E94: 1
B95: AMI | E95: 1
B96: Public lighting | E96: 1
B97: Alternative control -other | E97: 1
B98: Negotiated services | E98: 1
B99: Unregulated services | E99: 1
E100: 1
E101: 1
E102: 1
E103: 1
E104: 1
E105: 1
E106: 1
E107: 1
E108: 1
E109: 1
E110: 1
E111: 1
E112: 1
E113: 1
E114: 1
E115: 1
E116: 1
E117: 1
E118: =IF(C118=0,1,((D118-C118)/C118)*1) -> 1
E119: 1
E120: 1
E121: 1
E122: 1
E123: 1
E124: 1
E125: 1
E126: 1
E127: 1
E128: 1
E129: 1
E130: 1
E131: 1
E132: 1
E133: 1
E134: 1
E135: 1
B136: Total | C136: =SUM(C86:C135) -> 238761876 | D136: =SUM(D86:D135) -> 151047989.4 | E136: -0.3673697329 | F136: =SUM(F86:F135) -> 1514832
B139: 8.2.5 - CAPITAL CONTRIBUTIONS BY ASSET CLASS
C140: CPI Adjusted Forecast | D140: Actual | E140: Difference
B141: Asset class | C141: $0's, nominal | E141: (%)
B142: Subtransmission | E142: =IF(C142=0,1,((D142-C142)/C142)*1) -> 1
B143: Distribution system assets | C143: 28093044 | D143: 40922868 | E143: 0.4566904177
B144: SCADA/Network control | E144: 1
B145: Non network - IT | E145: 1
B146: Non network - other | E146: 1
B147: Neutral Screen Services | E147: 1
B148: Distribution Transformers upgrades | E148: 1
B149: Metering - Non AMI | E149: 1
B150: Equity raising costs | E150: 1
B151: AMI | E151: 1
B152: Public lighting | E152: 1
B153: Alternative control -other | E153: 1
B154: Negotiated services | E154: 1
B155: Unregulated services | E155: 1
E156: 1
E157: 1
E158: 1
E159: 1
E160: 1
E161: 1
E162: 1
E163: 1
E164: 1
E165: 1
E166: 1
E167: 1
E168: 1
E169: 1
B170: =IF(ISBLANK(B114),"",B114) ->  | E170: 1
E171: 1
E172: 1
E173: 1
E174: =IF(C174=0,1,((D174-C174)/C174)*1) -> 1
E175: 1
E176: 1
E177: 1
E178: 1
E179: 1
E180: 1
E181: 1
E182: 1
E183: 1
E184: 1
E185: 1
E186: 1
E187: 1
E188: 1
E189: 1
E190: 1
E191: 1
B192: Total | C192: =SUM(C142:C191) -> 28093044 | D192: =SUM(D142:D191) -> 40922868 | E192: 0.4566904177
B195: 8.2.6 - DISPOSALS BY ASSET CLASS
C196: CPI Adjusted Forecast | D196: Actual | E196: Difference
B197: Asset class | C197: $0's, nominal | E197: (%)
B198: Subtransmission | D198: 59001 | E198: =IF(C198=0,1,((D198-C198)/C198)*1) -> 1
B199: Distribution system assets | D199: 4734 | E199: 1
B200: SCADA/Network control | E200: 1
B201: Non network - IT | E201: 1
B202: Non network - other | D202: 16826 | E202: 1
B203: Neutral Screen Services | E203: 1
B204: Distribution Transformers upgrades | E204: 1
B205: Metering - Non AMI | E205: 1
B206: Equity raising costs | E206: 1
B207: AMI | E207: 1
B208: Public lighting | E208: 1
B209: Alternative control -other | E209: 1
B210: Negotiated services | E210: 1
B211: Unregulated services | E211: 1
E212: 1
E213: 1
E214: 1
E215: 1
E216: 1
E217: 1
E218: 1
E219: 1
E220: 1
E221: 1
E222: 1
E223: 1
E224: 1
E225: 1
B226: =IF(ISBLANK(B114),"",B114) ->  | E226: 1
E227: 1
E228: 1
E229: 1
E230: =IF(C230=0,1,((D230-C230)/C230)*1) -> 1
... 18 more rows

Sheet 8.4 Opex
B1: =(LOOKUP(dms_Model,dms_Model_List,dms_Worksheet_List)) -> ANNUAL REPORTING STATEMENT
B2: =dms_TradingName -> United Energy
B3: =CONCATENATE("Annual Reporting RIN Response ",CRY) -> Annual Reporting RIN Response 2017
B4: 8.4 OPEX
B6: Instructions
B7: =CONCATENATE("Forecast expenditure is to be taken from ",dms_TradingName,"'s ",dms_DeterminationRef,".") -> Forecast expenditure is to be taken from United Energy's 2016-20 Distribution Determination.
B8: If allocating based on assumptions then provide method in Basis of Preparation. All adjustments must be explained in Basis of Preparation with supporting documentation attached.
B10: 8.4.1 - OPERATING & MAINTENANCE EXPENDITURE - BY PURPOSE
B12: =CONCATENATE(dms_TradingName," is to list the operating expenditure categories identified in ", dms_TradingName,"'s regulatory proposal at table 3.2.1.1 current opex categories and cost allocations.") -> United Energy is to list the operating expenditure categories identified in United Energy's regulatory proposal at table 3.2.1.1 current opex categories and cost allocations.
B13: =CONCATENATE(dms_TradingName, " must specify any expenditure category where the expense is more than 5 per cent of the total standard control services operating expenditure.") -> United Energy must specify any expenditure category where the expense is more than 5 per cent of the total standard control services operating expenditure.
B14: Reported operating expenditure must INCLUDE any profit margins or management fees paid directly or indirectly to related party contractors (not including actual incurred expenditure of the related party contractor) for the regulatory reporting period.
C16: Audited Statutory Accounts | D16: Adjustments | E16: Distribution business | F16: Standard Control Services | I16: Alternative Control Services | N16: Negotiated Services
F17: CPI Adjusted Forecast | G17: Actual | H17: Difference | I17: Public Lighting | K17: Other
I18: =IF(dms_Jurisdiction="Vic","Energy efficient","") -> Energy efficient | J18: =IF(dms_Jurisdiction="Vic","Non-energy efficient","") -> Non-energy efficient | K18: Connection services | L18: Metering services | M18: Ancillary network services
B19: Opex category | C19: $0's, nominal | H19: % | I19: $0's, nominal
B20: Maintenance Expenditure | H20: =IF(F20=0,1,((G20-F20)/F20)*1) -> 1
B21: Routine | D21: 21266521 | E21: 21266521 | G21: 21266521 | H21: 1
B22: Condition based | D22: ='[1]8.4 Opex'!D24 -> 10807554.93 | E22: ='[1]8.4 Opex'!E24 -> 10807554.93 | G22: ='[1]8.4 Opex'!G24 -> 10807554.93 | H22: 1
B23: Emergency | D23: ='[1]8.4 Opex'!D25 -> 12643926.08 | E23: ='[1]8.4 Opex'!E25 -> 12643926.08 | G23: ='[1]8.4 Opex'!G25 -> 12643926.08 | H23: 1
B24: SCADA/Network Control | D24: 582106.03 | E24: 582106.03 | G24: 582106.03 | H24: 1
B25: Other - Standard Control Services | C25: 47759034.5 | D25: -47759034.5 | H25: 1
B26: Public Lighting | D26: 2464474.78 | E26: 2464474.78 | H26: 1 | I26: 635815.8 | J26: 1828658.98
B27: Alternative control - Fee based | D27: 1449906.19 | E27: 1449906.19 | H27: 1 | K27: 0 | L27: 0 | M27: 1449906.19
B28: Alternative control - Qouted | D28: 1559594.71 | E28: 1559594.71 | H28: 1 | K28: 1084.45 | L28: 0 | M28: 1558510.26
B29: Negotiated services | D29: 0 | E29: 0 | H29: 1
B30: AMI | H30: 1
H31: 1
B32: Operating Expenditure | H32: 1
B33: Transmission Connection Fee | C33: 12530019.15 | D33: -12530019.15 | G33: 0 | H33: 1
B34: Avoided TUoS charges/transmission costs | C34: 152223.12 | D34: -152223.12 | G34: 0 | H34: 1
B35: AEMO shared TUOS Charges | C35: 94362496.73 | D35: -94362496.73 | G35: 0 | H35: 1
B36: Net Cross Boundary Network Charges | G36: 0 | H36: 1
B37: Premium Feed In Tariff | C37: 12876416 | D37: -12876416 | E37: 0 | G37: 0 | H37: 1
B38: Transitional Feed In Tariff | C38: 645445 | D38: -645445 | E38: 0 | G38: 0 | H38: 1
B39: Network Operating Costs | C39: 23515059.35 | D39: 0 | E39: 23515059.35 | G39: 23324935.76 | H39: 1 | K39: 190123.59 | L39: 0 | M39: 0
B40: Billing & Revenue Collection | C40: 1093593.29 | D40: 0 | E40: 1093593.29 | G40: 1093593.29 | H40: 1 | K40: 0 | L40: 0 | M40: 0
B41: Advertising/Marketing | C41: 577097.33 | D41: 0 | E41: 577097.33 | G41: 577097.33 | H41: 1 | K41: 0 | L41: 0 | M41: 0
B42: Customer Service | C42: 4713302.25 | D42: 0 | E42: 4713302.25 | G42: 3860942.92 | H42: 1 | K42: 677386.38 | L42: 111416.66 | M42: 63556.3
B43: Regulatory | C43: 1540923.29 | D43: 0 | E43: 1540923.29 | G43: 1540923.29 | H43: 1
B44: Regulatory Reset | C44: 0 | D44: 0 | E44: 0 | H44: 1
B45: IT | C45: 21838034.18 | D45: 0 | E45: 21838034.18 | G45: 18562098.15 | H45: 1 | L45: 3275936.03
B46: Licence fee | C46: 37.06 | D46: 0 | E46: 37.06 | G46: 37.06 | H46: 1
B47: GSL payments | C47: 792100 | D47: 0 | E47: 792100 | G47: 792100 | H47: 1
B48: Non-network alternatives costs | C48: 59293.56 | D48: 0 | E48: 59293.56 | G48: 59293.56 | H48: 1
B49: Debt raising costs | C49: 0 | D49: 0 | E49: 0 | H49: 1
B50: Other - Standard Control Services | C50: 38075792.66 | D50: 0 | E50: 38075792.66 | G50: 37918846.66 | H50: 1 | K50: 142307.55 | L50: 8372.71 | M50: 6265.74
B51: AMI | C51: 2603387 | D51: 0 | E51: 2603387 | G51: 0 | H51: 1 | L51: 2603387
B52: ACS Connections | D52: 5178971 | E52: 5178971 | H52: =IF(F52=0,1,((G52-F52)/F52)*1) -> 1 | K52: 5178971
B53: Forecast (1 line in the FD) | F53: 146896709.3 | H53: -1
H54: 1
H55: 1
H56: 1
H57: 1
H58: 1
H59: 1
H60: 1
H61: 1
H62: 1
H63: 1
H64: 1
H65: 1
H66: 1
H67: 1
H68: 1
H69: 1
B70: Total | C70: =SUM(C20:C69) -> 263134254.5 | D70: =SUM(D20:D69) -> -112372579.8 | E70: =SUM(E20:E69) -> 150761674.7 | F70: =SUM(F20:F69) -> 146896709.3 | G70: =SUM(G20:G69) -> 133029976.1 | H70: -0.09439784832 | I70: =SUM(I20:I69) -> 635815.8 | J70: 1828658.98 | K70: 6189872.97 | L70: 5999112.4 | M70: 3078238.49 | N70: 0
B73: 8.4.2 - OPERATING & MAINTENANCE EXPENDITURE - BY PURPOSE - MARGINS ONLY
B75: "Related party margin expenditure' must COMPRISE ONLY profit margins or management fees paid directly or indirectly to related party contractors (for expenditure that is not an actual incurred expenditure of the related party contractor) for the regulatory reporting period.
C77: Audited Statutory Accounts | D77: Adjustments | E77: Distribution business | F77: Standard Control Services | I77: Alternative Control Services | N77: Negotiated Services
F78: CPI Adjusted Forecast | G78: Actual | H78: Difference | I78: Public Lighting | K78: Other
I79: =IF(dms_Jurisdiction="Vic","Energy efficient","") -> Energy efficient | J79: =IF(dms_Jurisdiction="Vic","Non-energy efficient","") -> Non-energy efficient | K79: Connection services | L79: Metering services | M79: Ancillary network services
B80: Opex category | C80: $0's, nominal | G80: $0's, nominal | H80: per cent | I80: $0's, nominal
B81: Maintenance Expenditure | H81: =IF(F81=0,1,((G81-F81)/F81)*1) -> 1
B82: Routine | H82: 1
B83: Condition based | H83: 1
B84: Emergency | H84: 1
B85: SCADA/Network Control | H85: 1
B86: Other - Standard Control Services | H86: 1
B87: Other - Standard Control Services | H87: 1
B88: Public Lighting | H88: 1
B89: Alternative control - Fee based | H89: 1
B90: Alternative control - Qouted | H90: 1
B91: Negotiated services | H91: 1
B92: AMI | H92: 1
H93: 1
B94: Operating Expenditure | H94: 1
B95: Transmission Connection Fee | H95: 1
B96: Avoided TUoS charges/transmission costs | H96: 1
B97: AEMO shared TUOS Charges | H97: 1
B98: Net Cross Boundary Network Charges | H98: 1
B99: Premium Feed In Tariff | H99: 1
B100: Transitional Feed In Tariff | H100: 1
B101: Network Operating Costs | H101: 1
B102: Billing & Revenue Collection | H102: 1
B103: Advertising/Marketing | H103: 1
B104: Customer Service | H104: 1
B105: Regulatory | H105: 1
B106: Regulatory Reset | H106: 1
B107: IT | H107: 1
B108: Licence fee | H108: 1
B109: GSL payments | H109: 1
B110: Non-network alternatives costs | H110: 1
B111: Debt raising costs | H111: 1
B112: Other - Standard Control Services | H112: 1
B113: AMI | H113: =IF(F113=0,1,((G113-F113)/F113)*1) -> 1
H114: 1
H115: 1
H116: 1
H117: 1
H118: 1
H119: 1
H120: 1
H121: 1
H122: 1
H123: 1
H124: 1
H125: 1
H126: 1
H127: 1
H128: 1
H129: 1
H130: 1
B131: Total | C131: =SUM(C81:C130) -> 0 | D131: =SUM(D81:D130) -> 0 | E131: =SUM(E81:E130) -> 0 | F131: =SUM(F81:F130) -> 0 | G131: =SUM(G81:G130) -> 0 | H131: 1 | I131: =SUM(I81:I130) -> 0 | J131: 0 | K131: 0 | L131: 0 | M131: 0 | N131: 0
B134: 8.4.3 - OPERATING & MAINTENANCE EXPENDITURE - EXPLANATION OF MATERIAL DIFFERENCE
B136: Where the difference between forecast and actual expenditure shown in table 8.4.1, column I is a Material Difference please explain the main factors driving the difference.
B138: Category | C138: Explanation
B139: Operating Expenditure | C139: Efficiencies in line maintenance.
C140: Reduction in operating costs as a result of efficiencies realised as part of a corporate review such efficiencies include re-contracting of call centre.

Sheet 9.5 TUoS
B1: =(LOOKUP(dms_Model,dms_Model_List,dms_Worksheet_List)) -> ANNUAL REPORTING STATEMENT
B2: =dms_TradingName -> United Energy
B3: =CONCATENATE("Annual Reporting RIN Response ",CRY) -> Annual Reporting RIN Response 2017
B4: 9.5 - TUoS AUDIT (t-2)
B6: This template collects information for annual pricing proposals from Victorian businesses only.
B8: 9.5.1 - TUOS CHARGES (AEMO)
F9: =CRY -> 2017
B10: AEMO (TUOS Locational Charge) - 2017 | F10: 21691128
B11: AEMO (TUOS Non Locational and Common Service) - 2017 | F11: 72806702
B12: Grid equalisation - 2017 | F12: 2571800
E16: Total | F16: =SUM(F10:F15) -> 97069630
B19: 9.5.2 - TRANSMISSION CONNECTION FEES
F20: =CRY -> 2017
B21: Ausnet (Connection) - 2017 | F21: 8653641
B22: Ausnet & AEMO (Augmentation) - 2017 | F22: 1436319
E27: Total | F27: =SUM(F21:F26) -> 10089960
B30: 9.5.3 - CROSS BOUNDARY NETWORK CHARGES
C31: Amount (payable)/receivable
C32: $0's, nominal
C33: HV crossings | D33: Subtransmission crossings | E33: TUoS Adjustment | F33: Total
B34: Distribution Business | F34: =CRY -> 2017
B35: Citipower | C35: 0 | D35: 0 | E35: 0 | F35: =IF((SUM(C35:E35)=0),"",(SUM(C35:E35))) -> 
B36: Ausnet | C36: 0 | D36: 0 | E36: -1479147 | F36: -1479147
B43: Total | F43: =SUM(F35:F42) -> -1479147
B46: 9.5.4 - PAYMENTS TO EMBEDDED GENERATORS
B47: 9.5.4.1 - AVOIDED TRANSMISSION COSTS | F47: =CRY -> 2017
B48: Avoided TUOS | F48: 11279
B56: Total | F56: =SUM(F48:F55) -> 11279
B57: 9.5.4.2 - AVOIDED TUoS USAGE CHARGES | F57: =CRY -> 2017
B66: Total | F66: =SUM(F58:F65) -> 0
B67: Total payments to embedded generators | F67: =F66+F56 -> 11279
